{"text_format":"1","workbook":"xlsx","n_sheets":9,"sheets":["Copyright","Cover","Instruction","All Result","Sheet1","FW nonmetal nonplant","FW nonmetal nonplant_WS","FW nonmetal plant","FW nonmetal plant_WS"],"not_rendered":{"charts":0,"images":0,"macros":1,"external_links":0,"defined_names":2,"comments":3,"pivot_tables":0},"unopened":[],"bounds":{"document_bytes":16777216,"sheet_cells":100000,"rows_first":2000,"rows_last":500,"rows_between":2000,"halvings":0,"cell_chars":16384,"cell_head_chars":4096},"cells_cut":0,"cells_raw":0,"read":"whole","date_system":"1900"}

{"sheet":"Copyright","index":0,"n_rows":0,"n_cols":0,"rows_kept":0,"cut":false,"hidden":false,"merged":[]}

{"sheet":"Cover","index":1,"n_rows":20,"n_cols":7,"rows_kept":20,"cut":false,"hidden":false,"merged":[[18,6,18,8],[14,6,14,8],[13,6,13,8],[4,4,4,10],[9,6,9,8],[12,6,12,8],[5,5,6,9]]}
[]
[]
[]
[]
[null,null,null,null,"Ecotoxicity Data Quality Assessment Method V2.4"]
[null,null,null,null,null,"To be used to assess the quality of data used for the Australian and New Zealand Guidelines for Fresh and Marine Water Quality (including sediment) and the Australian National Environment Protection (Assessment of Site Contamination) Measure"]
[]
[]
[]
[null,null,null,null,null,null,"Developed by "]
[]
[]
[null,null,null,null,null,null,"Zoe Zhang"]
[null,null,null,null,null,null,"   Dr. Michael Warne"]
[null,null,null,null,null,null,"Alison Vieritz "]
[]
[]
[]
[null,null,null,null,null,null,"Water Quality & Investigations "]
[null,null,null,null,null,"                 Department of Science, Information Technology and Innovation"]

{"sheet":"Instruction","index":2,"n_rows":21,"n_cols":10,"rows_kept":21,"cut":false,"hidden":false,"merged":[[27,6,27,16],[14,6,14,7],[5,4,5,7]]}
[]
[]
[null,"Click here to see \"All Result\" -->","All Result"]
[]
[]
[null,null,null,null,"Freshwater "]
[]
[null,"Tabs contain questionaries -->           ","Freshwater/metal/nonplant",null,"Freshwater/non-metal/non-plant ",null,null,"Freshwater/metal/plant",null,"Freshwater/non-metal/plant"]
[]
[]
[]
[null,"Tabs contain score of paper and short answers to questions -->","Freshwater/metal/nonplant Worksheet",null,"Freshwater/non-metal/non-plant Worksheet",null,null,"Freshwater/metal/plant Worksheet",null,"Freshwater/non-metal/plant/ Worksheet"]
[]
[]
[null,null,"Marine ",null,null,null,"Terrestrial",null,null,"Sediment "]
[]
[null,"Tab contain questionaries -->","Marine or estuarine/non-plant",null,"Marine or estuarine/Plant",null,null,"Terrestrial Data QA",null,"Sediment Data QA"]
[]
[]
[]
[null,"Tab Contains all scores of paper --> ","Marine or estuarine/non-Plant Worksheet",null,"Marine or estuarine/Plant_Worksheet",null,null,"Terrestrial Quality",null,"Sediment Quality"]

{"sheet":"All Result","index":3,"n_rows":66,"n_cols":32,"rows_kept":66,"cut":false,"hidden":false,"merged":[]}
["Chemical:","Bisphenol A"]
["Medium:","Freshwater"]
[]
[{"$f":"'FW nonmetal plant'!C2","v":"Category"},{"$f":"'FW nonmetal plant'!C3","v":"Paper and data unique identifier(eg. 1-1,10-150)"},{"$f":"'FW nonmetal plant'!C70","v":"Total score"},{"$f":"'FW nonmetal plant'!C72","v":"Quality Score"},"Comment ","Species (Scientific name)","Lifestage","Exposure duration","Measure of toxicity","Toxicity endpoint","Toxicity value","Taxonomic group","Phylum","Class","Media","Temperature ","Acute Or Chronic ","PH","Salinity/Conductivity","Citation","Citation No.",null,null,null,null,null,null,null,null,null,null,"Olivia Formulation Check"]
["Freshwater/non-metal/non-plant","722-1",92,0.89320388349514568,null,"Brachionus calyciflorus","Newly hatched (<2 h old)","2 d","NOEC","Reproduction","1.8 mg/L","Rotifer","Rotifer","Eurotatoria","Yes - fortified well water","23+/- 1oC ","Chronic",8,"290 uS/cm","Mihaich, E.M., U. Friederich, N. Caspers, A. Tilghman Hall, G.M. Klecka, S.S. Dimond, C.A. Staples, L.S. Ortego and S.G. Hentges. 2009. Acute and chronic testing of bisphenol A with aquatic invertebrates and plants. Ecotoxicology and Environmental Safety 72: 1392-1399.","722"]
["Freshwater/non-metal/non-plant","722-2",92,0.89320388349514568,null,"Brachionus calyciflorus","Newly hatched (<2 h old)","2 d","LOEC","Reproduction","3.6 mg/L","Rotifer","Rotifer","Eurotatoria","Yes - fortified well water","25+/- 1oC","Chronic",8,"290 uS/cm","Mihaich, E.M., U. Friederich, N. Caspers, A. Tilghman Hall, G.M. Klecka, S.S. Dimond, C.A. Staples, L.S. Ortego and S.G. Hentges. 2009. Acute and chronic testing of bisphenol A with aquatic invertebrates and plants. Ecotoxicology and Environmental Safety 72: 1392-1399.","722"]
["Freshwater/non-metal/plant","733-1",67,0.65048543689320393,null,"Bruguiera gymnorhiza",null,"28 d","LC50","Mortality","39.97 mg/L","Plant","Tracheophyta","Magnoliopsida","Distilled water","","Chronic","Initial pH 6.3-6.5","","Saiyood, S., D. Inthorn, A.S. Vangnai and P. Thiravetyan. 2013. Phytoremediation of bisphenol A and total dissolved solids by the mangrove plant, Bruguiera gymnorhiza. International Journal of Phytoremediation 15: 427-438.","733"]
["Freshwater/non-metal/non-plant","728-1",68,0.66019417475728159,"The highest possible grade for this datum is acceptable.","Carassius auratus","Adults","90 d","NOEC","Growth","0.02 mg/L","Vertebrate","Chordata","Teleostei ","The solvent control was dimethyl sulfoxide and this was used for the analysis","18-22oC","Chronic","7.3-7.8","","Hatef, A., A. Zare, S.M.H. Alavi, H.R. Habibi and O. Linhart. 2012. Modulations in androgen and estrogen mediating genes and testicular response in male goldfish exposed to bisphenol A. Environmental Toxicology and Chemistry 31: 2069-2077.","728"]
["Freshwater/non-metal/non-plant","729-1",70,0.67961165048543692,null,"Chironomus riparius","Eggs","> 10 d","NOEC","Growth","0.1 mg/L","Invertebrate","Arthropoda","Insecta ","dechlorinated tap water","20+/-1oC","Chronic","6.9-7.3","221-236 uS/cm","Watts, M.M., D. Pascoe and K. Carroll. 2003. Exposure to 17a-ethyinylestradiol and bisphenol A - effects on larval moulting and mouthpart structure of chironomus riparius. Ecotoxicology and Environmental Safety 54: 207-215.","729"]
["Freshwater/non-metal/non-plant","729-2",70,0.67961165048543692,null,"Chironomus riparius","Eggs","> 10 d","LOEC","Growth","1 mg/L","Invertebrate","Arthropoda","Insecta ","Solvent - ethanol and dechlorinated tap water","20+/-1oC","Chronic","6.9-7.6","221-236 uS/cm","Watts, M.M., D. Pascoe and K. Carroll. Exposure to 17a-ethyinylestradiol and bisphenol A - effects on larval moulting and mouthpart structure of chironomus riparius. Ecotoxicology and Environmental Safety 54: 207-215.","729"]
["Freshwater/non-metal/non-plant","707-1",76,0.73786407766990292,"The highest possible grade for this datum is acceptable.","Danio rerio","Eggs","90 d","LOEC","Growth","0.01 mg/L","Vertebrate","Chordata","Actinopterygii","deinionized and tap water","26+/-1oC","Chronic","8.25-8.75","","Keiter, S., L. Baumann, H. Farber, H. Holbech, D. Skutlarek, M. Engwall and T. Braunbeck. 2012. Long-term effects of a binary mixture of perfluorooctane sulfonate (PFOS) and bisphenol A (BPA) in zebrafish (Danio rerio). Aquatic Toxicology 118-119: 116-129.","707"]
["Freshwater/non-metal/non-plant","297-1",61,0.59223300970873782,"The highest possible grade for this datum is acceptable.","Daphnia magna","Neonates","21 d","NOEC","Mortality","0.4 mg/L","Invertebrate","Arthropoda","Branchiopoda ","Fresh culture medium as per ISO guidelines","20 +/- 1oC","Chronic","","","Brennan S.J., C.A. Brougham, J.J. Roche and A.M. Fogarty. 2006. Multi-generational effects of four selected environmental oestrogens on Daphnia magna. Chemosphere 64: 49-55","297"]
["Freshwater/non-metal/non-plant","297-2",61,0.59223300970873782,"The highest possible grade for this datum is acceptable.","Daphnia magna","Neonates","21 d","LOEC","Mortality","0.6 mg/L","Invertebrate","Arthropoda","Branchiopoda ","Fresh culture medium as per ISO guidelines","20 +/- 1oC","Chronic","","","Brennan S.J., C.A. Brougham, J.J. Roche and A.M. Fogarty. 2006. Multi-generational effects of four selected environmental oestrogens on Daphnia magna. Chemosphere 64: 49-55","297"]
["Freshwater/non-metal/non-plant","297-3",61,0.59223300970873782,"The highest possible grade for this datum is acceptable.","Daphnia magna","Neonates","21 d","NOEC","Mortality","<0.2 mg/L","Invertebrate","Arthropoda","Branchiopoda ","Fresh culture medium as per ISO guidelines","20 +/- 1oC","Chronic","","","Brennan S.J., C.A. Brougham, J.J. Roche and A.M. Fogarty. 2006. Multi-generational effects of four selected environmental oestrogens on Daphnia magna. Chemosphere 64: 49-55","297"]
["Freshwater/non-metal/non-plant","297-4",61,0.59223300970873782,"The highest possible grade for this datum is acceptable.","Daphnia magna","Neonates","21 d","LOEC","Mortality","0.2 mg/L","Invertebrate","Arthropoda","Branchiopoda ","Fresh culture medium as per ISO guidelines","20 +/- 1oC","Chronic","","","Brennan S.J., C.A. Brougham, J.J. Roche and A.M. Fogarty. 2006. Multi-generational effects of four selected environmental oestrogens on Daphnia magna. Chemosphere 64: 49-55","297"]
["Freshwater/non-metal/non-plant","731-1",59,0.57281553398058249,"The highest possible grade for this datum is acceptable.","Daphnia magna","Neonates","21 d","NOEC","Reproduction","0.03 mg/L","Invertebrate","Arthropoda","Branchiopoda ","Culture medium","2o+/-1oC","Chronic","","","Ha. M.H. and J. Choi. 2009. Effects of environmental contaminants on hemoglobin gene expression in daphnia magna: A potential biomarker for freshwater quality monitoring. Archives of Environmental Contamination and Toxicology 57: 330-337","731"]
["Freshwater/non-metal/non-plant","296-1",86,0.83495145631067957,null,"Gammarus pulex","3-5mm length","10 d","LC50","Mortality","1.5 mg/L","Invertebrate","Arthropoda","Malacostracans","Dechlorinated tap water + ethanol","16 +/- 1oC","Acute","6.9-7.3","221-236 uS/cm","Watts, M.M., D. Pascoe and K. Carroll. 2001. Survival and precopulatory behaviour of Gammarus pulex (L.) exposed to two xenoestrogens. Water Research 35: 2347-2352.","296"]
["Freshwater/non-metal/non-plant","730-1",64,0.62135922330097082,"The highest possible grade for this datum is acceptable.","Hetermyenia sp","Gemmules","6 d","NOEC","Growth","1.6 mg/L","Macroinvertebrate","Cnidaria ","Unknown","Sping water","22oC","Chronic","","","Hill, M., C. Stabile, L.K. Steffen and A. Hill. 2002. Toxic effects of endocrine disruptors on freshwater sponges: common developmental abnormalities. Environmental Pollutino 117: 295-300","730"]
["Freshwater/non-metal/non-plant","730-2",64,0.62135922330097082,"The highest possible grade for this datum is acceptable.","Hetermyenia sp","Gemmules","6 d","LOEC","Growth","16 mg/L","Macroinvertebrate","Cnidaria ","Unknown","Sping water","22oC","Chronic","","","Hill, M., C. Stabile, L.K. Steffen and A. Hill. 2002. Toxic effects of endocrine disruptors on freshwater sponges: common developmental abnormalities. Environmental Pollutino 117: 295-300","730"]
["Freshwater/non-metal/non-plant","722-4",94,0.91262135922330101,null,"Hyalella azteca","8 d","42 d","NOEC","Reproduction","0.49 mg/L","Invertebrate","Arthropoda","Malacostraca ","No - not sure if well water or recon","22-24oC","Chronic","7.4-7.8","150-180 uS/cm","Mihaich, E.M., U. Friederich, N. Caspers, A. Tilghman Hall, G.M. Klecka, S.S. Dimond, C.A. Staples, L.S. Ortego and S.G. Hentges. 2009. Acute and chronic testing of bisphenol A with aquatic invertebrates and plants. Ecotoxicology and Environmental Safety 72: 1392-1399.","722"]
["Freshwater/non-metal/non-plant","722-5",94,0.91262135922330101,null,"Hyalella azteca","8 d","42 d","LOEC","Reproduction","1.1 mg/L","Invertebrate","Arthropoda","Malacostraca ","No - not sure if well water or recon","22-24oC","Chronic","7.4-7.8","150-180 uS/cm","Mihaich, E.M., U. Friederich, N. Caspers, A. Tilghman Hall, G.M. Klecka, S.S. Dimond, C.A. Staples, L.S. Ortego and S.G. Hentges. 2009. Acute and chronic testing of bisphenol A with aquatic invertebrates and plants. Ecotoxicology and Environmental Safety 72: 1392-1399.","722"]
["Freshwater/non-metal/non-plant","722-3",94,0.91262135922330101,null,"Hyalella azteca","8 d","42 d","LC50","Survival","0.78 mg/L","Invertebrate","Arthropoda","Malacostraca ","No - not sure if well water or recon","22-24oC","Chronic","7.4-7.8","150-180 uS/cm","Mihaich, E.M., U. Friederich, N. Caspers, A. Tilghman Hall, G.M. Klecka, S.S. Dimond, C.A. Staples, L.S. Ortego and S.G. Hentges. 2009. Acute and chronic testing of bisphenol A with aquatic invertebrates and plants. Ecotoxicology and Environmental Safety 72: 1392-1399.","722"]
["Freshwater/non-metal/plant","722-8",87,0.84466019417475724,null,"Lemna gibba",null,"7 d","EC50","Biomass","22 mg/L","Plant","Tracheophyta","Magnoliopsida ","algal assay procedure (AAP) medium","22-26oC","Chronic","7.4-8.6","","Mihaich, E.M., U. Friederich, N. Caspers, A. Tilghman Hall, G.M. Klecka, S.S. Dimond, C.A. Staples, L.S. Ortego and S.G. Hentges. 2009. Acute and chronic testing of bisphenol A with aquatic invertebrates and plants. Ecotoxicology and Environmental Safety 72: 1392-1399.","722"]
["Freshwater/non-metal/plant","722-9",87,0.84466019417475724,null,"Lemna gibba",null,"7 d","NOEC","Biomass","7.8 mg/L","Plant","Tracheophyta","Magnoliopsida ","algal assay procedure (AAP) medium","22-26oC","Chronic","7.4-8.6","","Mihaich, E.M., U. Friederich, N. Caspers, A. Tilghman Hall, G.M. Klecka, S.S. Dimond, C.A. Staples, L.S. Ortego and S.G. Hentges. 2009. Acute and chronic testing of bisphenol A with aquatic invertebrates and plants. Ecotoxicology and Environmental Safety 72: 1392-1399.","722"]
["Freshwater/non-metal/plant","722-6",87,0.84466019417475724,null,"Lemna gibba",null,"7 d","EC50","Frond density and growth rate","20 mg/L","Plant","Tracheophyta","Magnoliopsida ","algal assay procedure (AAP) medium","22-26oC","Chronic","7.4-8.6","","Mihaich, E.M., U. Friederich, N. Caspers, A. Tilghman Hall, G.M. Klecka, S.S. Dimond, C.A. Staples, L.S. Ortego and S.G. Hentges. 2009. Acute and chronic testing of bisphenol A with aquatic invertebrates and plants. Ecotoxicology and Environmental Safety 72: 1392-1399.","722"]
["Freshwater/non-metal/plant","722-7",87,0.84466019417475724,null,"Lemna gibba",null,"7 d","NOEC","Frond density and growth rate","7.8 mg/L","Plant","Tracheophyta","Magnoliopsida ","algal assay procedure (AAP) medium","22-26oC","Chronic","7.4-8.6","","Mihaich, E.M., U. Friederich, N. Caspers, A. Tilghman Hall, G.M. Klecka, S.S. Dimond, C.A. Staples, L.S. Ortego and S.G. Hentges. 2009. Acute and chronic testing of bisphenol A with aquatic invertebrates and plants. Ecotoxicology and Environmental Safety 72: 1392-1399.","722"]
["Freshwater/non-metal/non-plant","727-4",75,0.72815533980582525,null,"Marisa cornuarietis","Juveniles","60 d","NOEC","Growth","0.64 mg/L","Invertebrate","Mollusca","Gastropoda","Blend of naturally hard well water with demineralized well water","25+/- 1oC","Chronic","","","Forbes V.E., J. Aufderheide, R. Warbritton, N. van der Hoeven and N. Caspers. 2007. Does bisphenol A induce superfeminization in Marisa cornuarietis? Part II: Toxicity test results and requirements for statistical power analyses. Ecotoxicology and Environmental Safety 66: 319-325.","727"]
["Freshwater/non-metal/non- plant","727-1",63,0.69230769230769229,"","Marisa cornuarietis","Juvenile","84 days","NOEC","Survival","640 ug/L","Macroinvertebrate","Mollusca","Gastropoda","Mix of deionised water and hard water",25,"Chronic","Not stated","N.A.","Forbes V.E., J. Aufderheide, R. Warbritton, N. van der Hoeven and N. Caspers. 2007. Does bisphenol A induce superfeminization in Marisa cornuarietis? Part II: Toxicity test results and requirements for statistical power analyses. Ecotoxicology and Environmental Safety 66: 319-325.","727"]
["Freshwater/non-metal/non- plant","727-2",63,0.69230769230769229,"","Marisa cornuarietis","Juvenile","84 days","NOEC","Reproduction","640 ug/L","Macroinvertebrate","Mollusca","Gastropoda","Mix of deionised water and hard water",25,"Chronic","Not stated","N.A.","Forbes V.E., J. Aufderheide, R. Warbritton, N. van der Hoeven and N. Caspers. 2007. Does bisphenol A induce superfeminization in Marisa cornuarietis? Part II: Toxicity test results and requirements for statistical power analyses. Ecotoxicology and Environmental Safety 66: 319-325.","727"]
["Freshwater/non-metal/non- plant","727-3",63,0.69230769230769229,"","Marisa cornuarietis","Juvenile","60 day","NOEC","Survival","640 ug/L","Macroinvertebrate","Mollusca","Gastropoda","Mix of deionised water and hard water",25,"Chronic","Not stated","N.A.","Forbes V.E., J. Aufderheide, R. Warbritton, N. van der Hoeven and N. Caspers. 2007. Does bisphenol A induce superfeminization in Marisa cornuarietis? Part II: Toxicity test results and requirements for statistical power analyses. Ecotoxicology and Environmental Safety 66: 319-325.","727"]
["Freshwater/non-metal/non-plant","738-1",68,0.66019417475728159,"The highest possible grade for this datum is acceptable.","Marisa cornuarietis","Embryos","14 d","NOEC","Reproduction","0.1 mg/L","Invertebrate","Mollusca","Gastropoda","Tap water ","26+/-0.5oC","Chronic","","","Schirling, M., A. Bohlen, R. Triebskorn and H.R. Kohler. 2006. An invertebrate embryo test with the apple snail Marisa cornuartietis to assess effects of potential developmental and endocrine disruptors. Chemosphere 64: 1730-1738","738"]
["Freshwater/non-metal/non-plant","725-2",67,0.65048543689320393,"The highest possible grade for this datum is acceptable.","Oryzias latipes","Eggs","14 d","NOEC","Hatchability","6250 ug/L","Fish","Chordata","Actinopterygii","DMSO solvent and dechlorinated tap water","25+/- 1oC","Chronic","","","Ishibashi, H., N. Watanabe, N. Matsumura, M. Hirano, Y. Nagao, H. Shiratsuchi, S. Kohra, S-I, Yoshihara and K. Arizono. 2005. Toxicity to early life stages and an estrogenic effect of a bisphenol A metabolite, 4-methyl-2,4-bis(4-hydroxyphenyl)pent-1-ene on the medaka (Oryzias latipes). Life Sciences 77: 2643-2655.","725"]
["Freshwater/non-metal/non- plant","725-3",67,0.73626373626373631,"The highest possible grade for this datum is acceptable.","Oryzias latipes","Eggs","14 days","LOEC","hatchability","12.5 mg/L","Fish","Chordata","Teleostei","Dechlorinated tap water",25,"Chronic","","N.A.","Ishibashi, H., N. Watanabe, N. Matsumura, M. Hirano, Y. Nagao, H. Shiratsuchi, S. Kohra, S-I, Yoshihara and K. Arizono. 2005. Toxicity to early life stages and an estrogenic effect of a bisphenol A metabolite, 4-methyl-2,4-bis(4-hydroxyphenyl)pent-1-ene on the medaka (Oryzias latipes). Life Sciences 77: 2643-2655.","725"]
["Freshwater/non-metal/non-plant","736-1",73,0.70873786407766992,"The highest possible grade for this datum is acceptable.","Oryzias latipes","Adult males","60 d","NOEC","Mortality","1 mg/L","Vertebrate","Chordata","Actinopterygii","Dechlorinated tap water and solvent controls (DMSO)","22+/-1oC","Chronic","7.2-7.6","324-343 uS/cm","Minghong W., X. Hai, Y. Ming and X. Gang. 2011. Effects of chronic bisphenol A exposure on hepatic antioxidant parameters in medaka (Oryzias latipes). Toxicological and Environmental Chemistry 93: 270-278","736"]
["Freshwater/non-metal/non-plant","725-1",63,0.61165048543689315,"The highest possible grade for this datum is acceptable.","Oryzias latipes","Eggs","14 d","LC50","Survival","14.8 mg/L","Fish","Chordata","Actinopterygii","DMSO solvent and dechlorinated tap water","25+/- 1oC","Chronic","","","Ishibashi, H., N. Watanabe, N. Matsumura, M. Hirano, Y. Nagao, H. Shiratsuchi, S. Kohra, S-I, Yoshihara and K. Arizono. 2005. Toxicity to early life stages and an estrogenic effect of a bisphenol A metabolite, 4-methyl-2,4-bis(4-hydroxyphenyl)pent-1-ene on the medaka (Oryzias latipes). Life Sciences 77: 2643-2655.","725"]
["Freshwater/non-metal/non-plant","734-1",69,0.66990291262135926,"The highest possible grade for this datum is acceptable.","Paramecium caudatum",null,"5 d","IC50","Growth","10.8 uM (2.46 mg/L)","Other","Ciliophora","Oligohymenophorea","Lettuce infusion","23+/-1oC","Chronic","","","Miyoshi, N., T. Kawano, M. Tanaka, T. Kadono, T. Kosaka, M. Kunimoto, T. Takahashi and H. Hosoya. 2003. Use of paramecium species in bioassays for environmental risk management: determination of IC50 values for water pollutants. Journal of Health Science 49: 429-435","734"]
["Freshwater/non-metal/non-plant","734-2",69,0.66990291262135926,"The highest possible grade for this datum is acceptable.","Paramecium trichium",null,"5 d","IC50","Growth","0.85 uM (182 ug/L)","Other","Ciliophora","Oligohymenophorea","Lettuce infusion","23+/-1oC","Chronic","","","Miyoshi, N., T. Kawano, M. Tanaka, T. Kadono, T. Kosaka, M. Kunimoto, T. Takahashi and H. Hosoya. 2003. Use of paramecium species in bioassays for environmental risk management: determination of IC50 values for water pollutants. Journal of Health Science 49: 429-435","734"]
["Freshwater/non-metal/non-plant","735-1",73,0.70873786407766992,null,"Physa acuta","Eggs","21 d","LOEC","Mortality","0.1 mg/L","Invertebrate","Mollusca","Gastropoda","recon water (OECD)","20oC","Chronic","","","Sanchez-Arguello, P. N. Aparicio and C. Fernandez. 2012. Linking embryo toxicity with genotoxic responses in the freshwater snail Physa acuta: Single exposure to benzo(a)pyrene, fluoxetine, bisphenol A, viclozolin and exposure to binary mixtures with benzo(a)pyrene. Ecotoxicology and Environmental Safety 80: 152-160","735"]
["Freshwater/non-metal/non-plant","720-1",78,0.75728155339805825,null,"Pimephales promelas","Juvenile - 120 dph","164 d","NOEC","Mortality - males","0.16 mg/L","Vertebrate","Chordata","Actinopterygii","Yes - well water","25 +/- 1oC","Chronic","7.75-8.08","310-330 uS/cm","Mihaich, E., J. Rhodes, J. Wolf, N. Van der Hoeven, D. Dietrich, A. Tilghman Hall, N. Caspers, L. Ortego, C. Staples, S. Dimond and S. Hentges. 2012. Adult fathead minnow, Pimephales promelas, partial life-cycle reproductive and gonadal histopathology study with bisphenol A. Environmental Toxicology and Chemistry 31: 2525-2535.","720"]
["Freshwater/non-metal/non-plant","720-2",78,0.75728155339805825,null,"Pimephales promelas","Juvenile - 120 dph","164 d","LOEC","Mortality - males","0.64 mg/L","Vertebrate","Chordata","Actinopterygii","Yes - well water","25 +/- 1oC","Chronic","7.75-8.08","310-330 uS/cm","Mihaich, E., J. Rhodes, J. Wolf, N. Van der Hoeven, D. Dietrich, A. Tilghman Hall, N. Caspers, L. Ortego, C. Staples, S. Dimond and S. Hentges. 2012. Adult fathead minnow, Pimephales promelas, partial life-cycle reproductive and gonadal histopathology study with bisphenol A. Environmental Toxicology and Chemistry 31: 2525-2535.","720"]
["Freshwater/non-metal/non- plant","721-2",76,0.8351648351648352,"","Pimephales promelas","Eggs","36 days","NOEC","Survival","640 ug/L","Fish","Chordata","Teleostei","Dechlorinated tap water","21.4-25.4oC","Chronic","7.25-8.06","N.A.","Staples, C.A., A. Tilghman Hall, U. Friederich, N. Caspers and G.M. Klecka. 2011. Early life-stage and multigenerational study with bisphenol A and fathead minnows (Pimephales promelas). Ecotoxicology and Environmental Safety 74: 1548-1557.","721"]
["Freshwater/non-metal/non- plant","721-3",76,0.8351648351648352,"","Pimephales promelas","Eggs","36 days","NOEC","Growth","640 ug/L","Fish","Chordata","Teleostei","Dechlorinated tap water","21.4-25.4oC","Chronic","7.25-8.06","N.A.","Staples, C.A., A. Tilghman Hall, U. Friederich, N. Caspers and G.M. Klecka. 2011. Early life-stage and multigenerational study with bisphenol A and fathead minnows (Pimephales promelas). Ecotoxicology and Environmental Safety 74: 1548-1557.","721"]
["Freshwater/non-metal/non- plant","721-4",76,0.8351648351648352,"","Pimephales promelas","Eggs","164 days","NOEC","hatchability","160 ug/L","Fish","Chordata","Teleostei","Dechlorinated tap water","21.4-25.4oC","Chronic","7.25-8.06","N.A.","Staples, C.A., A. Tilghman Hall, U. Friederich, N. Caspers and G.M. Klecka. 2011. Early life-stage and multigenerational study with bisphenol A and fathead minnows (Pimephales promelas). Ecotoxicology and Environmental Safety 74: 1548-1557.","721"]
["Freshwater/non-metal/non- plant","721-5",76,0.8351648351648352,"","Pimephales promelas","Eggs","164 days","NOEC","Juvenile survival","160 ug/L","Fish","Chordata","Teleostei","Dechlorinated tap water","21.4-25.4oC","Chronic","7.25-8.06","N.A.","Staples, C.A., A. Tilghman Hall, U. Friederich, N. Caspers and G.M. Klecka. 2011. Early life-stage and multigenerational study with bisphenol A and fathead minnows (Pimephales promelas). Ecotoxicology and Environmental Safety 74: 1548-1557.","721"]
["Freshwater/non-metal/non- plant","721-6",76,0.8351648351648352,"","Pimephales promelas","Eggs","36 days","NOEC","hatchability","640 ug/L","Fish","Chordata","Teleostei","Dechlorinated tap water","21.4-25.4oC","Chronic","7.25-8.06","N.A.","Staples, C.A., A. Tilghman Hall, U. Friederich, N. Caspers and G.M. Klecka. 2011. Early life-stage and multigenerational study with bisphenol A and fathead minnows (Pimephales promelas). Ecotoxicology and Environmental Safety 74: 1548-1557.","721"]
["Freshwater/non-metal/non- plant","721-7",76,0.8351648351648352,"","Pimephales promelas","Eggs","164 days","NOEC","Survival","640 ug/L","Fish","Chordata","Teleostei","Dechlorinated tap water","21.4-25.4oC","Chronic","7.25-8.06","N.A.","Staples, C.A., A. Tilghman Hall, U. Friederich, N. Caspers and G.M. Klecka. 2011. Early life-stage and multigenerational study with bisphenol A and fathead minnows (Pimephales promelas). Ecotoxicology and Environmental Safety 74: 1548-1557.","721"]
["Freshwater/non-metal/non-plant","720-3",78,0.75728155339805825,null,"Pimephales promelas","Juvenile - 120 dph","164 d","NOEC","Reproduction","0.64 mg/L","Vertebrate","Chordata","Actinopterygii","Yes - well water","25 +/- 1oC","Chronic","7.75-8.08","310-330 uS/cm","Mihaich, E., J. Rhodes, J. Wolf, N. Van der Hoeven, D. Dietrich, A. Tilghman Hall, N. Caspers, L. Ortego, C. Staples, S. Dimond and S. Hentges. 2012. Adult fathead minnow, Pimephales promelas, partial life-cycle reproductive and gonadal histopathology study with bisphenol A. Environmental Toxicology and Chemistry 31: 2525-2535.","720"]
["Freshwater/non-metal/non-plant","721-1",84,0.81553398058252424,null,"Pimephales promelas","Eggs- adults","164 d","NOEC","Reproduction","0.016 mg/L","Vertebrate","Chordata","Actinopterygii","Yes - dechlorinated tap water","24.1-25.8oC","Chronic","7.1-8.0","","Staples, C.A., A. Tilghman Hall, U. Friederich, N. Caspers and G.M. Klecka. 2011. Early life-stage and multigenerational study with bisphenol A and fathead minnows (Pimephales promelas). Ecotoxicology and Environmental Safety 74: 1548-1557.","721"]
["Freshwater/non-metal/non-plant","737-1",66,0.64077669902912626,"The highest possible grade for this datum is acceptable.","Potamopyrgus antipodarum","Adult females","28 d","NOEC","Growth","0.04 mg/L","Invertebrate","Mollusca","Gastropoda","Recon water and solvent control (DMSO)","16+/-1oC","Chronic","7.5-8.5","770 +- 100 uS/cm","Stange, D., A. Sieratowicz, R. Horres and J. Oehlmann. 2012. Freshwater mudsnail (Potamopyrugus antipodarum) estrogen receptor: Identification and expression analysis under exposure to (xeno-) hormones. Ecotoxicology and Environmental Safety 75: 94-101","737"]
["Freshwater/non-metal/non-plant","732-1",73,0.70873786407766992,"The highest possible grade for this datum is acceptable.","Rhinella arenarum","Embryos","14 d","NOEC","Mortality","1.8 mg/L","Vertebrate","Chordata","Amphibia","AS solution","20+/-2oC","Chronic","","","Wolkowicz I.R.H., J. Herkovits and C.S.P. Coll. 2014. Stage-dependent toxicity of bisphenol A on Rhinella arenarum (Anura, Bufonidae) embryos and larvae. Environmental Toxicology 29: 146-154.","732"]
["Freshwater/non-metal/plant","287-2",73,0.70873786407766992,null,"Selenastrum capricornutum",null,"96 h","EC50","Cell Counts","2.73 mg/L","Plant","Chlorophyta","Chlorophyceae","algal assay medium","24 +/- 2oC","Chronic",null,null,"Alexander, H.C., D. C. Dill, L.W. Smith, P.D. Guiney and P. Dorn. 1988. Bisphenol A: Acute Aquatic Toxicity. Environmental Toxicology and Chemistry 7: 19-26.","287"]
["Freshwater/non-metal/plant","287-1",69,0.66990291262135926,null,"Selenastrum capricornutum",null,"96 h","EC50","Cell Volume","3.10 mg/L","Plant","Chlorophyta","Chlorophyceae","Yes - algal assay medium","24 +/- 2oC","Chronic","","","Alexander, H.C., D. C. Dill, L.W. Smith, P.D. Guiney and P. Dorn. 1988. Bisphenol A: Acute Aquatic Toxicity. Environmental Toxicology and Chemistry 7: 19-26.","287"]
["Freshwater/non-metal/non- plant","287-3",65,0.7142857142857143,"","Selenastrum capricornutum","unknown","96 hrs","EC10","Cell volume","1680 ug/L","Green algae","Chlorophyta","Chlorophyceae","Algal assay medium",24,"Chronic","","N.A.","Alexander, H.C., D. C. Dill, L.W. Smith, P.D. Guiney and P. Dorn. 1988. Bisphenol A: Acute Aquatic Toxicity. Environmental Toxicology and Chemistry 7: 19-26.","287"]
["Freshwater/non-metal/non- plant","287-4",65,0.7142857142857143,"","Selenastrum capricornutum","unknown","96 hrs","EC10","Cell volume","1360 ug/L","Green algae","Chlorophyta","Chlorophyceae","Algal assay medium",24,"Chronic","","N.A.","Alexander, H.C., D. C. Dill, L.W. Smith, P.D. Guiney and P. Dorn. 1988. Bisphenol A: Acute Aquatic Toxicity. Environmental Toxicology and Chemistry 7: 19-26.","287"]
["Freshwater/non-metal/non-plant","726-3",89,0.86407766990291257,null,"Xenopus laevis","4 d old larvae","90 d","NOEC","Development","0.5 mg/L","Vertebrate","Chordata","Amphibia","Dechlorinated tap water","22+/-1oC","Chronic","7.19-7.79","212-237uS/cm","Pickford, D.B., M.J. Hetheridge, J.E. Caunter, A. Tilghman Hall and T.H. Hutchinson. 2003. Assessing chronic toxicity of bisphenol A to larvae of the African clawed frog (Xenopus laevis) in a flow-through exposure system. Chemosphere 53: 223-235","726"]
["Freshwater/non-metal/non-plant","726-1",89,0.86407766990291257,null,"Xenopus laevis","4 d old larvae","90 d","NOEC","Mortality","0.5 mg/L","Vertebrate","Chordata","Amphibia","Dechlorinated tap water","22+/-1oC","Chronic","7.19-7.79","212-237uS/cm","Pickford, D.B., M.J. Hetheridge, J.E. Caunter, A. Tilghman Hall and T.H. Hutchinson. 2003. Assessing chronic toxicity of bisphenol A to larvae of the African clawed frog (Xenopus laevis) in a flow-through exposure system. Chemosphere 53: 223-235","726"]
["Freshwater/non-metal/non-plant","726-2",82,0.79611650485436891,null,"Xenopus laevis","4 d old larvae","90 d","LOEC","Mortality","0.5 mg/L","Vertebrate","Chordata","Amphibia","Dechlorinated tap water","22+/-1oC","Chronic","7.19-7.79","212-237uS/cm","Pickford, D.B., M.J. Hetheridge, J.E. Caunter, A. Tilghman Hall and T.H. Hutchinson. 2003. Assessing chronic toxicity of bisphenol A to larvae of the African clawed frog (Xenopus laevis) in a flow-through exposure system. Chemosphere 53: 223-235","726"]
["Freshwater/non-metal/non- plant","738-2",71,0.78021978021978022,"The highest possible grade for this datum is acceptable.","Marisa cornuarietis","embryo","14 days","NOEC","Reproduction","50 ug/L","Macroinvertebrate","Mollusca","Gastropoda","Aquaria water (tap water)","25.5-26.5oC","Chronic","Not stated","N.A.","Schirling, M., A. Bohlen, R. Triebskorn and H.-R. Kohler. 2006. An invertebrate embryo test with the apple snail Marisa cornuarietis to assess effects of potential developmental and endocrine disruptors. Chemosphere 64: 1730-1738","738"]
["Freshwater/non-metal/non- plant","297-5",73,0.80219780219780223,"The highest possible grade for this datum is acceptable.","Daphnia magna","Neonate","24 hrs","LC50","Survival","600 ug/L","Macroinvertebrate","Arthropoda","Branchiopoda","Culture water","19-21oC","Chronic","Not stated","N.A.","Brennan, S.J., C.A. Brougham, J.J. Roche and A.M. Fogarty. 2006. Multi-generational effects of four selected environmental oestrogens on Daphnia magna. Chemosphere 64: 49-55","297"]
["Freshwater/non-metal/non- plant","297-6",73,0.80219780219780223,"The highest possible grade for this datum is acceptable.","Daphnia magna","Neonate","24 hrs","EC50","Immobilisation","7750 ug/L","Macroinvertebrate","Arthropoda","Branchiopoda","Culture water","19-21oC","Chronic","Not stated","N.A.","Brennan, S.J., C.A. Brougham, J.J. Roche and A.M. Fogarty. 2006. Multi-generational effects of four selected environmental oestrogens on Daphnia magna. Chemosphere 64: 49-55","297"]
["Freshwater/non-metal/non- plant","735-2",74,0.81318681318681318,"","Physa acuta","Eggs","21 day","LOEC","Mortality","500 ug/L","Macroinvertebrate","Mollusca","Gastropoda","reconstituted water","20oC","Chronic","Not stated","N.A.","Sanchez-Arguello, P., N. Aparicio and C. Fernandez. 2012. Linking embryo toxicity with genotoxic responses in the freshwater snail Physa acuta: Single exposure to benzo(a)pyrene, fluoxetine, bisphenol A, vinclozolin and exposure to binary mixtures with benzo(a)pyrene. Ecotoxicology and Environmental Safety 80: 152-160","735"]
["Freshwater/non-metal/plant","745-1",52,0.59090909090909094,"The highest possible grade for this datum is acceptable.","Monoraphidium braunii","N.A.","96 hrs","NOEC","Growth","4000 ug/L","Microalga","Chlorophyta","FW04 growth media","22oC","22oC","Chronic",8.3000000000000007,"N.A.","Gattullo, C.E., H. Bahrs, C.E.W. Steinberg and E. Loffredo. 2012. Removal of bipshenol A by the freshwater green alga Monoraphidium braunii and the role of natural organic matter. Science of the Total Environment 416:501-506","745"]
["Freshwater/non-metal/plant","745-1",52,0.59090909090909094,"The highest possible grade for this datum is acceptable.","Monoraphidium braunii","N.A.","96 hrs","LOEC","Growth","10000 ug/L","Microalga","Chlorophyta","FW04 growth media","22oC","22oC","Chronic",8.3000000000000007,"N.A.","Gattullo, C.E., H. Bahrs, C.E.W. Steinberg and E. Loffredo. 2012. Removal of bipshenol A by the freshwater green alga Monoraphidium braunii and the role of natural organic matter. Science of the Total Environment 416:501-506","745"]
["Freshwater/non-metal/plant","745-3",52,0.59090909090909094,"The highest possible grade for this datum is acceptable.","Monoraphidium braunii","N.A.","96 hrs","NOEC","Growth","2000 ug/L","Microalga","Chlorophyta","FW04 growth media","22oC","22oC","Chronic",8.3000000000000007,"N.A.","Gattullo, C.E., H. Bahrs, C.E.W. Steinberg and E. Loffredo. 2012. Removal of bipshenol A by the freshwater green alga Monoraphidium braunii and the role of natural organic matter. Science of the Total Environment 416:501-506","745"]
["Freshwater/non-metal/plant","745-4",52,0.59090909090909094,"The highest possible grade for this datum is acceptable.","Monoraphidium braunii","N.A.","96 hrs","LOEC","Growth","4000 ug/L","Microalga","Chlorophyta","FW04 growth media","22oC","22oC","Chronic",8.3000000000000007,"N.A.","Gattullo, C.E., H. Bahrs, C.E.W. Steinberg and E. Loffredo. 2012. Removal of bipshenol A by the freshwater green alga Monoraphidium braunii and the role of natural organic matter. Science of the Total Environment 416:501-506","745"]
["Freshwater/non-metal/plant","745-5",52,0.59090909090909094,"The highest possible grade for this datum is acceptable.","Monoraphidium braunii","N.A.","96 hrs","LOEC","Growth","2000 ug/L","Microalga","Chlorophyta","FW04 growth media","22oC","22oC","Chronic",8.3000000000000007,"N.A.","Gattullo, C.E., H. Bahrs, C.E.W. Steinberg and E. Loffredo. 2012. Removal of bipshenol A by the freshwater green alga Monoraphidium braunii and the role of natural organic matter. Science of the Total Environment 416:501-506","745"]

{"sheet":"Sheet1","index":4,"n_rows":70,"n_cols":29,"rows_kept":70,"cut":false,"hidden":true,"merged":[]}
[]
[{"$f":"#REF!","v":{"$error":"#REF!"}},{"$f":"#REF!","v":{"$error":"#REF!"}},{"$f":"#REF!","v":{"$error":"#REF!"}},{"$f":"#REF!","v":{"$error":"#REF!"}},{"$f":"#REF!","v":{"$error":"#REF!"}},{"$f":"#REF!","v":{"$error":"#REF!"}},{"$f":"#REF!","v":{"$error":"#REF!"}},{"$f":"#REF!","v":{"$error":"#REF!"}},{"$f":"#REF!","v":{"$error":"#REF!"}},{"$f":"#REF!","v":{"$error":"#REF!"}},{"$f":"#REF!","v":{"$error":"#REF!"}},{"$f":"#REF!","v":{"$error":"#REF!"}},{"$f":"#REF!","v":{"$error":"#REF!"}},{"$f":"#REF!","v":{"$error":"#REF!"}},{"$f":"#REF!","v":{"$error":"#REF!"}},{"$f":"#REF!","v":{"$error":"#REF!"}},{"$f":"#REF!","v":{"$error":"#REF!"}},{"$f":"#REF!","v":{"$error":"#REF!"}},{"$f":"#REF!","v":{"$error":"#REF!"}},{"$f":"#REF!","v":{"$error":"#REF!"}},{"$f":"#REF!","v":{"$error":"#REF!"}},{"$f":"#REF!","v":{"$error":"#REF!"}},{"$f":"#REF!","v":{"$error":"#REF!"}},{"$f":"#REF!","v":{"$error":"#REF!"}},{"$f":"#REF!","v":{"$error":"#REF!"}},{"$f":"#REF!","v":{"$error":"#REF!"}}]
[{"$f":"#REF!","v":{"$error":"#REF!"}},{"$f":"#REF!","v":{"$error":"#REF!"}},{"$f":"#REF!","v":{"$error":"#REF!"}},{"$f":"#REF!","v":{"$error":"#REF!"}}]
[{"$f":"#REF!","v":{"$error":"#REF!"}},{"$f":"#REF!","v":{"$error":"#REF!"}},{"$f":"#REF!","v":{"$error":"#REF!"}},{"$f":"#REF!","v":{"$error":"#REF!"}},{"$f":"#REF!","v":{"$error":"#REF!"}},{"$f":"#REF!","v":{"$error":"#REF!"}},{"$f":"#REF!","v":{"$error":"#REF!"}},{"$f":"#REF!","v":{"$error":"#REF!"}},{"$f":"#REF!","v":{"$error":"#REF!"}},{"$f":"#REF!","v":{"$error":"#REF!"}},{"$f":"#REF!","v":{"$error":"#REF!"}},{"$f":"#REF!","v":{"$error":"#REF!"}},{"$f":"#REF!","v":{"$error":"#REF!"}},{"$f":"#REF!","v":{"$error":"#REF!"}},{"$f":"#REF!","v":{"$error":"#REF!"}},{"$f":"#REF!","v":{"$error":"#REF!"}},{"$f":"#REF!","v":{"$error":"#REF!"}},{"$f":"#REF!","v":{"$error":"#REF!"}},{"$f":"#REF!","v":{"$error":"#REF!"}},{"$f":"#REF!","v":{"$error":"#REF!"}},{"$f":"#REF!","v":{"$error":"#REF!"}},{"$f":"#REF!","v":{"$error":"#REF!"}},{"$f":"#REF!","v":{"$error":"#REF!"}},{"$f":"#REF!","v":{"$error":"#REF!"}},{"$f":"#REF!","v":{"$error":"#REF!"}},{"$f":"#REF!","v":{"$error":"#REF!"}}]
["Answers",{"$f":"IF(#REF!=0,\"\",#REF!)","v":{"$error":"#REF!"}},{"$f":"IF(#REF!=0,\"\",#REF!)","v":{"$error":"#REF!"}},{"$f":"IF(#REF!=0,\"\",#REF!)","v":{"$error":"#REF!"}},{"$f":"IF(#REF!=0,\"\",#REF!)","v":{"$error":"#REF!"}},{"$f":"IF(#REF!=0,\"\",#REF!)","v":{"$error":"#REF!"}},{"$f":"IF(#REF!=0,\"\",#REF!)","v":{"$error":"#REF!"}},{"$f":"IF(#REF!=0,\"\",#REF!)","v":{"$error":"#REF!"}},{"$f":"IF(#REF!=0,\"\",#REF!)","v":{"$error":"#REF!"}},{"$f":"IF(#REF!=0,\"\",#REF!)","v":{"$error":"#REF!"}},{"$f":"IF(#REF!=0,\"\",#REF!)","v":{"$error":"#REF!"}},{"$f":"IF(#REF!=0,\"\",#REF!)","v":{"$error":"#REF!"}},{"$f":"IF(#REF!=0,\"\",#REF!)","v":{"$error":"#REF!"}},{"$f":"IF(#REF!=0,\"\",#REF!)","v":{"$error":"#REF!"}},{"$f":"IF(#REF!=0,\"\",#REF!)","v":{"$error":"#REF!"}},{"$f":"IF(#REF!=0,\"\",#REF!)","v":{"$error":"#REF!"}},{"$f":"IF(#REF!=0,\"\",#REF!)","v":{"$error":"#REF!"}},{"$f":"IF(#REF!=0,\"\",#REF!)","v":{"$error":"#REF!"}},{"$f":"IF(#REF!=0,\"\",#REF!)","v":{"$error":"#REF!"}},{"$f":"IF(#REF!=0,\"\",#REF!)","v":{"$error":"#REF!"}},{"$f":"IF(#REF!=0,\"\",#REF!)","v":{"$error":"#REF!"}},{"$f":"IF(#REF!=0,\"\",#REF!)","v":{"$error":"#REF!"}},{"$f":"IF(#REF!=0,\"\",#REF!)","v":{"$error":"#REF!"}},{"$f":"IF(#REF!=0,\"\",#REF!)","v":{"$error":"#REF!"}}]
[{"$f":"#REF!","v":{"$error":"#REF!"}},{"$f":"#REF!","v":{"$error":"#REF!"}},{"$f":"#REF!","v":{"$error":"#REF!"}},{"$f":"#REF!","v":{"$error":"#REF!"}},{"$f":"#REF!","v":{"$error":"#REF!"}},{"$f":"#REF!","v":{"$error":"#REF!"}},{"$f":"#REF!","v":{"$error":"#REF!"}},{"$f":"#REF!","v":{"$error":"#REF!"}}]
[{"$f":"#REF!","v":{"$error":"#REF!"}},{"$f":"#REF!","v":{"$error":"#REF!"}},{"$f":"#REF!","v":{"$error":"#REF!"}},{"$f":"#REF!","v":{"$error":"#REF!"}},{"$f":"#REF!","v":{"$error":"#REF!"}},{"$f":"IF(#REF!=0,\"\",#REF!)","v":{"$error":"#REF!"}},{"$f":"IF(#REF!=0,\"\",#REF!)","v":{"$error":"#REF!"}},{"$f":"IF(#REF!=0,\"\",#REF!)","v":{"$error":"#REF!"}}]
[]
[]
[]
[{"$f":"#REF!","v":{"$error":"#REF!"}},{"$f":"#REF!","v":{"$error":"#REF!"}},{"$f":"#REF!","v":{"$error":"#REF!"}},{"$f":"#REF!","v":{"$error":"#REF!"}},{"$f":"#REF!","v":{"$error":"#REF!"}},{"$f":"#REF!","v":{"$error":"#REF!"}},{"$f":"#REF!","v":{"$error":"#REF!"}},{"$f":"#REF!","v":{"$error":"#REF!"}},{"$f":"#REF!","v":{"$error":"#REF!"}},{"$f":"#REF!","v":{"$error":"#REF!"}},{"$f":"#REF!","v":{"$error":"#REF!"}},{"$f":"#REF!","v":{"$error":"#REF!"}},{"$f":"#REF!","v":{"$error":"#REF!"}},{"$f":"#REF!","v":{"$error":"#REF!"}},{"$f":"#REF!","v":{"$error":"#REF!"}},{"$f":"#REF!","v":{"$error":"#REF!"}},{"$f":"#REF!","v":{"$error":"#REF!"}},{"$f":"#REF!","v":{"$error":"#REF!"}},{"$f":"#REF!","v":{"$error":"#REF!"}},{"$f":"#REF!","v":{"$error":"#REF!"}},{"$f":"#REF!","v":{"$error":"#REF!"}},{"$f":"#REF!","v":{"$error":"#REF!"}},{"$f":"#REF!","v":{"$error":"#REF!"}},{"$f":"#REF!","v":{"$error":"#REF!"}},{"$f":"#REF!","v":{"$error":"#REF!"}},{"$f":"#REF!","v":{"$error":"#REF!"}},{"$f":"#REF!","v":{"$error":"#REF!"}}]
[{"$f":"#REF!","v":{"$error":"#REF!"}},{"$f":"#REF!","v":{"$error":"#REF!"}},{"$f":"#REF!","v":{"$error":"#REF!"}},{"$f":"#REF!","v":{"$error":"#REF!"}}]
[{"$f":"#REF!","v":{"$error":"#REF!"}},{"$f":"#REF!","v":{"$error":"#REF!"}},{"$f":"#REF!","v":{"$error":"#REF!"}},{"$f":"#REF!","v":{"$error":"#REF!"}},{"$f":"#REF!","v":{"$error":"#REF!"}},{"$f":"#REF!","v":{"$error":"#REF!"}},{"$f":"#REF!","v":{"$error":"#REF!"}},{"$f":"#REF!","v":{"$error":"#REF!"}},{"$f":"#REF!","v":{"$error":"#REF!"}},{"$f":"#REF!","v":{"$error":"#REF!"}},{"$f":"#REF!","v":{"$error":"#REF!"}},{"$f":"#REF!","v":{"$error":"#REF!"}},{"$f":"#REF!","v":{"$error":"#REF!"}},{"$f":"#REF!","v":{"$error":"#REF!"}},{"$f":"#REF!","v":{"$error":"#REF!"}},{"$f":"#REF!","v":{"$error":"#REF!"}},{"$f":"#REF!","v":{"$error":"#REF!"}},{"$f":"#REF!","v":{"$error":"#REF!"}},{"$f":"#REF!","v":{"$error":"#REF!"}},{"$f":"#REF!","v":{"$error":"#REF!"}},{"$f":"#REF!","v":{"$error":"#REF!"}},{"$f":"#REF!","v":{"$error":"#REF!"}},{"$f":"#REF!","v":{"$error":"#REF!"}},{"$f":"#REF!","v":{"$error":"#REF!"}},{"$f":"#REF!","v":{"$error":"#REF!"}},{"$f":"#REF!","v":{"$error":"#REF!"}},{"$f":"#REF!","v":{"$error":"#REF!"}}]
[{"$f":"#REF!","v":{"$error":"#REF!"}},{"$f":"IF(#REF!=0,\"\",#REF!)","v":{"$error":"#REF!"}},{"$f":"IF(#REF!=0,\"\",#REF!)","v":{"$error":"#REF!"}},{"$f":"IF(#REF!=0,\"\",#REF!)","v":{"$error":"#REF!"}},{"$f":"IF(#REF!=0,\"\",#REF!)","v":{"$error":"#REF!"}},null,{"$f":"IF(#REF!=0,\"\",#REF!)","v":{"$error":"#REF!"}},{"$f":"IF(#REF!=0,\"\",#REF!)","v":{"$error":"#REF!"}},{"$f":"IF(#REF!=0,\"\",#REF!)","v":{"$error":"#REF!"}},{"$f":"IF(#REF!=0,\"\",#REF!)","v":{"$error":"#REF!"}},{"$f":"IF(#REF!=0,\"\",#REF!)","v":{"$error":"#REF!"}},{"$f":"IF(#REF!=0,\"\",#REF!)","v":{"$error":"#REF!"}},{"$f":"IF(#REF!=0,\"\",#REF!)","v":{"$error":"#REF!"}},{"$f":"IF(#REF!=0,\"\",#REF!)","v":{"$error":"#REF!"}},{"$f":"IF(#REF!=0,\"\",#REF!)","v":{"$error":"#REF!"}},{"$f":"IF(#REF!=0,\"\",#REF!)","v":{"$error":"#REF!"}},{"$f":"IF(#REF!=0,\"\",#REF!)","v":{"$error":"#REF!"}},{"$f":"IF(#REF!=0,\"\",#REF!)","v":{"$error":"#REF!"}},{"$f":"IF(#REF!=0,\"\",#REF!)","v":{"$error":"#REF!"}},{"$f":"IF(#REF!=0,\"\",#REF!)","v":{"$error":"#REF!"}},{"$f":"IF(#REF!=0,\"\",#REF!)","v":{"$error":"#REF!"}},{"$f":"IF(#REF!=0,\"\",#REF!)","v":{"$error":"#REF!"}},{"$f":"IF(#REF!=0,\"\",#REF!)","v":{"$error":"#REF!"}},{"$f":"IF(#REF!=0,\"\",#REF!)","v":{"$error":"#REF!"}},{"$f":"IF(#REF!=0,\"\",#REF!)","v":{"$error":"#REF!"}}]
[{"$f":"#REF!","v":{"$error":"#REF!"}},{"$f":"#REF!","v":{"$error":"#REF!"}},{"$f":"#REF!","v":{"$error":"#REF!"}},{"$f":"#REF!","v":{"$error":"#REF!"}},{"$f":"#REF!","v":{"$error":"#REF!"}},{"$f":"#REF!","v":{"$error":"#REF!"}},{"$f":"#REF!","v":{"$error":"#REF!"}},{"$f":"#REF!","v":{"$error":"#REF!"}}]
[{"$f":"#REF!","v":{"$error":"#REF!"}},{"$f":"#REF!","v":{"$error":"#REF!"}},{"$f":"#REF!","v":{"$error":"#REF!"}},{"$f":"#REF!","v":{"$error":"#REF!"}},{"$f":"#REF!","v":{"$error":"#REF!"}},{"$f":"IF(#REF!=0,\"\",#REF!)","v":{"$error":"#REF!"}},{"$f":"IF(#REF!=0,\"\",#REF!)","v":{"$error":"#REF!"}},{"$f":"IF(#REF!=0,\"\",#REF!)","v":{"$error":"#REF!"}}]
[]
[]
[]
[{"$f":"#REF!","v":{"$error":"#REF!"}},{"$f":"#REF!","v":{"$error":"#REF!"}},{"$f":"#REF!","v":{"$error":"#REF!"}},{"$f":"#REF!","v":{"$error":"#REF!"}},{"$f":"#REF!","v":{"$error":"#REF!"}},{"$f":"#REF!","v":{"$error":"#REF!"}},{"$f":"#REF!","v":{"$error":"#REF!"}},{"$f":"#REF!","v":{"$error":"#REF!"}},{"$f":"#REF!","v":{"$error":"#REF!"}},{"$f":"#REF!","v":{"$error":"#REF!"}},{"$f":"#REF!","v":{"$error":"#REF!"}},{"$f":"#REF!","v":{"$error":"#REF!"}},{"$f":"#REF!","v":{"$error":"#REF!"}},{"$f":"#REF!","v":{"$error":"#REF!"}},{"$f":"#REF!","v":{"$error":"#REF!"}},{"$f":"#REF!","v":{"$error":"#REF!"}},{"$f":"#REF!","v":{"$error":"#REF!"}},{"$f":"#REF!","v":{"$error":"#REF!"}},{"$f":"#REF!","v":{"$error":"#REF!"}},{"$f":"#REF!","v":{"$error":"#REF!"}},{"$f":"#REF!","v":{"$error":"#REF!"}},{"$f":"#REF!","v":{"$error":"#REF!"}},{"$f":"#REF!","v":{"$error":"#REF!"}},{"$f":"#REF!","v":{"$error":"#REF!"}},{"$f":"#REF!","v":{"$error":"#REF!"}},{"$f":"#REF!","v":{"$error":"#REF!"}}]
[{"$f":"#REF!","v":{"$error":"#REF!"}},{"$f":"#REF!","v":{"$error":"#REF!"}},{"$f":"#REF!","v":{"$error":"#REF!"}},{"$f":"#REF!","v":{"$error":"#REF!"}}]
[{"$f":"#REF!","v":{"$error":"#REF!"}},{"$f":"#REF!","v":{"$error":"#REF!"}},{"$f":"#REF!","v":{"$error":"#REF!"}},{"$f":"#REF!","v":{"$error":"#REF!"}},{"$f":"#REF!","v":{"$error":"#REF!"}},{"$f":"#REF!","v":{"$error":"#REF!"}},{"$f":"#REF!","v":{"$error":"#REF!"}},{"$f":"#REF!","v":{"$error":"#REF!"}},{"$f":"#REF!","v":{"$error":"#REF!"}},{"$f":"#REF!","v":{"$error":"#REF!"}},{"$f":"#REF!","v":{"$error":"#REF!"}},{"$f":"#REF!","v":{"$error":"#REF!"}},{"$f":"#REF!","v":{"$error":"#REF!"}},{"$f":"#REF!","v":{"$error":"#REF!"}},{"$f":"#REF!","v":{"$error":"#REF!"}},{"$f":"#REF!","v":{"$error":"#REF!"}},{"$f":"#REF!","v":{"$error":"#REF!"}},{"$f":"#REF!","v":{"$error":"#REF!"}},{"$f":"#REF!","v":{"$error":"#REF!"}},{"$f":"#REF!","v":{"$error":"#REF!"}},{"$f":"#REF!","v":{"$error":"#REF!"}},{"$f":"#REF!","v":{"$error":"#REF!"}},{"$f":"#REF!","v":{"$error":"#REF!"}},{"$f":"#REF!","v":{"$error":"#REF!"}},{"$f":"#REF!","v":{"$error":"#REF!"}},{"$f":"#REF!","v":{"$error":"#REF!"}}]
[{"$f":"#REF!","v":{"$error":"#REF!"}},{"$f":"IF(#REF!=0,\"\",#REF!)","v":{"$error":"#REF!"}},{"$f":"IF(#REF!=0,\"\",#REF!)","v":{"$error":"#REF!"}},{"$f":"IF(#REF!=0,\"\",#REF!)","v":{"$error":"#REF!"}},{"$f":"IF(#REF!=0,\"\",#REF!)","v":{"$error":"#REF!"}},{"$f":"IF(#REF!=0,\"\",#REF!)","v":{"$error":"#REF!"}},{"$f":"IF(#REF!=0,\"\",#REF!)","v":{"$error":"#REF!"}},{"$f":"IF(#REF!=0,\"\",#REF!)","v":{"$error":"#REF!"}},{"$f":"IF(#REF!=0,\"\",#REF!)","v":{"$error":"#REF!"}},{"$f":"IF(#REF!=0,\"\",#REF!)","v":{"$error":"#REF!"}},{"$f":"IF(#REF!=0,\"\",#REF!)","v":{"$error":"#REF!"}},{"$f":"IF(#REF!=0,\"\",#REF!)","v":{"$error":"#REF!"}},{"$f":"IF(#REF!=0,\"\",#REF!)","v":{"$error":"#REF!"}},{"$f":"IF(#REF!=0,\"\",#REF!)","v":{"$error":"#REF!"}},{"$f":"IF(#REF!=0,\"\",#REF!)","v":{"$error":"#REF!"}},{"$f":"IF(#REF!=0,\"\",#REF!)","v":{"$error":"#REF!"}},{"$f":"IF(#REF!=0,\"\",#REF!)","v":{"$error":"#REF!"}},{"$f":"IF(#REF!=0,\"\",#REF!)","v":{"$error":"#REF!"}},{"$f":"IF(#REF!=0,\"\",#REF!)","v":{"$error":"#REF!"}},{"$f":"IF(#REF!=0,\"\",#REF!)","v":{"$error":"#REF!"}},{"$f":"IF(#REF!=0,\"\",#REF!)","v":{"$error":"#REF!"}},{"$f":"IF(#REF!=0,\"\",#REF!)","v":{"$error":"#REF!"}},{"$f":"IF(#REF!=0,\"\",#REF!)","v":{"$error":"#REF!"}},{"$f":"IF(#REF!=0,\"\",#REF!)","v":{"$error":"#REF!"}}]
[{"$f":"#REF!","v":{"$error":"#REF!"}},{"$f":"#REF!","v":{"$error":"#REF!"}},{"$f":"#REF!","v":{"$error":"#REF!"}},{"$f":"#REF!","v":{"$error":"#REF!"}},{"$f":"#REF!","v":{"$error":"#REF!"}},{"$f":"#REF!","v":{"$error":"#REF!"}},{"$f":"#REF!","v":{"$error":"#REF!"}},{"$f":"#REF!","v":{"$error":"#REF!"}}]
[{"$f":"#REF!","v":{"$error":"#REF!"}},{"$f":"#REF!","v":{"$error":"#REF!"}},{"$f":"#REF!","v":{"$error":"#REF!"}},{"$f":"#REF!","v":{"$error":"#REF!"}},{"$f":"#REF!","v":{"$error":"#REF!"}},{"$f":"IF(#REF!=0,\"\",#REF!)","v":{"$error":"#REF!"}},{"$f":"IF(#REF!=0,\"\",#REF!)","v":{"$error":"#REF!"}},{"$f":"IF(#REF!=0,\"\",#REF!)","v":{"$error":"#REF!"}}]
[]
[]
[]
[{"$f":"#REF!","v":{"$error":"#REF!"}},{"$f":"#REF!","v":{"$error":"#REF!"}},{"$f":"#REF!","v":{"$error":"#REF!"}},{"$f":"#REF!","v":{"$error":"#REF!"}},{"$f":"#REF!","v":{"$error":"#REF!"}},{"$f":"#REF!","v":{"$error":"#REF!"}},{"$f":"#REF!","v":{"$error":"#REF!"}},{"$f":"#REF!","v":{"$error":"#REF!"}},{"$f":"#REF!","v":{"$error":"#REF!"}},{"$f":"#REF!","v":{"$error":"#REF!"}},{"$f":"#REF!","v":{"$error":"#REF!"}},{"$f":"#REF!","v":{"$error":"#REF!"}},{"$f":"#REF!","v":{"$error":"#REF!"}},{"$f":"#REF!","v":{"$error":"#REF!"}},{"$f":"#REF!","v":{"$error":"#REF!"}},{"$f":"#REF!","v":{"$error":"#REF!"}},{"$f":"#REF!","v":{"$error":"#REF!"}},{"$f":"#REF!","v":{"$error":"#REF!"}},{"$f":"#REF!","v":{"$error":"#REF!"}},{"$f":"#REF!","v":{"$error":"#REF!"}},{"$f":"#REF!","v":{"$error":"#REF!"}},{"$f":"#REF!","v":{"$error":"#REF!"}},{"$f":"#REF!","v":{"$error":"#REF!"}},{"$f":"#REF!","v":{"$error":"#REF!"}},{"$f":"#REF!","v":{"$error":"#REF!"}},{"$f":"#REF!","v":{"$error":"#REF!"}},{"$f":"#REF!","v":{"$error":"#REF!"}},{"$f":"#REF!","v":{"$error":"#REF!"}},{"$f":"#REF!","v":{"$error":"#REF!"}}]
[{"$f":"#REF!","v":{"$error":"#REF!"}},{"$f":"#REF!","v":{"$error":"#REF!"}},{"$f":"#REF!","v":{"$error":"#REF!"}},{"$f":"#REF!","v":{"$error":"#REF!"}}]
[{"$f":"#REF!","v":{"$error":"#REF!"}},{"$f":"#REF!","v":{"$error":"#REF!"}},{"$f":"#REF!","v":{"$error":"#REF!"}},{"$f":"#REF!","v":{"$error":"#REF!"}},{"$f":"#REF!","v":{"$error":"#REF!"}},{"$f":"#REF!","v":{"$error":"#REF!"}},{"$f":"#REF!","v":{"$error":"#REF!"}},{"$f":"#REF!","v":{"$error":"#REF!"}},{"$f":"#REF!","v":{"$error":"#REF!"}},{"$f":"#REF!","v":{"$error":"#REF!"}},{"$f":"#REF!","v":{"$error":"#REF!"}},{"$f":"#REF!","v":{"$error":"#REF!"}},{"$f":"#REF!","v":{"$error":"#REF!"}},{"$f":"#REF!","v":{"$error":"#REF!"}},{"$f":"#REF!","v":{"$error":"#REF!"}},{"$f":"#REF!","v":{"$error":"#REF!"}},{"$f":"#REF!","v":{"$error":"#REF!"}},{"$f":"#REF!","v":{"$error":"#REF!"}},{"$f":"#REF!","v":{"$error":"#REF!"}},{"$f":"#REF!","v":{"$error":"#REF!"}},{"$f":"#REF!","v":{"$error":"#REF!"}},{"$f":"#REF!","v":{"$error":"#REF!"}},{"$f":"#REF!","v":{"$error":"#REF!"}},{"$f":"#REF!","v":{"$error":"#REF!"}},{"$f":"#REF!","v":{"$error":"#REF!"}},{"$f":"#REF!","v":{"$error":"#REF!"}},{"$f":"#REF!","v":{"$error":"#REF!"}},{"$f":"#REF!","v":{"$error":"#REF!"}},{"$f":"#REF!","v":{"$error":"#REF!"}}]
[{"$f":"#REF!","v":{"$error":"#REF!"}},{"$f":"IF(#REF!=\"\",\"\",#REF!)","v":{"$error":"#REF!"}},{"$f":"IF(#REF!=\"\",\"\",#REF!)","v":{"$error":"#REF!"}},{"$f":"IF(#REF!=\"\",\"\",#REF!)","v":{"$error":"#REF!"}},{"$f":"IF(#REF!=\"\",\"\",#REF!)","v":{"$error":"#REF!"}},{"$f":"IF(#REF!=\"\",\"\",#REF!)","v":{"$error":"#REF!"}},{"$f":"IF(#REF!=\"\",\"\",#REF!)","v":{"$error":"#REF!"}},{"$f":"IF(#REF!=\"\",\"\",#REF!)","v":{"$error":"#REF!"}},{"$f":"IF(#REF!=\"\",\"\",#REF!)","v":{"$error":"#REF!"}},{"$f":"IF(#REF!=\"\",\"\",#REF!)","v":{"$error":"#REF!"}},{"$f":"IF(#REF!=\"\",\"\",#REF!)","v":{"$error":"#REF!"}},{"$f":"IF(#REF!=\"\",\"\",#REF!)","v":{"$error":"#REF!"}},{"$f":"IF(#REF!=\"\",\"\",#REF!)","v":{"$error":"#REF!"}},{"$f":"IF(#REF!=\"\",\"\",#REF!)","v":{"$error":"#REF!"}},{"$f":"IF(#REF!=\"\",\"\",#REF!)","v":{"$error":"#REF!"}},{"$f":"IF(#REF!=\"\",\"\",#REF!)","v":{"$error":"#REF!"}},{"$f":"IF(#REF!=\"\",\"\",#REF!)","v":{"$error":"#REF!"}},{"$f":"IF(#REF!=\"\",\"\",#REF!)","v":{"$error":"#REF!"}},{"$f":"IF(#REF!=\"\",\"\",#REF!)","v":{"$error":"#REF!"}},{"$f":"IF(#REF!=\"\",\"\",#REF!)","v":{"$error":"#REF!"}},{"$f":"IF(#REF!=\"\",\"\",#REF!)","v":{"$error":"#REF!"}},{"$f":"IF(#REF!=\"\",\"\",#REF!)","v":{"$error":"#REF!"}},{"$f":"IF(#REF!=\"\",\"\",#REF!)","v":{"$error":"#REF!"}},{"$f":"IF(#REF!=\"\",\"\",#REF!)","v":{"$error":"#REF!"}},{"$f":"IF(#REF!=\"\",\"\",#REF!)","v":{"$error":"#REF!"}},{"$f":"IF(#REF!=\"\",\"\",#REF!)","v":{"$error":"#REF!"}},{"$f":"IF(#REF!=\"\",\"\",#REF!)","v":{"$error":"#REF!"}}]
[{"$f":"#REF!","v":{"$error":"#REF!"}},{"$f":"#REF!","v":{"$error":"#REF!"}},{"$f":"#REF!","v":{"$error":"#REF!"}},{"$f":"#REF!","v":{"$error":"#REF!"}},{"$f":"#REF!","v":{"$error":"#REF!"}},{"$f":"#REF!","v":{"$error":"#REF!"}},{"$f":"#REF!","v":{"$error":"#REF!"}},{"$f":"#REF!","v":{"$error":"#REF!"}}]
[{"$f":"#REF!","v":{"$error":"#REF!"}},{"$f":"#REF!","v":{"$error":"#REF!"}},{"$f":"#REF!","v":{"$error":"#REF!"}},{"$f":"#REF!","v":{"$error":"#REF!"}},{"$f":"#REF!","v":{"$error":"#REF!"}},{"$f":"IF(#REF!=\"\",\"\",#REF!)","v":{"$error":"#REF!"}},{"$f":"IF(#REF!=\"\",\"\",#REF!)","v":{"$error":"#REF!"}},{"$f":"IF(#REF!=\"\",\"\",#REF!)","v":{"$error":"#REF!"}}]
[{"$f":"'FW nonmetal plant'!B11","v":"No."},{"$f":"'FW nonmetal plant'!B13","v":1},{"$f":"'FW nonmetal plant'!B16","v":2},{"$f":"'FW nonmetal plant'!B19","v":3},{"$f":"'FW nonmetal plant'!B21","v":4},{"$f":"'FW nonmetal plant'!B23","v":5},{"$f":"'FW nonmetal plant'!B26","v":6},{"$f":"'FW nonmetal plant'!B29","v":7},{"$f":"'FW nonmetal plant'!B32","v":8},{"$f":"'FW nonmetal plant'!B35","v":9},{"$f":"'FW nonmetal plant'!B39","v":10},{"$f":"'FW nonmetal plant'!B42","v":11},{"$f":"'FW nonmetal plant'!B45","v":12},{"$f":"'FW nonmetal plant'!B48","v":13},{"$f":"'FW nonmetal plant'!B51","v":14},{"$f":"'FW nonmetal plant'!B53","v":15},{"$f":"'FW nonmetal plant'!B58","v":16.10},{"$f":"'FW nonmetal plant'!B62","v":17},{"$f":"'FW nonmetal plant'!B65","v":18},{"$f":"'FW nonmetal plant'!C70","v":"Total score"},{"$f":"'FW nonmetal plant'!C72","v":"Quality Score"}]
[{"$f":"'FW nonmetal plant'!C2","v":"Category"},{"$f":"'FW nonmetal plant'!E2","v":"Freshwater/non-metal/plant"},{"$f":"'FW nonmetal plant'!C3","v":"Paper and data unique identifier(eg. 1-1,10-150)"},{"$f":"'FW nonmetal plant'!E3","v":"745-5"}]
[{"$f":"'FW nonmetal plant'!G11","v":"Scores"},{"$f":"'FW nonmetal plant'!G12","v":10},{"$f":"'FW nonmetal plant'!G15","v":5},{"$f":"'FW nonmetal plant'!G18","v":5},{"$f":"'FW nonmetal plant'!G21","v":0},{"$f":"'FW nonmetal plant'!G23","v":5},{"$f":"'FW nonmetal plant'!G26","v":5},{"$f":"'FW nonmetal plant'!G29","v":0},{"$f":"'FW nonmetal plant'!G32","v":5},{"$f":"'FW nonmetal plant'!G35","v":5},{"$f":"'FW nonmetal plant'!G38","v":0},{"$f":"'FW nonmetal plant'!G41","v":0},{"$f":"'FW nonmetal plant'!G44","v":0},{"$f":"'FW nonmetal plant'!G47","v":4},{"$f":"'FW nonmetal plant'!G50","v":4},{"$f":"'FW nonmetal plant'!G53","v":0},{"$f":"'FW nonmetal plant'!G57","v":0},{"$f":"'FW nonmetal plant'!G61","v":1},{"$f":"'FW nonmetal plant'!G64","v":3},{"$f":"'FW nonmetal plant'!G70","v":52},{"$f":"'FW nonmetal plant'!G72","v":0.59090909090909094},{"$f":"'FW nonmetal plant'!H72","v":"The highest possible grade for this datum is acceptable."}]
[{"$f":"'FW nonmetal plant'!H11","v":"Answers"},{"$f":"IF('FW nonmetal plant'!H12=\"\",\"\",'FW nonmetal plant'!H12)","v":"4 days"},{"$f":"IF('FW nonmetal plant'!H15=\"\",\"\",'FW nonmetal plant'!H15)","v":"Growth - chlorophyll a"},{"$f":"IF('FW nonmetal plant'!H18=\"\",\"\",'FW nonmetal plant'!H18)","v":"LOEC"},{"$f":"IF('FW nonmetal plant'!H21=\"\",\"\",'FW nonmetal plant'!H21)","v":""},{"$f":"IF('FW nonmetal plant'!H23=\"\",\"\",'FW nonmetal plant'!H23)","v":"Growth medium"},{"$f":"IF('FW nonmetal plant'!H26=\"\",\"\",'FW nonmetal plant'!H26)","v":"Replicated four times"},{"$f":"IF('FW nonmetal plant'!H29=\"\",\"\",'FW nonmetal plant'!H29)","v":"Not stated"},{"$f":"IF('FW nonmetal plant'!H32=\"\",\"\",'FW nonmetal plant'!H32)","v":"Logarithmic growth phase"},{"$f":"IF('FW nonmetal plant'!H35=\"\",\"\",'FW nonmetal plant'!H35)","v":"FW04 growth medium"},{"$f":"IF('FW nonmetal plant'!H38=\"\",\"\",'FW nonmetal plant'!H38)","v":"Not stated"},{"$f":"IF('FW nonmetal plant'!H41=\"\",\"\",'FW nonmetal plant'!H41)","v":"Not stated"},{"$f":"IF('FW nonmetal plant'!H44=\"\",\"\",'FW nonmetal plant'!H44)","v":"Not stated"},{"$f":"IF('FW nonmetal plant'!H47=\"\",\"\",'FW nonmetal plant'!H47)","v":"Figure 3"},{"$f":"IF('FW nonmetal plant'!H53=\"\",\"\",'FW nonmetal plant'!H53)","v":"95%, 99% and 99.9%"},{"$f":"IF('FW nonmetal plant'!H53=\"\",\"\",'FW nonmetal plant'!H53)","v":"95%, 99% and 99.9%"},{"$f":"IF('FW nonmetal plant'!H57=\"\",\"\",'FW nonmetal plant'!H57)","v":8.3000000000000007},{"$f":"IF('FW nonmetal plant'!H61=\"\",\"\",'FW nonmetal plant'!H61)","v":"22oC"},{"$f":"IF('FW nonmetal plant'!H64=\"\",\"\",'FW nonmetal plant'!H64)","v":"99% purity"}]
[{"$f":"'FW nonmetal plant'!G3","v":"Species (Scientific name)"},{"$f":"'FW nonmetal plant'!G4","v":"Lifestage"},{"$f":"'FW nonmetal plant'!G5","v":"Exposure duration"},{"$f":"'FW nonmetal plant'!G6","v":"Measure of toxicity"},{"$f":"'FW nonmetal plant'!G7","v":"Toxicity endpoint"},{"$f":"'FW nonmetal plant'!G8","v":"Toxicity value"},{"$f":"'FW nonmetal plant'!J2","v":"Taxonomic group"},{"$f":"'FW nonmetal plant'!J3","v":"Phylum"},{"$f":"'FW nonmetal plant'!J4","v":"Class"},{"$f":"'FW nonmetal plant'!J5","v":"Media"},{"$f":"'FW nonmetal plant'!J6","v":"Temperature "},{"$f":"'FW nonmetal plant'!J7","v":"Acute Or Chronic "},{"$f":"'FW nonmetal plant'!J8","v":"PH"},{"$f":"'FW nonmetal plant'!J9","v":"Salinity/Conductivity"},{"$f":"'FW nonmetal plant'!C4","v":"Citation"},{"$f":"'FW nonmetal plant'!G2","v":"Citation No."}]
[{"$f":"'FW nonmetal plant'!Q3","v":"Monoraphidium braunii"},{"$f":"'FW nonmetal plant'!T3","v":"N.A."},{"$f":"'FW nonmetal plant'!W3","v":"96 hrs"},{"$f":"'FW nonmetal plant'!Z3","v":"LOEC"},{"$f":"'FW nonmetal plant'!AC3","v":"Growth"},{"$f":"IF('FW nonmetal plant'!H8=\"\",\"\",'FW nonmetal plant'!H8)","v":"2000 ug/L"},{"$f":"'FW nonmetal plant'!AF3","v":"Microalga"},{"$f":"'FW nonmetal plant'!AI3","v":"Chlorophyta"},{"$f":"'FW nonmetal plant'!AO3","v":"FW04 growth media"},{"$f":"'FW nonmetal plant'!AR3","v":"22oC"},{"$f":"'FW nonmetal plant'!AR3","v":"22oC"},{"$f":"'FW nonmetal plant'!AU3","v":"Chronic"},{"$f":"'FW nonmetal plant'!AX3","v":8.3000000000000007},{"$f":"'FW nonmetal plant'!BA3","v":"N.A."},{"$f":"IF('FW nonmetal plant'!E4=\"\",\"\",'FW nonmetal plant'!E4)","v":"Gattullo, C.E., H. Bahrs, C.E.W. Steinberg and E. Loffredo. 2012. Removal of bipshenol A by the freshwater green alga Monoraphidium braunii and the role of natural organic matter. Science of the Total Environment 416:501-506"},{"$f":"IF('FW nonmetal plant'!H2=\"\",\"\",'FW nonmetal plant'!H2)","v":"745"}]
[{"$f":"#REF!","v":{"$error":"#REF!"}},{"$f":"#REF!","v":{"$error":"#REF!"}},{"$f":"#REF!","v":{"$error":"#REF!"}},{"$f":"#REF!","v":{"$error":"#REF!"}},{"$f":"#REF!","v":{"$error":"#REF!"}},{"$f":"#REF!","v":{"$error":"#REF!"}},{"$f":"#REF!","v":{"$error":"#REF!"}},{"$f":"#REF!","v":{"$error":"#REF!"}},{"$f":"#REF!","v":{"$error":"#REF!"}},{"$f":"#REF!","v":{"$error":"#REF!"}},{"$f":"#REF!","v":{"$error":"#REF!"}},{"$f":"#REF!","v":{"$error":"#REF!"}},{"$f":"#REF!","v":{"$error":"#REF!"}},{"$f":"#REF!","v":{"$error":"#REF!"}},{"$f":"#REF!","v":{"$error":"#REF!"}},{"$f":"#REF!","v":{"$error":"#REF!"}},{"$f":"#REF!","v":{"$error":"#REF!"}},{"$f":"#REF!","v":{"$error":"#REF!"}},{"$f":"#REF!","v":{"$error":"#REF!"}},{"$f":"#REF!","v":{"$error":"#REF!"}},{"$f":"#REF!","v":{"$error":"#REF!"}},{"$f":"#REF!","v":{"$error":"#REF!"}},{"$f":"#REF!","v":{"$error":"#REF!"}},{"$f":"#REF!","v":{"$error":"#REF!"}}]
[{"$f":"#REF!","v":{"$error":"#REF!"}},{"$f":"#REF!","v":{"$error":"#REF!"}},{"$f":"#REF!","v":{"$error":"#REF!"}},{"$f":"#REF!","v":{"$error":"#REF!"}}]
[{"$f":"#REF!","v":{"$error":"#REF!"}},{"$f":"#REF!","v":{"$error":"#REF!"}},{"$f":"#REF!","v":{"$error":"#REF!"}},{"$f":"#REF!","v":{"$error":"#REF!"}},{"$f":"#REF!","v":{"$error":"#REF!"}},{"$f":"#REF!","v":{"$error":"#REF!"}},{"$f":"#REF!","v":{"$error":"#REF!"}},{"$f":"#REF!","v":{"$error":"#REF!"}},{"$f":"#REF!","v":{"$error":"#REF!"}},{"$f":"#REF!","v":{"$error":"#REF!"}},{"$f":"#REF!","v":{"$error":"#REF!"}},{"$f":"#REF!","v":{"$error":"#REF!"}},{"$f":"#REF!","v":{"$error":"#REF!"}},{"$f":"#REF!","v":{"$error":"#REF!"}},{"$f":"#REF!","v":{"$error":"#REF!"}},{"$f":"#REF!","v":{"$error":"#REF!"}},{"$f":"#REF!","v":{"$error":"#REF!"}},{"$f":"#REF!","v":{"$error":"#REF!"}},{"$f":"#REF!","v":{"$error":"#REF!"}},{"$f":"#REF!","v":{"$error":"#REF!"}},{"$f":"#REF!","v":{"$error":"#REF!"}},{"$f":"#REF!","v":{"$error":"#REF!"}},{"$f":"#REF!","v":{"$error":"#REF!"}},{"$f":"#REF!","v":{"$error":"#REF!"}},{"$f":"#REF!","v":{"$error":"#REF!"}}]
[{"$f":"#REF!","v":{"$error":"#REF!"}},{"$f":"IF(#REF!=\"\",\"\",#REF!)","v":{"$error":"#REF!"}},{"$f":"IF(#REF!=\"\",\"\",#REF!)","v":{"$error":"#REF!"}},{"$f":"IF(#REF!=\"\",\"\",#REF!)","v":{"$error":"#REF!"}},{"$f":"IF(#REF!=\"\",\"\",#REF!)","v":{"$error":"#REF!"}},{"$f":"IF(#REF!=\"\",\"\",#REF!)","v":{"$error":"#REF!"}},{"$f":"IF(#REF!=\"\",\"\",#REF!)","v":{"$error":"#REF!"}},{"$f":"IF(#REF!=\"\",\"\",#REF!)","v":{"$error":"#REF!"}},{"$f":"IF(#REF!=\"\",\"\",#REF!)","v":{"$error":"#REF!"}},{"$f":"IF(#REF!=\"\",\"\",#REF!)","v":{"$error":"#REF!"}},{"$f":"IF(#REF!=\"\",\"\",#REF!)","v":{"$error":"#REF!"}},{"$f":"IF(#REF!=\"\",\"\",#REF!)","v":{"$error":"#REF!"}},{"$f":"IF(#REF!=\"\",\"\",#REF!)","v":{"$error":"#REF!"}},{"$f":"IF(#REF!=\"\",\"\",#REF!)","v":{"$error":"#REF!"}},{"$f":"IF(#REF!=\"\",\"\",#REF!)","v":{"$error":"#REF!"}},{"$f":"IF(#REF!=\"\",\"\",#REF!)","v":{"$error":"#REF!"}},{"$f":"IF(#REF!=\"\",\"\",#REF!)","v":{"$error":"#REF!"}},{"$f":"IF(#REF!=\"\",\"\",#REF!)","v":{"$error":"#REF!"}},{"$f":"IF(#REF!=\"\",\"\",#REF!)","v":{"$error":"#REF!"}},{"$f":"IF(#REF!=\"\",\"\",#REF!)","v":{"$error":"#REF!"}},{"$f":"IF(#REF!=\"\",\"\",#REF!)","v":{"$error":"#REF!"}},{"$f":"IF(#REF!=\"\",\"\",#REF!)","v":{"$error":"#REF!"}}]
[{"$f":"#REF!","v":{"$error":"#REF!"}},{"$f":"#REF!","v":{"$error":"#REF!"}},{"$f":"#REF!","v":{"$error":"#REF!"}},{"$f":"#REF!","v":{"$error":"#REF!"}},{"$f":"#REF!","v":{"$error":"#REF!"}},{"$f":"#REF!","v":{"$error":"#REF!"}},{"$f":"#REF!","v":{"$error":"#REF!"}},{"$f":"#REF!","v":{"$error":"#REF!"}},{"$f":"#REF!","v":{"$error":"#REF!"}},{"$f":"#REF!","v":{"$error":"#REF!"}},{"$f":"#REF!","v":{"$error":"#REF!"}},{"$f":"#REF!","v":{"$error":"#REF!"}},{"$f":"#REF!","v":{"$error":"#REF!"}},{"$f":"#REF!","v":{"$error":"#REF!"}},{"$f":"#REF!","v":{"$error":"#REF!"}},{"$f":"#REF!","v":{"$error":"#REF!"}}]
[{"$f":"#REF!","v":{"$error":"#REF!"}},{"$f":"#REF!","v":{"$error":"#REF!"}},{"$f":"#REF!","v":{"$error":"#REF!"}},{"$f":"#REF!","v":{"$error":"#REF!"}},{"$f":"#REF!","v":{"$error":"#REF!"}},{"$f":"IF(#REF!=\"\",\"\",#REF!)","v":{"$error":"#REF!"}},{"$f":"#REF!","v":{"$error":"#REF!"}},{"$f":"#REF!","v":{"$error":"#REF!"}},{"$f":"#REF!","v":{"$error":"#REF!"}},{"$f":"#REF!","v":{"$error":"#REF!"}},{"$f":"#REF!","v":{"$error":"#REF!"}},{"$f":"#REF!","v":{"$error":"#REF!"}},{"$f":"#REF!","v":{"$error":"#REF!"}},{"$f":"#REF!","v":{"$error":"#REF!"}},{"$f":"IF(#REF!=\"\",\"\",#REF!)","v":{"$error":"#REF!"}},{"$f":"IF(#REF!=\"\",\"\",#REF!)","v":{"$error":"#REF!"}}]
[{"$f":"'FW nonmetal nonplant'!B11","v":"No."},{"$f":"'FW nonmetal nonplant'!B13","v":1},{"$f":"'FW nonmetal nonplant'!B16","v":2},{"$f":"'FW nonmetal nonplant'!B19","v":3},{"$f":"'FW nonmetal nonplant'!B21","v":4},{"$f":"'FW nonmetal nonplant'!B23","v":5},{"$f":"'FW nonmetal nonplant'!B26","v":6},{"$f":"'FW nonmetal nonplant'!B29","v":7},{"$f":"'FW nonmetal nonplant'!B32","v":8},{"$f":"'FW nonmetal nonplant'!B35","v":9},{"$f":"'FW nonmetal nonplant'!B39","v":10},{"$f":"'FW nonmetal nonplant'!B42","v":11},{"$f":"'FW nonmetal nonplant'!B45","v":12},{"$f":"'FW nonmetal nonplant'!B48","v":13},{"$f":"'FW nonmetal nonplant'!B51","v":14},{"$f":"'FW nonmetal nonplant'!B53","v":15},{"$f":"'FW nonmetal nonplant'!B58","v":16.10},{"$f":"'FW nonmetal nonplant'!B61","v":16.20},{"$f":"'FW nonmetal nonplant'!B64","v":17},{"$f":"'FW nonmetal nonplant'!B67","v":18},{"$f":"'FW nonmetal nonplant'!C72","v":"Total score"},{"$f":"'FW nonmetal nonplant'!C74","v":"Quality Score"}]
[{"$f":"'FW nonmetal nonplant'!C2","v":"Category"},{"$f":"'FW nonmetal nonplant'!E2","v":"Freshwater/non-metal/non- plant"},{"$f":"'FW nonmetal nonplant'!C3","v":"Paper and data unique identifier(eg. 1-1,10-150)"},{"$f":"'FW nonmetal nonplant'!E3","v":"735-2"}]
[{"$f":"'FW nonmetal nonplant'!G11","v":"Scores"},{"$f":"'FW nonmetal nonplant'!G12","v":10},{"$f":"'FW nonmetal nonplant'!G15","v":10},{"$f":"'FW nonmetal nonplant'!G18","v":5},{"$f":"'FW nonmetal nonplant'!G21","v":0},{"$f":"'FW nonmetal nonplant'!G23","v":5},{"$f":"'FW nonmetal nonplant'!G26","v":5},{"$f":"'FW nonmetal nonplant'!G29","v":5},{"$f":"'FW nonmetal nonplant'!G32","v":5},{"$f":"'FW nonmetal nonplant'!G35","v":5},{"$f":"'FW nonmetal nonplant'!G38","v":4},{"$f":"'FW nonmetal nonplant'!G41","v":4},{"$f":"'FW nonmetal nonplant'!G44","v":0},{"$f":"'FW nonmetal nonplant'!G47","v":4},{"$f":"'FW nonmetal nonplant'!G50","v":4},{"$f":"'FW nonmetal nonplant'!G53","v":4},{"$f":"'FW nonmetal nonplant'!G57","v":0},{"$f":"'FW nonmetal nonplant'!G60","v":0},{"$f":"'FW nonmetal nonplant'!G63","v":1},{"$f":"'FW nonmetal nonplant'!G66","v":3},{"$f":"'FW nonmetal nonplant'!G72","v":74},{"$f":"'FW nonmetal nonplant'!G74","v":0.81318681318681318},null,{"$f":"'FW nonmetal nonplant'!H74","v":""}]
[{"$f":"'FW nonmetal nonplant'!H11","v":"Answers"},{"$f":"IF('FW nonmetal nonplant'!H12=\"\",\"\",'FW nonmetal nonplant'!H12)","v":"21 days"},{"$f":"IF('FW nonmetal nonplant'!H15=\"\",\"\",'FW nonmetal nonplant'!H15)","v":"Survival"},{"$f":"IF('FW nonmetal nonplant'!H18=\"\",\"\",'FW nonmetal nonplant'!H18)","v":"LOEC"},{"$f":"IF('FW nonmetal nonplant'!H21=\"\",\"\",'FW nonmetal nonplant'!H21)","v":""},{"$f":"IF('FW nonmetal nonplant'!H23=\"\",\"\",'FW nonmetal nonplant'!H23)","v":"Recon water and solvent water"},{"$f":"IF('FW nonmetal nonplant'!H26=\"\",\"\",'FW nonmetal nonplant'!H26)","v":"Triplicate"},{"$f":"IF('FW nonmetal nonplant'!H29=\"\",\"\",'FW nonmetal nonplant'!H29)","v":">70% survival in controls"},{"$f":"IF('FW nonmetal nonplant'!H32=\"\",\"\",'FW nonmetal nonplant'!H32)","v":"Eggs"},{"$f":"IF('FW nonmetal nonplant'!H35=\"\",\"\",'FW nonmetal nonplant'!H35)","v":"Recon water "},{"$f":"IF('FW nonmetal nonplant'!H38=\"\",\"\",'FW nonmetal nonplant'!H38)","v":"Static renewal"},{"$f":"IF('FW nonmetal nonplant'!H41=\"\",\"\",'FW nonmetal nonplant'!H41)","v":"HPLC"},{"$f":"IF('FW nonmetal nonplant'!H44=\"\",\"\",'FW nonmetal nonplant'!H44)","v":"Not stated"},{"$f":"IF('FW nonmetal nonplant'!H47=\"\",\"\",'FW nonmetal nonplant'!H47)","v":"Figure 1"},{"$f":"IF('FW nonmetal nonplant'!H50=\"\",\"\",'FW nonmetal nonplant'!H50)","v":""},{"$f":"IF('FW nonmetal nonplant'!H53=\"\",\"\",'FW nonmetal nonplant'!H53)","v":""},{"$f":"IF('FW nonmetal nonplant'!H57=\"\",\"\",'FW nonmetal nonplant'!H57)","v":""},{"$f":"IF('FW nonmetal nonplant'!H60=\"\",\"\",'FW nonmetal nonplant'!H60)","v":""},{"$f":"IF('FW nonmetal nonplant'!H63=\"\",\"\",'FW nonmetal nonplant'!H63)","v":"20oC%"},{"$f":"IF('FW nonmetal nonplant'!H66=\"\",\"\",'FW nonmetal nonplant'!H66)","v":"Aldrich"}]
[{"$f":"'FW nonmetal nonplant'!G3","v":"Species (Scientific name)"},{"$f":"'FW nonmetal nonplant'!G4","v":"Lifestage"},{"$f":"'FW nonmetal nonplant'!G5","v":"Exposure duration"},{"$f":"'FW nonmetal nonplant'!G6","v":"Measure of toxicity"},{"$f":"'FW nonmetal nonplant'!G7","v":"Toxicity endpoint"},{"$f":"'FW nonmetal nonplant'!G8","v":"Toxicity value"},{"$f":"'FW nonmetal nonplant'!J2","v":"Taxonomic group"},{"$f":"'FW nonmetal nonplant'!J3","v":"Phylum"},{"$f":"'FW nonmetal nonplant'!J4","v":"Class"},{"$f":"'FW nonmetal nonplant'!J5","v":"Media"},{"$f":"'FW nonmetal nonplant'!J6","v":"Temperature "},{"$f":"'FW nonmetal nonplant'!J7","v":"Acute Or Chronic "},{"$f":"'FW nonmetal nonplant'!J8","v":"PH"},{"$f":"'FW nonmetal nonplant'!J9","v":"Salinity/Conductivity"},{"$f":"'FW nonmetal nonplant'!C4","v":"Citation"},{"$f":"'FW nonmetal nonplant'!G2","v":"Citation No."}]
[{"$f":"'FW nonmetal nonplant'!Q3","v":{"$error":"#REF!"}},{"$f":"'FW nonmetal nonplant'!T3","v":"Eggs"},{"$f":"'FW nonmetal nonplant'!W3","v":"21 day"},{"$f":"'FW nonmetal nonplant'!Z3","v":"LOEC"},{"$f":"'FW nonmetal nonplant'!AC3","v":"Mortality"},{"$f":"IF('FW nonmetal nonplant'!H8=\"\",\"\",'FW nonmetal nonplant'!H8)","v":"500 ug/L"},{"$f":"'FW nonmetal nonplant'!AF3","v":"Macroinvertebrate"},{"$f":"'FW nonmetal nonplant'!AI3","v":"Mollusca"},{"$f":"'FW nonmetal nonplant'!AL3","v":"Gastropoda"},{"$f":"'FW nonmetal nonplant'!AO3","v":"reconstituted water"},{"$f":"'FW nonmetal nonplant'!AR3","v":"20oC"},{"$f":"'FW nonmetal nonplant'!AU3","v":"Chronic"},{"$f":"'FW nonmetal nonplant'!AX3","v":"Not stated"},{"$f":"'FW nonmetal nonplant'!BA3","v":"N.A."},{"$f":"IF('FW nonmetal nonplant'!E4=\"\",\"\",'FW nonmetal nonplant'!E4)","v":"Sanchez-Arguello, P., N. Aparicio and C. Fernandez. 2012. Linking embryo toxicity with genotoxic responses in the freshwater snail Physa acuta: Single exposure to benzo(a)pyrene, fluoxetine, bisphenol A, vinclozolin and exposure to binary mixtures with benzo(a)pyrene. Ecotoxicology and Environmental Safety 80: 152-160"},{"$f":"IF('FW nonmetal nonplant'!H2=\"\",\"\",'FW nonmetal nonplant'!H2)","v":"735"}]
[{"$f":"#REF!","v":{"$error":"#REF!"}},{"$f":"#REF!","v":{"$error":"#REF!"}},{"$f":"#REF!","v":{"$error":"#REF!"}},{"$f":"#REF!","v":{"$error":"#REF!"}},{"$f":"#REF!","v":{"$error":"#REF!"}},{"$f":"#REF!","v":{"$error":"#REF!"}},{"$f":"#REF!","v":{"$error":"#REF!"}},{"$f":"#REF!","v":{"$error":"#REF!"}},{"$f":"#REF!","v":{"$error":"#REF!"}},{"$f":"#REF!","v":{"$error":"#REF!"}},{"$f":"#REF!","v":{"$error":"#REF!"}},{"$f":"#REF!","v":{"$error":"#REF!"}},{"$f":"#REF!","v":{"$error":"#REF!"}},{"$f":"#REF!","v":{"$error":"#REF!"}},{"$f":"#REF!","v":{"$error":"#REF!"}},{"$f":"#REF!","v":{"$error":"#REF!"}},{"$f":"#REF!","v":{"$error":"#REF!"}},{"$f":"#REF!","v":{"$error":"#REF!"}},{"$f":"#REF!","v":{"$error":"#REF!"}},{"$f":"#REF!","v":{"$error":"#REF!"}},{"$f":"#REF!","v":{"$error":"#REF!"}},{"$f":"#REF!","v":{"$error":"#REF!"}},{"$f":"#REF!","v":{"$error":"#REF!"}},{"$f":"#REF!","v":{"$error":"#REF!"}},{"$f":"#REF!","v":{"$error":"#REF!"}}]
[{"$f":"#REF!","v":{"$error":"#REF!"}},{"$f":"#REF!","v":{"$error":"#REF!"}},{"$f":"#REF!","v":{"$error":"#REF!"}},{"$f":"#REF!","v":{"$error":"#REF!"}}]
[{"$f":"#REF!","v":{"$error":"#REF!"}},{"$f":"#REF!","v":{"$error":"#REF!"}},{"$f":"#REF!","v":{"$error":"#REF!"}},{"$f":"#REF!","v":{"$error":"#REF!"}},{"$f":"#REF!","v":{"$error":"#REF!"}},{"$f":"#REF!","v":{"$error":"#REF!"}},{"$f":"#REF!","v":{"$error":"#REF!"}},{"$f":"#REF!","v":{"$error":"#REF!"}},{"$f":"#REF!","v":{"$error":"#REF!"}},{"$f":"#REF!","v":{"$error":"#REF!"}},{"$f":"#REF!","v":{"$error":"#REF!"}},{"$f":"#REF!","v":{"$error":"#REF!"}},{"$f":"#REF!","v":{"$error":"#REF!"}},{"$f":"#REF!","v":{"$error":"#REF!"}},{"$f":"#REF!","v":{"$error":"#REF!"}},{"$f":"#REF!","v":{"$error":"#REF!"}},{"$f":"#REF!","v":{"$error":"#REF!"}},{"$f":"#REF!","v":{"$error":"#REF!"}},{"$f":"#REF!","v":{"$error":"#REF!"}},{"$f":"#REF!","v":{"$error":"#REF!"}},{"$f":"#REF!","v":{"$error":"#REF!"}},{"$f":"#REF!","v":{"$error":"#REF!"}},{"$f":"#REF!","v":{"$error":"#REF!"}},{"$f":"#REF!","v":{"$error":"#REF!"}},{"$f":"#REF!","v":{"$error":"#REF!"}},{"$f":"#REF!","v":{"$error":"#REF!"}}]
[{"$f":"#REF!","v":{"$error":"#REF!"}},{"$f":"IF(#REF!=\"\",\"\",#REF!)","v":{"$error":"#REF!"}},{"$f":"IF(#REF!=\"\",\"\",#REF!)","v":{"$error":"#REF!"}},{"$f":"IF(#REF!=\"\",\"\",#REF!)","v":{"$error":"#REF!"}},{"$f":"IF(#REF!=\"\",\"\",#REF!)","v":{"$error":"#REF!"}},{"$f":"IF(#REF!=\"\",\"\",#REF!)","v":{"$error":"#REF!"}},{"$f":"IF(#REF!=\"\",\"\",#REF!)","v":{"$error":"#REF!"}},{"$f":"IF(#REF!=\"\",\"\",#REF!)","v":{"$error":"#REF!"}},{"$f":"IF(#REF!=\"\",\"\",#REF!)","v":{"$error":"#REF!"}},{"$f":"IF(#REF!=\"\",\"\",#REF!)","v":{"$error":"#REF!"}},{"$f":"IF(#REF!=\"\",\"\",#REF!)","v":{"$error":"#REF!"}},{"$f":"IF(#REF!=\"\",\"\",#REF!)","v":{"$error":"#REF!"}},{"$f":"IF(#REF!=\"\",\"\",#REF!)","v":{"$error":"#REF!"}},{"$f":"IF(#REF!=\"\",\"\",#REF!)","v":{"$error":"#REF!"}},{"$f":"IF(#REF!=\"\",\"\",#REF!)","v":{"$error":"#REF!"}},{"$f":"IF(#REF!=\"\",\"\",#REF!)","v":{"$error":"#REF!"}},{"$f":"IF(#REF!=\"\",\"\",#REF!)","v":{"$error":"#REF!"}},{"$f":"IF(#REF!=\"\",\"\",#REF!)","v":{"$error":"#REF!"}},{"$f":"IF(#REF!=\"\",\"\",#REF!)","v":{"$error":"#REF!"}},{"$f":"IF(#REF!=\"\",\"\",#REF!)","v":{"$error":"#REF!"}},{"$f":"IF(#REF!=\"\",\"\",#REF!)","v":{"$error":"#REF!"}},{"$f":"IF(#REF!=\"\",\"\",#REF!)","v":{"$error":"#REF!"}},{"$f":"IF(#REF!=\"\",\"\",#REF!)","v":{"$error":"#REF!"}}]
[{"$f":"#REF!","v":{"$error":"#REF!"}},{"$f":"#REF!","v":{"$error":"#REF!"}},{"$f":"#REF!","v":{"$error":"#REF!"}},{"$f":"#REF!","v":{"$error":"#REF!"}},{"$f":"#REF!","v":{"$error":"#REF!"}},{"$f":"#REF!","v":{"$error":"#REF!"}},{"$f":"#REF!","v":{"$error":"#REF!"}},{"$f":"#REF!","v":{"$error":"#REF!"}},{"$f":"#REF!","v":{"$error":"#REF!"}},{"$f":"#REF!","v":{"$error":"#REF!"}},{"$f":"#REF!","v":{"$error":"#REF!"}},{"$f":"#REF!","v":{"$error":"#REF!"}},{"$f":"#REF!","v":{"$error":"#REF!"}},{"$f":"#REF!","v":{"$error":"#REF!"}},{"$f":"#REF!","v":{"$error":"#REF!"}},{"$f":"#REF!","v":{"$error":"#REF!"}}]
[{"$f":"#REF!","v":{"$error":"#REF!"}},{"$f":"#REF!","v":{"$error":"#REF!"}},{"$f":"#REF!","v":{"$error":"#REF!"}},{"$f":"#REF!","v":{"$error":"#REF!"}},{"$f":"#REF!","v":{"$error":"#REF!"}},{"$f":"IF(#REF!=\"\",\"\",#REF!)","v":{"$error":"#REF!"}},{"$f":"#REF!","v":{"$error":"#REF!"}},{"$f":"#REF!","v":{"$error":"#REF!"}},{"$f":"#REF!","v":{"$error":"#REF!"}},{"$f":"#REF!","v":{"$error":"#REF!"}},{"$f":"#REF!","v":{"$error":"#REF!"}},{"$f":"#REF!","v":{"$error":"#REF!"}},{"$f":"#REF!","v":{"$error":"#REF!"}},{"$f":"#REF!","v":{"$error":"#REF!"}},{"$f":"IF(#REF!=\"\",\"\",#REF!)","v":{"$error":"#REF!"}},{"$f":"IF(#REF!=\"\",\"\",#REF!)","v":{"$error":"#REF!"}}]
[{"$f":"#REF!","v":{"$error":"#REF!"}},{"$f":"#REF!","v":{"$error":"#REF!"}},{"$f":"#REF!","v":{"$error":"#REF!"}},{"$f":"#REF!","v":{"$error":"#REF!"}},{"$f":"#REF!","v":{"$error":"#REF!"}},{"$f":"#REF!","v":{"$error":"#REF!"}},{"$f":"#REF!","v":{"$error":"#REF!"}},{"$f":"#REF!","v":{"$error":"#REF!"}},{"$f":"#REF!","v":{"$error":"#REF!"}},{"$f":"#REF!","v":{"$error":"#REF!"}},{"$f":"#REF!","v":{"$error":"#REF!"}},{"$f":"#REF!","v":{"$error":"#REF!"}},{"$f":"#REF!","v":{"$error":"#REF!"}},{"$f":"#REF!","v":{"$error":"#REF!"}},{"$f":"#REF!","v":{"$error":"#REF!"}},{"$f":"#REF!","v":{"$error":"#REF!"}},{"$f":"#REF!","v":{"$error":"#REF!"}},{"$f":"#REF!","v":{"$error":"#REF!"}},{"$f":"#REF!","v":{"$error":"#REF!"}},{"$f":"#REF!","v":{"$error":"#REF!"}},{"$f":"#REF!","v":{"$error":"#REF!"}},{"$f":"#REF!","v":{"$error":"#REF!"}},{"$f":"#REF!","v":{"$error":"#REF!"}}]
[{"$f":"#REF!","v":{"$error":"#REF!"}},{"$f":"#REF!","v":{"$error":"#REF!"}},{"$f":"#REF!","v":{"$error":"#REF!"}},{"$f":"#REF!","v":{"$error":"#REF!"}}]
[{"$f":"#REF!","v":{"$error":"#REF!"}},{"$f":"#REF!","v":{"$error":"#REF!"}},{"$f":"#REF!","v":{"$error":"#REF!"}},{"$f":"#REF!","v":{"$error":"#REF!"}},{"$f":"#REF!","v":{"$error":"#REF!"}},{"$f":"#REF!","v":{"$error":"#REF!"}},{"$f":"#REF!","v":{"$error":"#REF!"}},{"$f":"#REF!","v":{"$error":"#REF!"}},{"$f":"#REF!","v":{"$error":"#REF!"}},{"$f":"#REF!","v":{"$error":"#REF!"}},{"$f":"#REF!","v":{"$error":"#REF!"}},{"$f":"#REF!","v":{"$error":"#REF!"}},{"$f":"#REF!","v":{"$error":"#REF!"}},{"$f":"#REF!","v":{"$error":"#REF!"}},{"$f":"#REF!","v":{"$error":"#REF!"}},{"$f":"#REF!","v":{"$error":"#REF!"}},{"$f":"#REF!","v":{"$error":"#REF!"}},{"$f":"#REF!","v":{"$error":"#REF!"}},{"$f":"#REF!","v":{"$error":"#REF!"}},{"$f":"#REF!","v":{"$error":"#REF!"}},{"$f":"#REF!","v":{"$error":"#REF!"}},{"$f":"#REF!","v":{"$error":"#REF!"}},{"$f":"#REF!","v":{"$error":"#REF!"}},{"$f":"#REF!","v":{"$error":"#REF!"}}]
[{"$f":"#REF!","v":{"$error":"#REF!"}},{"$f":"IF(#REF!=\"\",\"\",#REF!)","v":{"$error":"#REF!"}},{"$f":"IF(#REF!=\"\",\"\",#REF!)","v":{"$error":"#REF!"}},{"$f":"IF(#REF!=\"\",\"\",#REF!)","v":{"$error":"#REF!"}},{"$f":"IF(#REF!=\"\",\"\",#REF!)","v":{"$error":"#REF!"}},{"$f":"IF(#REF!=\"\",\"\",#REF!)","v":{"$error":"#REF!"}},{"$f":"IF(#REF!=\"\",\"\",#REF!)","v":{"$error":"#REF!"}},{"$f":"IF(#REF!=\"\",\"\",#REF!)","v":{"$error":"#REF!"}},{"$f":"IF(#REF!=\"\",\"\",#REF!)","v":{"$error":"#REF!"}},{"$f":"IF(#REF!=\"\",\"\",#REF!)","v":{"$error":"#REF!"}},{"$f":"IF(#REF!=\"\",\"\",#REF!)","v":{"$error":"#REF!"}},{"$f":"IF(#REF!=\"\",\"\",#REF!)","v":{"$error":"#REF!"}},{"$f":"IF(#REF!=\"\",\"\",#REF!)","v":{"$error":"#REF!"}},{"$f":"IF(#REF!=\"\",\"\",#REF!)","v":{"$error":"#REF!"}},{"$f":"IF(#REF!=\"\",\"\",#REF!)","v":{"$error":"#REF!"}},{"$f":"IF(#REF!=\"\",\"\",#REF!)","v":{"$error":"#REF!"}},{"$f":"IF(#REF!=\"\",\"\",#REF!)","v":{"$error":"#REF!"}},{"$f":"IF(#REF!=\"\",\"\",#REF!)","v":{"$error":"#REF!"}},{"$f":"IF(#REF!=\"\",\"\",#REF!)","v":{"$error":"#REF!"}},{"$f":"IF(#REF!=\"\",\"\",#REF!)","v":{"$error":"#REF!"}},{"$f":"IF(#REF!=\"\",\"\",#REF!)","v":{"$error":"#REF!"}}]
[{"$f":"#REF!","v":{"$error":"#REF!"}},{"$f":"#REF!","v":{"$error":"#REF!"}},{"$f":"#REF!","v":{"$error":"#REF!"}},{"$f":"#REF!","v":{"$error":"#REF!"}},{"$f":"#REF!","v":{"$error":"#REF!"}},{"$f":"#REF!","v":{"$error":"#REF!"}},{"$f":"#REF!","v":{"$error":"#REF!"}},{"$f":"#REF!","v":{"$error":"#REF!"}},{"$f":"#REF!","v":{"$error":"#REF!"}},{"$f":"#REF!","v":{"$error":"#REF!"}},{"$f":"#REF!","v":{"$error":"#REF!"}},{"$f":"#REF!","v":{"$error":"#REF!"}},{"$f":"#REF!","v":{"$error":"#REF!"}},{"$f":"#REF!","v":{"$error":"#REF!"}},{"$f":"#REF!","v":{"$error":"#REF!"}},{"$f":"#REF!","v":{"$error":"#REF!"}}]
[{"$f":"#REF!","v":{"$error":"#REF!"}},{"$f":"#REF!","v":{"$error":"#REF!"}},{"$f":"#REF!","v":{"$error":"#REF!"}},{"$f":"#REF!","v":{"$error":"#REF!"}},{"$f":"#REF!","v":{"$error":"#REF!"}},{"$f":"IF(#REF!=\"\",\"\",#REF!)","v":{"$error":"#REF!"}},{"$f":"#REF!","v":{"$error":"#REF!"}},{"$f":"#REF!","v":{"$error":"#REF!"}},{"$f":"#REF!","v":{"$error":"#REF!"}},{"$f":"#REF!","v":{"$error":"#REF!"}},{"$f":"#REF!","v":{"$error":"#REF!"}},{"$f":"#REF!","v":{"$error":"#REF!"}},{"$f":"#REF!","v":{"$error":"#REF!"}},{"$f":"#REF!","v":{"$error":"#REF!"}},{"$f":"IF(#REF!=\"\",\"\",#REF!)","v":{"$error":"#REF!"}},{"$f":"IF(#REF!=\"\",\"\",#REF!)","v":{"$error":"#REF!"}}]
[{"$f":"#REF!","v":{"$error":"#REF!"}},{"$f":"#REF!","v":{"$error":"#REF!"}},{"$f":"#REF!","v":{"$error":"#REF!"}},{"$f":"#REF!","v":{"$error":"#REF!"}},{"$f":"#REF!","v":{"$error":"#REF!"}},{"$f":"#REF!","v":{"$error":"#REF!"}},{"$f":"#REF!","v":{"$error":"#REF!"}},{"$f":"#REF!","v":{"$error":"#REF!"}},{"$f":"#REF!","v":{"$error":"#REF!"}},{"$f":"#REF!","v":{"$error":"#REF!"}},{"$f":"#REF!","v":{"$error":"#REF!"}},{"$f":"#REF!","v":{"$error":"#REF!"}},{"$f":"#REF!","v":{"$error":"#REF!"}},{"$f":"#REF!","v":{"$error":"#REF!"}},{"$f":"#REF!","v":{"$error":"#REF!"}},{"$f":"#REF!","v":{"$error":"#REF!"}},{"$f":"#REF!","v":{"$error":"#REF!"}},{"$f":"#REF!","v":{"$error":"#REF!"}},{"$f":"#REF!","v":{"$error":"#REF!"}},{"$f":"#REF!","v":{"$error":"#REF!"}},{"$f":"#REF!","v":{"$error":"#REF!"}},{"$f":"#REF!","v":{"$error":"#REF!"}}]
[{"$f":"#REF!","v":{"$error":"#REF!"}},{"$f":"#REF!","v":{"$error":"#REF!"}},{"$f":"#REF!","v":{"$error":"#REF!"}},{"$f":"#REF!","v":{"$error":"#REF!"}}]
[{"$f":"#REF!","v":{"$error":"#REF!"}},{"$f":"#REF!","v":{"$error":"#REF!"}},{"$f":"#REF!","v":{"$error":"#REF!"}},{"$f":"#REF!","v":{"$error":"#REF!"}},{"$f":"#REF!","v":{"$error":"#REF!"}},{"$f":"#REF!","v":{"$error":"#REF!"}},{"$f":"#REF!","v":{"$error":"#REF!"}},{"$f":"#REF!","v":{"$error":"#REF!"}},{"$f":"#REF!","v":{"$error":"#REF!"}},{"$f":"#REF!","v":{"$error":"#REF!"}},{"$f":"#REF!","v":{"$error":"#REF!"}},{"$f":"#REF!","v":{"$error":"#REF!"}},{"$f":"#REF!","v":{"$error":"#REF!"}},{"$f":"#REF!","v":{"$error":"#REF!"}},{"$f":"#REF!","v":{"$error":"#REF!"}},{"$f":"#REF!","v":{"$error":"#REF!"}},{"$f":"#REF!","v":{"$error":"#REF!"}},{"$f":"#REF!","v":{"$error":"#REF!"}},{"$f":"#REF!","v":{"$error":"#REF!"}},{"$f":"#REF!","v":{"$error":"#REF!"}},{"$f":"#REF!","v":{"$error":"#REF!"}},{"$f":"#REF!","v":{"$error":"#REF!"}},{"$f":"#REF!","v":{"$error":"#REF!"}}]
[{"$f":"#REF!","v":{"$error":"#REF!"}},{"$f":"IF(#REF!=\"\",\"\",#REF!)","v":{"$error":"#REF!"}},{"$f":"IF(#REF!=\"\",\"\",#REF!)","v":{"$error":"#REF!"}},{"$f":"IF(#REF!=\"\",\"\",#REF!)","v":{"$error":"#REF!"}},{"$f":"IF(#REF!=\"\",\"\",#REF!)","v":{"$error":"#REF!"}},{"$f":"IF(#REF!=\"\",\"\",#REF!)","v":{"$error":"#REF!"}},{"$f":"IF(#REF!=\"\",\"\",#REF!)","v":{"$error":"#REF!"}},{"$f":"IF(#REF!=\"\",\"\",#REF!)","v":{"$error":"#REF!"}},{"$f":"IF(#REF!=\"\",\"\",#REF!)","v":{"$error":"#REF!"}},{"$f":"IF(#REF!=\"\",\"\",#REF!)","v":{"$error":"#REF!"}},{"$f":"IF(#REF!=\"\",\"\",#REF!)","v":{"$error":"#REF!"}},{"$f":"IF(#REF!=\"\",\"\",#REF!)","v":{"$error":"#REF!"}},{"$f":"IF(#REF!=\"\",\"\",#REF!)","v":{"$error":"#REF!"}},{"$f":"IF(#REF!=\"\",\"\",#REF!)","v":{"$error":"#REF!"}},{"$f":"IF(#REF!=\"\",\"\",#REF!)","v":{"$error":"#REF!"}},{"$f":"IF(#REF!=\"\",\"\",#REF!)","v":{"$error":"#REF!"}},{"$f":"IF(#REF!=\"\",\"\",#REF!)","v":{"$error":"#REF!"}},{"$f":"IF(#REF!=\"\",\"\",#REF!)","v":{"$error":"#REF!"}},{"$f":"IF(#REF!=\"\",\"\",#REF!)","v":{"$error":"#REF!"}},{"$f":"IF(#REF!=\"\",\"\",#REF!)","v":{"$error":"#REF!"}}]
[{"$f":"#REF!","v":{"$error":"#REF!"}},{"$f":"#REF!","v":{"$error":"#REF!"}},{"$f":"#REF!","v":{"$error":"#REF!"}},{"$f":"#REF!","v":{"$error":"#REF!"}},{"$f":"#REF!","v":{"$error":"#REF!"}},{"$f":"#REF!","v":{"$error":"#REF!"}},{"$f":"#REF!","v":{"$error":"#REF!"}},{"$f":"#REF!","v":{"$error":"#REF!"}},{"$f":"#REF!","v":{"$error":"#REF!"}},{"$f":"#REF!","v":{"$error":"#REF!"}},{"$f":"#REF!","v":{"$error":"#REF!"}},{"$f":"#REF!","v":{"$error":"#REF!"}},{"$f":"#REF!","v":{"$error":"#REF!"}},{"$f":"#REF!","v":{"$error":"#REF!"}},{"$f":"#REF!","v":{"$error":"#REF!"}},{"$f":"#REF!","v":{"$error":"#REF!"}}]
[{"$f":"#REF!","v":{"$error":"#REF!"}},{"$f":"#REF!","v":{"$error":"#REF!"}},{"$f":"#REF!","v":{"$error":"#REF!"}},{"$f":"#REF!","v":{"$error":"#REF!"}},{"$f":"#REF!","v":{"$error":"#REF!"}},{"$f":"IF(#REF!=\"\",\"\",#REF!)","v":{"$error":"#REF!"}},{"$f":"#REF!","v":{"$error":"#REF!"}},{"$f":"#REF!","v":{"$error":"#REF!"}},{"$f":"#REF!","v":{"$error":"#REF!"}},{"$f":"#REF!","v":{"$error":"#REF!"}},{"$f":"#REF!","v":{"$error":"#REF!"}},{"$f":"#REF!","v":{"$error":"#REF!"}},{"$f":"#REF!","v":{"$error":"#REF!"}},{"$f":"#REF!","v":{"$error":"#REF!"}},{"$f":"IF(#REF!=\"\",\"\",#REF!)","v":{"$error":"#REF!"}},{"$f":"IF(#REF!=\"\",\"\",#REF!)","v":{"$error":"#REF!"}}]

{"sheet":"FW nonmetal nonplant","index":5,"n_rows":108,"n_cols":53,"rows_kept":108,"cut":false,"hidden":false,"merged":[[65,2,68,2],[65,7,68,7],[59,7,61,7],[52,2,54,2],[52,7,54,7],[56,7,58,7],[62,2,64,2],[62,7,64,7],[43,2,45,2],[43,7,45,7],[46,2,48,2],[46,7,48,7],[49,2,51,2],[49,7,51,7],[34,2,36,2],[34,7,36,7],[37,2,39,2],[37,7,39,7],[40,2,42,2],[40,7,42,7],[25,2,27,2],[25,7,27,7],[28,2,30,2],[28,7,30,7],[31,2,33,2],[31,7,33,7],[17,2,19,2],[17,7,19,7],[20,2,21,2],[20,7,21,7],[22,2,24,2],[22,7,24,7],[3,4,7,4],[9,2,9,4],[11,2,13,2],[11,7,13,7],[14,2,16,2],[14,7,16,7]]}
[null,1,"Fill in the blank cells below, based on information provided in the paper being assessed. You can either pick an option from the dropdown list or add the appropriate detail using the 'Add to list' button. ",null,null,null,null,null,null,null,null,null,null,null,"* All the text in RED are used for drop down list ,make changes with caution."]
[null,null,"Category",{"$f":"IF(AF3=\"\",0,1)","v":1},"Freshwater/non-metal/non- plant",{"$f":"IF(E3=\"\",0,1)","v":1},"Citation No.",{"$f":"IF(ISERROR(FIND(\"-\",E3)),E3,LEFT(E3,FIND(\"-\",E3)-1))","v":"735"},null,"Taxonomic group",null,null,null,null,"Species",null,null,"Lifestage",null,null,"Exposure duration",null,null,"Measure of toxicity",null,null,"Toxicity endpoint",null,null,"Taxonomic group",null,null,"Phylum",null,null,"Class",null,null,"Media",null,null,"Temperature ",null,null,"Acute Or Chronic",null,null,"PH",null,null,"Salinity/Comdictivity"]
[null,null,"Paper and data unique identifier(eg. 1-1,10-150)",{"$f":"IF(AI3=\"\",0,1)","v":1},"735-2",{"$f":"IF(E4=\"\",0,1)","v":1},"Species (Scientific name)",null,null,"Phylum",null,null,null,null,"Acanthocyclops robustus",106,{"$f":"IF(P3=0,\"\",INDEX(O3:O102,P3))","v":{"$error":"#REF!"}},"<120 days post h atch",23,{"$f":"IF(S3=0,\"\",INDEX(R3:R102,S3))","v":"Eggs"},"10 day",9,{"$f":"IF(V3=0,\"\",INDEX(U3:U102,V3))","v":"21 day"},"EC10",15,{"$f":"IF(Y3=0,\"\",INDEX(X3:X102,Y3))","v":"LOEC"},"ability to cling",36,{"$f":"IF(AB3=0,\"\",INDEX(AA3:AA102,AB3))","v":"Mortality"},"Amphibian",11,{"$f":"IF(AE3=0,\"\",INDEX(AD3:AD102,AE3))","v":"Macroinvertebrate"},"\tChytridiomycota",13,{"$f":"IF(AH3=0,\"\",INDEX(AG3:AG102,AH3))","v":"Mollusca"},"\tOstracoda",14,{"$f":"IF(AK3=0,\"\",INDEX(AJ3:AJ102,AK3))","v":"Gastropoda"},"Aged tap water",42,{"$f":"IF(AN3=0,\"\",INDEX(AM3:AM102,AN3))","v":"reconstituted water"},8,76,{"$f":"IF(AQ3=0,\"\",INDEX(AP3:AP102,AQ3))","v":"20oC"},"7.378-8.33",4,{"$f":"IF(AT3=0,\"\",INDEX(AS3:AS102,AT3))","v":"Chronic"},7,33,{"$f":"IF(AW3=0,\"\",INDEX(AV3:AV102,AW3))","v":"Not stated"},null,null,"N.A."]
[null,null,"Citation",{"$f":"IF(AL3=\"\",0,1)","v":1},"Sanchez-Arguello, P., N. Aparicio and C. Fernandez. 2012. Linking embryo toxicity with genotoxic responses in the freshwater snail Physa acuta: Single exposure to benzo(a)pyrene, fluoxetine, bisphenol A, vinclozolin and exposure to binary mixtures with benzo(a)pyrene. Ecotoxicology and Environmental Safety 80: 152-160",{"$f":"IF(H8=\"\",0,1)","v":1},"Lifestage",null,null,"Class",null,null,null,null,"Achnanthidium minutissimum",null,null,"<24h neonate f2 ",null,null,"11 hour",null,null,"EC50",null,null,"ability to swim",null,null,"Bacteria",null,null,"\tOomycota",null,null,"\tSordariomycetes",null,null,"Algal assay medium",null,null,10,null,null,"7.78-8.33",null,null,7.50]
[null,null,null,{"$f":"IF(AO3=\"\",0,1)","v":1},null,{"$f":"IF(W3=\"\",0,1)","v":1},"Exposure duration",null,null,"Media",null,null,null,null,"Aedes aegypti",null,null,"<24hr neonate",null,null,"1-2 weeks",null,null,"EC50",null,null,"ability to thrash when prodded",null,null,"Chordata",null,null,"\tRotifera",null,null,"Actinopterygii",null,null,"algaltoxkit",null,null,12,null,null,"Acute ",null,null,7.50]
[null,null,null,{"$f":"IF(AR3=\"\",0,1)","v":1},null,{"$f":"IF(Q3=\"\",0,1)","v":{"$error":"#REF!"}},"Measure of toxicity",null,null,"Temperature ",null,null,null,null,"Aedes albopictus",null,null,">23 days",null,null,"120hpf",null,null,"hatchability",null,null,"ability to walk/crawl",null,null,"Chromista",null,null,"Actinopterygii",null,null,"Amphibia",null,null,"Aquaria water (tap water)",null,null,12,null,null,"Chronic",null,null,7.66]
[null,null,null,{"$f":"IF(AU3=\"\",0,1)","v":1},null,{"$f":"IF(T3=\"\",0,1)","v":1},"Toxicity endpoint",null,null,"Acute Or Chronic ",null,null,null,null,"Aedes albopictus",null,null,">6 month ",null,null,"13 days",null,null,"IC25",null,null,"activity",null,null,"Diatom",null,null,"Arthropoda",null,null,"Bacillariophyceae",null,null,"artificial system water",null,null,12,null,null,"N.A.",null,null,7.67]
[null,null,null,null,null,{"$f":"IF(W3=\"\",0,1)","v":1},"Toxicity value","500 ug/L",null,"PH",null,null,null,null,"Aedes albopictus HAmAal strain",null,null,"1 month",null,null,"14 days",null,null,"LC10",null,null,"Body length",null,null,"Fish",null,null,"Ascomycota",null,null,"Bivalvia",null,null,"ATSM hardwater",null,null,13,null,null,null,null,null,7.80]
[null,2,"Select the appropriate answer option to each question. Comments can be added to the cells in column H.",null,null,{"$f":"IF(Z3=\"\",0,1)","v":1},null,null,null,"Salinity/Conductivity","N.A.",null,null,null,"Aedes albopictus Ikaken strain",null,null,"1 year old",null,null,"164 days",null,null,"LC100",null,null,"Body weight",null,null,"Fish",null,null,"Basidiomycota",null,null,"Branchiopoda",null,null,"Bore water",null,null,13,null,null,null,null,null,8.10]
[null,"*","If the selected answer option does not work try clicking on any other cell first and then click back on the answer option again.",null,null,{"$f":"IF(AC3=\"\",0,1)","v":1},null,null,null,null,null,null,null,null,"Aedes albopictus MAmAal strain",null,null,"1st instar larvae",null,null,"19 days",null,null,"LC50",null,null,"Brood size",null,null,"Flagellate",null,null,"Chlorophyta",null,null,"Chlorophyceae",null,null,"CBS culture collection",null,null,13,null,null,null,null,null,"6.5-7"]
[null,"No.","Question","Marks Awarded","Answer Options","Option References","Scores","Answers",null,null,null,null,null,null,"Aedes albopictus SFmAal strain",null,null,"3rd brood",null,null,"21 day",null,null,"LC50",null,null,"brood survival",null,null,"Fungi",null,null,"Chordata",null,null,"Chlorophyceae  ",null,null,"Clean river water",null,null,14,null,null,null,null,null,"6.5-7.4"]
[null,null,"Was the duration of the exposure stated (e.g. 48 or 96 h)?",10,null,1,{"$f":"IF(F12=0,0,INDEX($D12:$D13,F12,1))","v":10},"21 days",null,null,null,null,null,null,"Aedes albopictus VBFmAal strain",null,null,"3rd brood neonate",null,null,"24 hrs",null,null,"LC90",null,null,"Cell count",null,null,"Green algae",null,null,"Chordata",null,null,"Chytridiomycetes",null,null,"Clean river watrer",null,null,16,null,null,null,null,null,"6.6-7.2"]
[null,1,null,0,null,null,null,null,null,null,null,null,null,null,"Aedes taeniorhynchus",null,null,"3rd brood neonate <24hr",null,null,"24h",null,null,"LC90",null,null,"Cell viability",null,null,"Macroinvertebrate",null,null,"Ciliophora",null,null,"Cryptophyceae",null,null,"Culture water",null,null,16,null,null,null,null,null,"6.8-7.5"]
[null,null,null,null,null,null,null,null,null,null,null,null,null,null,"AnopheIes quadrimaculatus",null,null,"4-5th instar larvae",null,null,"24hr",null,null,"LC95",null,null,"Cell volume",null,null,"Macroinvertebrate",null,null,"Cryptophyta",null,null,"Eurotatoria",null,null,"Daphtoxkit",null,null,17,null,null,null,null,null,"7.1 ± 0.5"]
[null,null,"Was the biological endpoint (e.g. immobilization or population growth) stated and defined (10 marks)? Award 5 marks if the biological endpoint is only stated.",10,null,1,{"$f":"IF(F15=0,0,INDEX($D15:$D17,F15,1))","v":10},"Survival",null,null,null,null,null,null,"Australian Bass",null,null,"4th instar larvae",null,null,"24hr",null,null,"LD50",null,null,"Colour change",null,null,"Microalga",null,null,"Mollusca",null,null,"Gammaproteobacteria",null,null,"Dechlorinated tap water",null,null,18,null,null,null,null,null,"7.25-8.06"]
[null,2,null,5,null,null,null,null,null,null,null,null,null,null,"Baetis tricaudatus",null,null,"5-7d adult",null,null,"25hr",null,null,"LOEC",null,null,"development",null,null,"Microinvertebrate",null,null,"N.A.",null,null,"Gastropoda",null,null,"dechlorinated water",null,null,18,null,null,null,null,null,"7.3 ± 0.2"]
[null,null,null,0,null,null,null,null,null,null,null,null,null,null,"Batrachochytrium dendrobatidis",null,null,"5th instar larvae",null,null,"26 days",null,null,"LOEC",null,null,"Development",null,null,"N.A.",null,null,"Ochrophyta",null,null,"Insecta",null,null,"deinonised reconstituted water",null,null,19,null,null,null,null,null,"7.35-7.6"]
[null,null,"Was the biological effect stated (e.g. LC or NOEC)?",5,null,1,{"$f":"IF(F18=0,0,INDEX($D18:$D19,F18,1))","v":5},"LOEC",null,null,null,null,null,null,"Batrachochytrium dendrobatidis",null,null,"6-11 g",null,null,"28 day",null,null,"LOEC",null,null,"Developmental",null,null,"Rotifer",null,null,"Proteobacteria",null,null,"Malacostraca",null,null,"deionised sterile water",null,null,20,null,null,null,null,null,"7.3-8.0"]
[null,3,null,0,null,null,null,null,null,null,null,null,null,null,"Ceriodaphnia dubia",null,null,"6-9cm length",null,null,"28 days",null,null,"N.A.",null,null,"Developmental",null,null,null,null,null,"Tracheophyta",null,null,"N.A.",null,null,"Deionised water",null,null,20,null,null,null,null,null,"7.51 ± 0.19"]
[null,null,null,null,null,null,null,null,null,null,null,null,null,null,"Chaoborus crystallinus",null,null,"7-11g",null,null,"28 days",null,null,"NOEC",null,null,"Fecundity",null,null,null,null,null,"Zygomycota",null,null,"Not assigned",null,null,"Deionised water with added salts",null,null,20,null,null,null,null,null,"7.6-7.75"]
[null,4,"Was the biological effect quantified (e.g. 50% effect, 25% effect)? \nNote: The effect for NOEC and LOEC data must be quantified.",5,null,2,{"$f":"IF(F21=0,0,INDEX($D21:$D22,F21,1))","v":0},null,null,null,null,null,null,null,"Chironomus crassicaudatus",null,null,"adult",null,null,"28 dyas",null,null,"NOEC",null,null,"Feed assimilation",null,null,null,null,null,null,null,null,"Prostomatea",null,null,"essential medium",null,null,20,null,null,null,null,null,"7.6-8.2"]
[null,null,null,0,null,null,null,null,null,null,null,null,null,null,"Chironomus dilutus",null,null,"Adult",null,null,"32 day",null,null,"NOEC",null,null,"Foraging success",null,null,null,null,null,null,null,null,"Sarcopterygii",null,null,"Filtered natural lake water",null,null,20,null,null,null,null,null,"7.78-8.33"]
[null,5,"Were appropriate controls (e.g. a no-toxicant control and/or solvent control) used?",5,null,1,{"$f":"IF(F23=0,0,INDEX($D23:$D24,F23,1))","v":5},"Recon water and solvent water",null,null,null,null,null,null,"Colubotelson chiltoni minor",null,null,"Adult (7.1-10.5cm length)",null,null,"35 day",null,null,"NOEL",null,null,"Gonad mass",null,null,null,null,null,null,null,null,"Teleostei",null,null,"Freshwater",null,null,21,null,null,null,null,null,"7.8 -+ 0.2"]
[null,null,null,0,null,null,null,null,null,null,null,null,null,null,"Cryptococcus flavescens",null,null,"adult female",null,null,"36 days",null,null,"NOEL",null,null,"Gonadosomatic index",null,null,null,null,null,null,null,null,"Tremellomycetes",null,null,"grown on tadpoles in freshwater",null,null,23,null,null,null,null,null,"7.8-8.1"]
[null,null,null,null,null,null,null,null,null,null,null,null,null,null,"Cryptomonas sp.",null,null,"Eggs",null,null,"4 day",null,null,null,null,null,"granulocyte count",null,null,null,null,null,null,null,null,null,null,null,"growth culture",null,null,23,null,null,null,null,null,"7-7.2"]
[null,6,"Was each control and contaminant concentration at least duplicated?",5,null,1,{"$f":"IF(F26=0,0,INDEX($D26:$D27,F26,1))","v":5},"Triplicate",null,null,null,null,null,null,"Culex nigripalpus",null,null,"embryo",null,null,"42 day",null,null,null,null,null,"Growth",null,null,null,null,null,null,null,null,null,null,null,"Lab water",null,null,23,null,null,null,null,null,"8 ± 0.2"]
[null,null,null,0,null,null,null,null,null,null,null,null,null,null,"Culex quinqefasciatus",null,null,"embryo",null,null,"45 days",null,null,null,null,null,"growth",null,null,null,null,null,null,null,null,null,null,null,"malt extract broth",null,null,23,null,null,null,null,null,"8.16-8.36"]
[null,null,null,null,null,null,null,null,null,null,null,null,null,null,"Culex quinqefasciatus HAmCq strain",null,null,"Embryo 1-2 hpf; 8-64 cell stage",null,null,"48 hr",null,null,null,null,null,"growth inhibition",null,null,null,null,null,null,null,null,null,null,null,"Marinewater",null,null,23,null,null,null,null,null,"8.32-8.61"]
[null,7,"Were test acceptability criteria stated (e.g. mortality in controls must not exceed a certain percentage) (5 marks)?\nOR Were test acceptability criteria inferred (e.g. test method used [USEPA, OECD, ASTM etc.]) (award 2 marks). \nNote: Data that fail the acceptability criteria are automatically deemed to be of unacceptable quality and must not be used. ",5,null,1,{"$f":"IF(F29=0,0,INDEX($D29:$D31,F29,1))","v":5},">70% survival in controls",null,null,null,null,null,null,"Culex quinqefasciatus S-Lab strain",null,null,"embryo to juvenile",null,null,"48 hrs",null,null,null,null,null,"growth: length",null,null,null,null,null,null,null,null,null,null,null,"Martins rearing solution",null,null,24,null,null,null,null,null,"8.32-8.61"]
[null,null,null,2,null,null,null,null,null,null,null,null,null,null,"Culex quinqefasciatus VBFmCq strain",null,null,"embryop",null,null,"48hr",null,null,null,null,null,"hatchability",null,null,null,null,null,null,null,null,null,null,null,"Milli-Q water",null,null,25,null,null,null,null,null,"N.A."]
[null,null,null,0,null,null,null,null,null,null,null,null,null,null,"Culex quinquefasciatus MAmCq strain",null,null,"Fingerlings",null,null,"5 day",null,null,null,null,null,"hatching time",null,null,null,null,null,null,null,null,null,null,null,"minimal medium",null,null,25,null,null,null,null,null,"N/A"]
[null,8,"Were the characteristics of the test organism (e.g. length, mass, age) stated?",5,null,1,{"$f":"IF(F32=0,0,INDEX($D32:$D34,F32,1))","v":5},"Eggs",null,null,null,null,null,null,"Cymbella sp. ",null,null,"fry",null,null,"5 months",null,null,null,null,null,"Immobilisation",null,null,null,null,null,null,null,null,null,null,null,"Mix of deionised water and hard water",null,null,25,null,null,null,null,null,"N/A"]
[null,null,null,0,null,null,null,null,null,null,null,null,null,null,"Cyprinus carpio",null,null,"glochidia",null,null,"6 days",null,null,null,null,null,"lymphocyte count",null,null,null,null,null,null,null,null,null,null,null,"moderate hard synthetic water",null,null,26,null,null,null,null,null,"not stated"]
[null,null,null,null,null,null,null,null,null,null,null,null,null,null,"Danio rerio",null,null,"glochidia",null,null,"60 day",null,null,null,null,null,"Mass",null,null,null,null,null,null,null,null,null,null,null,"moderately hard reconstituted water",null,null,26,null,null,null,null,null,"Not stated"]
[null,9,"Was the type of test media used stated?",5,null,1,{"$f":"IF(F35=0,0,INDEX($D35:$D37,F35,1))","v":5},"Recon water ",null,null,null,null,null,null,"Daphnia magna",null,null,"Glochidia",null,null,"7 day",null,null,null,null,null,"Mobility",null,null,null,null,null,null,null,null,null,null,null,"Moderately hard water",null,null,27,null,null,null,null,null,"Not stated"]
[null,null,null,0,null,null,null,null,null,null,null,null,null,null,"Daphnia pulex",null,null,"juvenile",null,null,"7 day",null,null,null,null,null,"mobility: swim speed",null,null,null,null,null,null,null,null,null,null,null,"moderately hard water",null,null,28.50,null,null,null,null,null,"Not stated"]
[null,null,null,null,null,null,null,null,null,null,null,null,null,null,"Diaptomus castor",null,null,"juvenile",null,null,"7 day",null,null,null,null,null,"Mortality",null,null,null,null,null,null,null,null,null,null,null,"moderately hard water",null,null,"2016-12-15",null,null,null,null,null,"Not stated"]
[null,null,"Was the type of exposure (e.g. static, flow through) stated? ",4,null,1,{"$f":"IF(F38=0,0,INDEX($D38:$D40,F38,1))","v":4},"Static renewal",null,null,null,null,null,null,"Diphetor hageni",null,null,"juvenile",null,null,"7 days",null,null,null,null,null,"Mortality",null,null,null,null,null,null,null,null,null,null,null,"moderately hard water",null,null,"12 to 15",null,null,null,null,null,"Not stated"]
[null,10,null,0,null,null,null,null,null,null,null,null,null,null,"Dreissena polymorpha",null,null,"juvenile",null,null,"7 days",null,null,null,null,null,"Mortality: disease susceptibility L. anguillarum",null,null,null,null,null,null,null,null,null,null,null,"N.A.",null,null,"12.5-15.5",null,null,null,null,null,"PH11"]
[null,null,null,null,null,null,null,null,null,null,null,null,null,null,"Elliptio complananta",null,null,"Juvenile",null,null,"7 dyas",null,null,null,null,null,"N.A.",null,null,null,null,null,null,null,null,null,null,null,"Not stated",null,null,"12.6±0.03",null,null,null,null,null,"PH7.0"]
[null,null,"Were the contaminant concentrations measured at the beginning and end of the exposure (4 marks)? Award 2 marks if they were measured only once during the test.\nNote: If the concentrations were not measured then automatically the data cannot be high quality. ",4,null,1,{"$f":"IF(F41=0,0,INDEX($D41:$D43,F41,1))","v":4},"HPLC",null,null,null,null,null,null,"Elliptio complanata",null,null,"Juvenile",null,null,"7-14 days",null,null,null,null,null,"number of broods",null,null,null,null,null,null,null,null,null,null,null,"potato dextrose agar",null,null,"15°C"]
[null,11,null,2,null,null,null,null,null,null,null,null,null,null,"Elliptio complanata",null,null,"Juvenile",null,null,"72 hrs",null,null,null,null,null,"number of broods",null,null,null,null,null,null,null,null,null,null,null,"reconstituted hard water",null,null,"18-22"]
[null,null,null,0,null,null,null,null,null,null,null,null,null,null,"Ephemeralla excrucians",null,null,"larvae",null,null,"7-8 days",null,null,null,null,null,"number of broods",null,null,null,null,null,null,null,null,null,null,null,"reconstituted hard water",null,null,"19.6-23.1"]
[null,null,"Were parallel reference toxicant toxicity tests conducted?",4,null,2,{"$f":"IF(F44=0,0,INDEX($D44:$D46,F44,1))","v":0},"Not stated",null,null,null,null,null,null,"Eucypris virens",null,null,"larvae",null,null,"8 days",null,null,null,null,null,"Nutrient assimilation",null,null,null,null,null,null,null,null,null,null,null,"reconstituted water",null,null,"19-21oC"]
[null,12,null,0,null,null,null,null,null,null,null,null,null,null,"Eunotia cf. incisa",null,null,"Larvae (96 hours post fertilisation)",null,null,"8 days",null,null,null,null,null,"phagocytic cell count",null,null,null,null,null,null,null,null,null,null,null,"reoncstituted water",null,null,"20 ± 1 "]
[null,null,null,null,null,null,null,null,null,null,null,null,null,null,"Fallceon quilleri",null,null,"Larval",null,null,"84 days",null,null,null,null,null,"Reproduction",null,null,null,null,null,null,null,null,null,null,null,"River water",null,null,"20 ± 2"]
[null,null,"Was there a concentration–response relationship either observable or stated?",4,null,1,{"$f":"IF(F47=0,0,INDEX($D47:$D49,F47,1))","v":4},"Figure 1",null,null,null,null,null,null,"Fusarium sporotrichioides",null,null,"larval (7-d post hatch)",null,null,"96 hour",null,null,null,null,null,"reproduction impairment",null,null,null,null,null,null,null,null,null,null,null,"Seawater",null,null,"20.1-21.9"]
[null,13,null,0,null,null,null,null,null,null,null,null,null,null,"Galaxias auratus",null,null,"lochidia",null,null,"96 hrs",null,null,null,null,null,"respiratory burst",null,null,null,null,null,null,null,null,null,null,null,"standard reference water",null,null,"20.1-21.9"]
[null,null,null,null,null,null,null,null,null,null,null,null,null,null,"Galaxias maculatus",null,null,"N.A.",null,null,"96hr",null,null,null,null,null,"Secondary sexual characteristics",null,null,null,null,null,null,null,null,null,null,null,"system water",null,null,"20.2 ± 0.1"]
[null,null,"Was an appropriate statistical method or model used to determine the toxicity?\nNote: They should be accepted by a recognised national or international regulatory body (e.g. USEPA, OECD, ASTM). ",4,null,1,{"$f":"IF(F50=0,0,INDEX($D50:$D52,F50,1))","v":4},null,null,null,null,null,null,null,"Galaxias maculatus",null,null,"Neonate",null,null,"N.A.",null,null,null,null,null,"serum lysozyme activity",null,null,null,null,null,null,null,null,null,null,null,"tannic acid aqueous solution",null,null,"20-22"]
[null,14,null,0,null,null,null,null,null,null,null,null,null,null,"Galaxias truttaceus ",null,null,"neonate",null,null,"NOEL",null,null,null,null,null,"sex ratio",null,null,null,null,null,null,null,null,null,null,null,"Tap water",null,null,"20oC"]
[null,null,null,null,null,null,null,null,null,null,null,null,null,null,"Glyptotendipes paripes",null,null,"neonate fed",null,null,"Not stated (test went until 120 hours post fertilisation)",null,null,null,null,null,"Survival",null,null,null,null,null,null,null,null,null,null,null,"Tap water",null,null,"21.4-25.4oC"]
[null,15,"For LC/EC/BEC data was an estimate of variability provided? \nOR \nFor NO EC/LOEC data was the significance level 0.05 or less?  \n\n",4,null,1,{"$f":"IF(F53=0,0,INDEX($D53:$D55,F53,1))","v":4},null,null,null,null,null,null,null,"Gomphonema gracile",null,null,"neonate unfed",null,null,null,null,null,null,null,null,"Swim ability",null,null,null,null,null,null,null,null,null,null,null,"Tap water",null,null,"21-24"]
[null,null,null,0,null,null,null,null,null,null,null,null,null,null,"Gomphonema spp. ",null,null,"Not stated",null,null,null,null,null,null,null,null,"time taken to release brood",null,null,null,null,null,null,null,null,null,null,null,"tap water",null,null,"22.0-22.4"]
[null,null,null,null,null,null,null,null,null,null,null,null,null,null,"Helicopsyche sp. ",null,null,"Not stated",null,null,null,null,null,null,null,null,"time until brood release",null,null,null,null,null,null,null,null,null,null,null,"unfiltered river water",null,null,"22.5-23.5oC"]
[null,16,"Were the following parameters measured and stated? (3 marks if measured and stated, 1 mark if just measured).",null,null,null,null,null,null,null,null,null,null,null,"Hexagenia sp.",null,null,"Not stated",null,null,null,null,null,null,null,null,"viability",null,null,null,null,null,null,null,null,null,null,null,null,null,null,"22-23"]
[null,null,null,3,null,3,{"$f":"IF(F57=0,0,INDEX($D57:$D59,F57,1))","v":0},null,null,null,null,null,null,null,"Hyalella azteca",null,null,"Not stated",null,null,null,null,null,null,null,null,"viability",null,null,null,null,null,null,null,null,null,null,null,null,null,null,"22-24"]
[null,16.10,"pH",1,null,null,null,null,null,null,null,null,null,null,"Hydropsyche sp. ",null,null,"tadpole",null,null,null,null,null,null,null,null,"viability",null,null,null,null,null,null,null,null,null,null,null,null,null,null,"22-26oC"]
[null,null,null,0,null,null,null,null,null,null,null,null,null,null,"Hyla cinerea",null,null,"tadpole",null,null,null,null,null,null,null,null,"Viability: ability to attach to host",null,null,null,null,null,null,null,null,null,null,null,null,null,null,"23 ± 0.3"]
[null,null,null,3,null,3,{"$f":"IF(F60=0,0,INDEX($D60:$D62,F60,1))","v":0},null,null,null,null,null,null,null,"Hyla squirella",null,null,"unknown",null,null,null,null,null,null,null,null,"Viability: ability to attach to host",null,null,null,null,null,null,null,null,null,null,null,null,null,null,"23.1 ± 0.3"]
[null,16.20,"Dissolved Oxygen",1,null,null,null,null,null,null,null,null,null,null,"Ictalurus punctatus",null,null,null,null,null,null,null,null,null,null,null,null,null,null,null,null,null,null,null,null,null,null,null,null,null,null,"23.2 ± 0.4°C"]
[null,null,null,0,null,null,null,null,null,null,null,null,null,null,"Isoperla quinquepunctata",null,null,null,null,null,null,null,null,null,null,null,null,null,null,null,null,null,null,null,null,null,null,null,null,null,null,"23-25"]
[null,null,"Was the temperature measured and stated (3 marks)? Award 1 mark if the temperature was measured but not stated or if only the temperature settings of the room or chamber are stated.",3,null,2,{"$f":"IF(F63=0,0,INDEX(D63:D65,F63,1))","v":1},"20oC%",null,null,null,null,null,null,"Lampsilis fasciola",null,null,null,null,null,null,null,null,null,null,null,null,null,null,null,null,null,null,null,null,null,null,null,null,null,null,"24-26"]
[null,17,null,1,null,null,null,null,null,null,null,null,null,null,"Lampsilis siliquoidea",null,null,null,null,null,null,null,null,null,null,null,null,null,null,null,null,null,null,null,null,null,null,null,null,null,null,"24-26"]
[null,null,null,0,null,null,null,null,null,null,null,null,null,null,"Lampsilis siliquoidea",null,null,null,null,null,null,null,null,null,null,null,null,null,null,null,null,null,null,null,null,null,null,null,null,null,null,"25 ± 1"]
[null,null,"Were test solutions, blanks and/or controls tested for contamination OR were analytical reagent grade chemicals used or the highest possible purity chemicals used for the experiment? (3 marks).",3,null,1,{"$f":"IF(F66=0,0,INDEX($D66:$D67,F66,1))","v":3},"Aldrich",null,null,null,null,null,null,"Lepomis macrochirus",null,null,null,null,null,null,null,null,null,null,null,null,null,null,null,null,null,null,null,null,null,null,null,null,null,null,"25.5-26.5oC"]
[null,18,null,0,null,null,null,null,null,null,null,null,null,null,"Marisa cornuarietis",null,null,null,null,null,null,null,null,null,null,null,null,null,null,null,null,null,null,null,null,null,null,null,null,null,null,"25.8–28.2"]
[null,null,null,null,null,null,null,null,null,null,null,null,null,null,"Marisa cornuarietis",null,null,null,null,null,null,null,null,null,null,null,null,null,null,null,null,null,null,null,null,null,null,null,null,null,null,"25±1"]
[null,null,null,null,null,null,null,null,{"$f":"(COUNTIF(F12:F67,\"=0\"))+COUNTIF(F2:F10,\"=0\")+COUNTIF(D2:D7,\"=0\")","v":0},null,null,null,null,null,"Mucor hiemalis",null,null,null,null,null,null,null,null,null,null,null,null,null,null,null,null,null,null,null,null,null,null,null,null,null,null,"25°C"]
[null,null,null,null,null,null,null,null,null,null,null,null,null,null,"N.A.",null,null,null,null,null,null,null,null,null,null,null,null,null,null,null,null,null,null,null,null,null,null,null,null,null,null,"26 ± 2"]
[null,null,null,null,null,null,null,null,null,null,null,null,null,null,"Navicula cryptotenella",null,null,null,null,null,null,null,null,null,null,null,null,null,null,null,null,null,null,null,null,null,null,null,null,null,null,"28 + 3"]
[null,null,"Total score",null,null,null,{"$f":"IF(SUM(G12:G66)=0,\"\",SUM(G12:G66))","v":74},null,null,null,null,null,null,null,"Nectopsyche sp.",null,null,null,null,null,null,null,null,null,null,null,null,null,null,null,null,null,null,null,null,null,null,null,null,null,null,"28 ± 1"]
[null,null,"Total Max. possible score for the various types of data and contaminants ",null,{"$f":"D12+D15+D18+D21+D23+D26+D29+D32+D35+D38+D41+D44+D47+D50+D53+D57+D60+D63+D66","v":91},null,null,null,null,null,null,null,null,null,"Neoniphargus sp.",null,null,null,null,null,null,null,null,null,null,null,null,null,null,null,null,null,null,null,null,null,null,null,null,null,null,"28-29oC"]
[null,null,"Quality Score",null,{"$f":"\"= [Total score / Total possible score] * 100 = \"","v":"= [Total score / Total possible score] * 100 = "},null,{"$f":"IF(ISERROR(G72/E73),#N/A,G72/E73)","v":0.81318681318681318},{"$f":"IF(F41=3,\"The highest possible grade for this datum is acceptable.\",\"\")","v":""},null,null,null,null,null,null,"Oncorhynchus mykiss",null,null,null,null,null,null,null,null,null,null,null,null,null,null,null,null,null,null,null,null,null,null,null,null,null,null,"28-30"]
[null,null,null,null,null,null,null,null,null,null,null,null,null,null,"Oreochromis mossambicus",null,null,null,null,null,null,null,null,null,null,null,null,null,null,null,null,null,null,null,null,null,null,null,null,null,null,"N.A."]
[null,null,"H = high quality                           Quality score ≥ 80%      ",null,null,null,null,null,null,null,null,null,null,null,"Oryzias latipes",null,null,null,null,null,null,null,null,null,null,null,null,null,null,null,null,null,null,null,null,null,null,null,null,null,null,"N/A"]
[null,null,"A = acceptable quality         > 50% Quality score < 80%        ",null,null,null,null,null,null,null,null,null,null,null,"Osteopilus septentrionalis",null,null,null,null,null,null,null,null,null,null,null,null,null,null,null,null,null,null,null,null,null,null,null,null,null,null,"Not stated"]
[null,null,"U = unacceptable quality              Quality score ≤ 50%  ",null,null,null,null,null,null,null,null,null,null,null,"Pacifastacus leniusculus",null,null,null,null,null,null,null,null,null,null,null,null,null,null,null,null,null,null,null,null,null,null,null,null,null,null,"20oC"]
[null,null,null,null,null,null,null,null,null,null,null,null,null,null,"Palaemonetes pugio"]
[3,null,"Click the 'Save & Update' button to save and export the answers to the 'All results' worksheet. ",null,null,null,null,null,null,null,null,null,null,null,"Parutya austruliensis"]
[null,null,"Select the 'Reset Answers' button if you wish to clear all answers.",null,null,null,null,null,null,null,null,null,null,null,"Philodina acuticornis odiosa"]
[null,null,null,null,null,null,null,null,null,null,null,null,null,null,"Physa acuta"]
[null,null,null,null,null,null,null,null,null,null,null,null,null,null,"Pimephales promelas"]
[null,null,null,null,null,null,null,null,null,null,null,null,null,null,"Polypedilum nubiferum"]
[null,null,null,null,null,null,null,null,null,null,null,null,null,null,"Procambarus clarkii"]
[null,null,null,null,null,null,null,null,null,null,null,null,null,null,"Procambarus zonangulus"]
[null,null,null,null,null,null,null,null,null,null,null,null,null,null,"Pseudaphritis urvillir"]
[null,null,null,null,null,null,null,null,null,null,null,null,null,null,"Pythium spp"]
[null,null,null,null,null,null,null,null,null,null,null,null,null,null,"Rana sphenocephala"]
[null,null,null,null,null,null,null,null,null,null,null,null,null,null,"Rncyonema gracilis"]
[null,null,null,null,null,null,null,null,null,null,null,null,null,null,"Salmo gairdneri"]
[null,null,null,null,null,null,null,null,null,null,null,null,null,null,"Selenastrum capricornutum"]
[null,null,null,null,null,null,null,null,null,null,null,null,null,null,"Serratella micheneri"]
[null,null,null,null,null,null,null,null,null,null,null,null,null,null,"Simocephalus elizabethae"]
[null,null,null,null,null,null,null,null,null,null,null,null,null,null,"Simulium vittatum"]
[null,null,null,null,null,null,null,null,null,null,null,null,null,null,"Simulium vittatum IS-7"]
[null,null,null,null,null,null,null,null,null,null,null,null,null,null,"Spea multiplicata"]
[null,null,null,null,null,null,null,null,null,null,null,null,null,null,"Taenionema sp."]
[null,null,null,null,null,null,null,null,null,null,null,null,null,null,"Trichoderma hamatum"]
[null,null,null,null,null,null,null,null,null,null,null,null,null,null,"Tricorythodes sp. "]
[null,null,null,null,null,null,null,null,null,null,null,null,null,null,"Ulnaria ulna"]
[null,null,null,null,null,null,null,null,null,null,null,null,null,null,"Unio elongatulus"]
[null,null,null,null,null,null,null,null,null,null,null,null,null,null,"Urotricha furcata"]
[null,null,null,null,null,null,null,null,null,null,null,null,null,null,"Villosa constricta"]
[null,null,null,null,null,null,null,null,null,null,null,null,null,null,"Villosa delumbis"]
[null,null,null,null,null,null,null,null,null,null,null,null,null,null,"Xenopus laevis"]
[null,null,null,null,null,null,null,null,null,null,null,null,null,null,"Xenopus laevis"]
[null,null,null,null,null,null,null,null,null,null,null,null,null,null,"Physa acuta"]

{"sheet":"FW nonmetal nonplant_WS","index":6,"n_rows":150,"n_cols":24,"rows_kept":150,"cut":false,"hidden":false,"merged":[]}
[]
["Question No.",1,2,3,4,5,6,7,8,9,10,11,12,13,14,15,16.10,16.60,17,18,"Total Score","Quality Score",null,"Comment "]
["Short Questions","Duration of the exposure ","Biological endpoint","Biological effect stated or not","Biological effect quantified or not","Appropriate controls","Control & contaminant concentration","Test acceptability criteria","Characteristics of the test organism"," Type of test media","Type of exposure","Contaminant concentrations","Parallel reference toxicant toxicity tests","Concentration–response relationship","Determine the toxicity","NOEC/LOEC or LC/EC/BEC","pH","Dissolved oxygen","Temperature","Grade or purity"]
["Category","Freshwater/non-metal/non- plant","Paper and data unique identifier(eg. 1-1,10-150)","296-1"]
["Scores",10,10,5,5,5,5,5,5,5,4,4,0,4,4,0,3,3,3,0,86,0.83495145631067957]
["Answers","10 days","Survival (failure to respond to mechanical stimulus; AM)","LC50","LC50","Yes both water control (dechlorinated mains water) and ethanol positive control","Yes - ten animals per treatment","Yes - all animals in the control and positive control survived","Yes - length","Dechlorinated tap water + ethanol","Semi-static","Yes","Not stated","Yes figure 1 ","","Not stated","6.9-7.3","72-85%","16 +/- 1oC","No"]
["Category","Freshwater/non-metal/non- plant","Paper and data unique identifier(eg. 1-1,10-150)","738-1"]
["Scores",10,10,5,0,5,5,0,5,5,4,0,4,4,4,4,0,0,3,0,68,0.66019417475728159]
["Answers","14 d","Reproduction - hatching","NOEC","","Aquaria water (tap water)","Yes - 9 reps","","Embryos","Tap water ","Static renewal","","Cadmium","Figure 4","Yes","Yes","","","26+/-0.5oC",""]
["Category","Freshwater/non-metal/non- plant","Paper and data unique identifier(eg. 1-1,10-150)","737-1"]
["Scores",10,10,5,0,5,5,0,5,5,4,0,4,0,4,0,3,3,3,0,66,0.64077669902912626]
["Answers","28 d","Growth - shell height","NOEC","","Recon water and solvent controls","Yes four reps per treatment group","","Yes - adult (based on size)","Recon water and solvent control (DMSO)","Static renewal","","Not stated","","Yes","Yes","7.5-8.5",">80%","16+/-1oC",""]
["Category","Freshwater/non-metal/non- plant","Paper and data unique identifier(eg. 1-1,10-150)","736-1"]
["Scores",10,10,5,0,5,5,0,5,5,4,0,4,0,4,4,3,3,3,0,73,0.70873786407766992]
["Answers","60 d","Mortality","NOEC","","Dechlorinated tap water and solvent controls (DMSO)","Yes - triplicate","","Yes - age","Dechlorinated tap water and solvent controls (DMSO)","Static renewal","","Not stated","","Yes","Yes","7.2-7.6","6.8-8.3 mg/L","22+/-1oC",""]
["Category","Freshwater/non-metal/non- plant","Paper and data unique identifier(eg. 1-1,10-150)","735-1"]
["Scores",10,10,5,0,5,5,5,5,5,4,4,0,4,4,4,0,0,3,0,73,0.70873786407766992]
["Answers","21 d","Mortality","LOEC","","reconstituted water and solvent control","Yes - triplicate","Yes - 70% survival in controls","Yes - age","recon water (OECD)","Static renewal","HPLC (solid-phase extraction (SPE)-gas chromatography-mass spectrometry)","Not stated","Figure 1","Yes","Yes","","","20oC",""]
["Category","Freshwater/non-metal/non- plant","Paper and data unique identifier(eg. 1-1,10-150)","734-2"]
["Scores",10,10,5,5,5,5,0,5,5,4,0,4,4,4,0,0,0,3,0,69,0.66990291262135926]
["Answers","5 d","Growth ","IC50","IC50","Water or DMSO was used as the solvent","Yes","","Culture discussed","Lettuce infusion","Static renewal","","Not stated","Table 1","Yes","","","","23+/-1oC",""]
["Category","Freshwater/non-metal/non- plant","Paper and data unique identifier(eg. 1-1,10-150)","734-1"]
["Scores",10,10,5,5,5,5,0,5,5,4,0,4,4,4,0,0,0,3,0,69,0.66990291262135926]
["Answers","5 d","Growth ","IC50","IC50","Water or DMSO was used as the solvent","Yes","","Culture discussed","Lettuce infusion","Static renewal","","Not stated","Table 2","Yes","","","","23+/-1oC",""]
["Category","Freshwater/non-metal/non- plant","Paper and data unique identifier(eg. 1-1,10-150)","732-1"]
["Scores",10,10,5,5,5,5,0,5,5,4,4,4,4,4,4,0,0,3,0,77,0.74757281553398058]
["Answers","14 d","Mortality ","NOEC","NOEC","Amphitox Solution (AS)  and AS plus acetone (solvent)","Yes triplicate","","Yes - stage","AS solution","Static renewal","Yes FTIR (purity) and UV-VIS spectrophotometry","Not stated","Figure 2","Yes","Yes","","","20+/-2oC",""]
["Category","Freshwater/non-metal/non- plant","Paper and data unique identifier(eg. 1-1,10-150)","731-1"]
["Scores",10,10,0,0,5,5,0,5,5,4,0,0,4,4,4,0,0,3,0,59,0.57281553398058249]
["Answers","21 d","Reproduction - # neonates","No","No","Yes - solvent water and media controls","Yes - 3 reps per concentration","No","Yes age < 24 h old","Culture medium","Static renewal","No","Not stated","Figure 2","Yes","Yes p<0.05","","","2o+/-1oC",""]
["Category","Freshwater/non-metal/non- plant","Paper and data unique identifier(eg. 1-1,10-150)","730-2"]
["Scores",10,10,5,0,5,5,0,5,5,4,0,0,4,4,4,0,0,3,0,64,0.62135922330097082]
["Answers","6 days","Growth rate","LOEC","No","Yes spring water controls","Yes","","Yes life stage - Gemmules","Sping water","Static renewal","No","Not stated","Figure 4","Yes","Yes","","","22oC",""]
["Category","Freshwater/non-metal/non- plant","Paper and data unique identifier(eg. 1-1,10-150)","730-1"]
["Scores",10,10,5,0,5,5,0,5,5,4,0,0,4,4,4,0,0,3,0,64,0.62135922330097082]
["Answers","6 days","Growth rate","NOEC","No","Yes spring water controls","Yes","","Yes life stage - Gemmules","Sping water","Static renewal","No","Not stated","Figure 4","Yes","Yes","","","22oC",""]
["Category","Freshwater/non-metal/non- plant","Paper and data unique identifier(eg. 1-1,10-150)","297-1"]
["Scores",10,10,0,0,5,5,2,5,5,4,0,4,4,4,0,0,0,3,0,61,0.59223300970873782]
["Answers","21 days","Survival","NOEC or LOEC not stated - taken from Table 5","No","Solvent control","Yes - ten replicates","Stated that chronic tests were undertaken to reduce mortality. No mortality was observed in the controls.","Yes - neonates","Fresh culture medium as per ISO guidelines","Semi-static","No","With acute tests with potassium dichromate","Yes table 5.","Yes","Not stated","","","20 +/- 1oC","No"]
["Category","Freshwater/non-metal/non- plant","Paper and data unique identifier(eg. 1-1,10-150)","297-2"]
["Scores",10,10,0,0,5,5,2,5,5,4,0,4,4,4,0,0,0,3,0,61,0.59223300970873782]
["Answers","21 days","Survival","NOEC or LOEC not stated - taken from Table 5","No","Solvent control","Yes - ten replicates","Stated that chronic tests were undertaken to reduce mortality. No mortality was observed in the controls.","Yes - neonates","Fresh culture medium as per ISO guidelines","Semi-static","No","With acute tests with potassium dichromate","Yes table 5.","Yes","Not stated","","","20 +/- 1oC","No"]
["Category","Freshwater/non-metal/non- plant","Paper and data unique identifier(eg. 1-1,10-150)","297-3"]
["Scores",10,10,0,0,5,5,2,5,5,4,0,4,4,4,0,0,0,3,0,61,0.59223300970873782]
["Answers","21 days","Survival","NOEC or LOEC not stated - taken from Table 5","No","Solvent control","Yes - ten replicates","Stated that chronic tests were undertaken to reduce mortality. No mortality was observed in the controls.","Yes - neonates","Fresh culture medium as per ISO guidelines","Semi-static","No","With acute tests with potassium dichromate","Yes table 5.","Yes","Not stated","","","20 +/- 1oC","No"]
["Category","Freshwater/non-metal/non- plant","Paper and data unique identifier(eg. 1-1,10-150)","297-4"]
["Scores",10,10,0,0,5,5,2,5,5,4,0,4,4,4,0,0,0,3,0,61,0.59223300970873782]
["Answers","21 days","Survival","NOEC or LOEC not stated - taken from Table 5","No","Solvent control","Yes - ten replicates","Stated that chronic tests were undertaken to reduce mortality. No mortality was observed in the controls.","Yes - neonates","Fresh culture medium as per ISO guidelines","Semi-static","No","With acute tests with potassium dichromate","Yes table 5.","Yes","Not stated","","","20 +/- 1oC","No"]
["Category","Freshwater/non-metal/non- plant","Paper and data unique identifier(eg. 1-1,10-150)","707-1"]
["Scores",10,10,5,0,5,5,0,5,5,4,0,0,4,4,4,3,3,3,3,76,0.73786407766990292]
["Answers","90 d","Growth - weight and length","LOEC","No","Yes","Yes","","Yes - age","deinionized and tap water","Flow-through","No","Not stated","Figures","Yes","Yes","8.25-8.75","6.45-10.97 mg/L","26+/-1oC",">99% BPA Cas no. 80-05-7"]
["Category","Freshwater/non-metal/non- plant","Paper and data unique identifier(eg. 1-1,10-150)","720-1"]
["Scores",10,5,0,0,5,5,2,5,5,4,4,0,4,4,4,3,3,3,3,78,0.75728155339805825]
["Answers","164 d","Survival - mortality","No - taken from data","No - taken from data","Yes - well water control","Yes 16 fish per replicate exposure chamber and 128 fish per treatment","US EPA procedures","Age - 120 dph","Yes - well water","Flow through chambers","Yes - HPLC","No - not stated","Tables of results provided","Yes","95% CI's provided","7.75-8.08","6.5-6.6 mg/L","25 +/- 1oC","99.76% Bisphenol A (4,4'-isopropylidene diphenol CAS 80-05-7)."]
["Category","Freshwater/non-metal/non- plant","Paper and data unique identifier(eg. 1-1,10-150)","720-2"]
["Scores",10,5,0,0,5,5,2,5,5,4,4,0,4,4,4,3,3,3,3,78,0.75728155339805825]
["Answers","164 d","Survival - mortality","No - taken from data","No - taken from data","Yes - well water control","Yes 16 fish per replicate exposure chamber and 128 fish per treatment","US EPA procedures","Age - 120 dph","Yes - well water","Flow through chambers","Yes - HPLC","No - not stated","Tables of results provided","Yes","95% CI's provided","7.75-8.08","6.5-6.6 mg/L","25 +/- 1oC","99.76% Bisphenol A (4,4'-isopropylidene diphenol CAS 80-05-7)."]
["Category","Freshwater/non-metal/non- plant","Paper and data unique identifier(eg. 1-1,10-150)","720-3"]
["Scores",10,5,0,0,5,5,2,5,5,4,4,0,4,4,4,3,3,3,3,78,0.75728155339805825]
["Answers","164 d","Reproduction - # spawns, # eggs","No - taken from data","No - taken from data","Yes - well water control","Yes 16 fish per replicate exposure chamber and 128 fish per treatment","US EPA procedures","Age - 120 dph","Yes - well water","Flow through chambers","Yes - HPLC","No - not stated","Tables of results provided","Yes","95% CI's provided","7.75-8.08","6.5-6.6 mg/L","25 +/- 1oC","99.76% Bisphenol A (4,4'-isopropylidene diphenol CAS 80-05-7)."]
["Category","Freshwater/non-metal/non- plant","Paper and data unique identifier(eg. 1-1,10-150)","721-1"]
["Scores",10,10,5,5,5,5,2,5,5,4,4,0,4,4,4,3,3,3,3,84,0.81553398058252424]
["Answers","164 d","Reproduction - hatching success in F2 generation","Table 2 - F2 generation","","Yes - dechlorinated tap water","Yes - described in detail on page 1550","US EPA procedures","Yes - age","Yes - dechlorinated tap water","Flow through chambers","Yes - HPLC","No - not stated","Graphs given","Yes","95% CI's provided","7.1-8.0","5.6-8.6 mg/L","24.1-25.8oC",">99% (4.4'-isopropylidene diphenol, Cas 80-05-7)"]
["Category","Freshwater/non-metal/non- plant","Paper and data unique identifier(eg. 1-1,10-150)","722-1"]
["Scores",10,10,5,5,5,5,2,5,5,4,4,0,4,4,0,3,3,3,3,92,0.89320388349514568]
["Answers","2 d","Reproduction - intrinsic rate of population incerase","NOEC","Yes - defined","Yes - fortified well water","Yes - 8 test vessels with six rotifers per concentration","ASTM guidelines","Yes - age","Yes - fortified well water","Static","Yes - HPLC","No - not stated","Table 3 results presented","Yes","Info not provided",8,"8.1-9.1 mg/L","23+/- 1oC ","99.3% (4.4'-isopropylidene diphenol, Cas 80-05-7)"]
["Category","Freshwater/non-metal/non- plant","Paper and data unique identifier(eg. 1-1,10-150)","722-2"]
["Scores",10,10,5,5,5,5,2,5,5,4,4,0,4,4,0,3,3,3,3,92,0.89320388349514568]
["Answers","2 d","Reproduction - intrinsic rate of population incerase","LOEC","Yes - defined","Yes - fortified well water","Yes - 8 test vessels with six rotifers per concentration","ASTM guidelines","Yes - age","Yes - fortified well water","Static","Yes - HPLC","No - not stated","Table 3 results presented","Yes","Info not provided",8,"8.1-9.1 mg/L","25+/- 1oC","99.3% (4.4'-isopropylidene diphenol, Cas 80-05-7)"]
["Category","Freshwater/non-metal/non- plant","Paper and data unique identifier(eg. 1-1,10-150)","722-3"]
["Scores",10,10,5,5,5,5,5,5,0,4,4,0,4,4,4,3,3,3,3,94,0.91262135922330101]
["Answers","42 d","Survival","LC50","Yes - defined","Yes - dilution water and pH-buffered control","Yes - 12 exposure vells er concentration with 10 amphipods per vessel","USEPA and GLP","Yes - age","No - not sure if well water or recon","Yes flow through","Yes - HPLC","No - not stated","Table 4 results presented","Yes","Yes 95% CI","7.4-7.8","5.9-8.8 mg/L","22-24oC","99.3% (4.4'-isopropylidene diphenol, Cas 80-05-7)"]
["Category","Freshwater/non-metal/non- plant","Paper and data unique identifier(eg. 1-1,10-150)","722-4"]
["Scores",10,10,5,5,5,5,5,5,0,4,4,0,4,4,4,3,3,3,3,94,0.91262135922330101]
["Answers","42 d","Reproduction","NOEC","Yes - defined","Yes - dilution water and pH-buffered control","Yes - 12 exposure vells er concentration with 10 amphipods per vessel","USEPA and GLP","Yes - age","No - not sure if well water or recon","Yes flow through","Yes - HPLC","No - not stated","Table 4 results presented","Yes","Yes 95% CI","7.4-7.8","5.9-8.8 mg/L","22-24oC","99.3% (4.4'-isopropylidene diphenol, Cas 80-05-7)"]
["Category","Freshwater/non-metal/non- plant","Paper and data unique identifier(eg. 1-1,10-150)","722-5"]
["Scores",10,10,5,5,5,5,5,5,0,4,4,0,4,4,4,3,3,3,3,94,0.91262135922330101]
["Answers","42 d","Reproduction","LOEC","Yes - defined","Yes - dilution water and pH-buffered control","Yes - 12 exposure vells er concentration with 10 amphipods per vessel","USEPA and GLP","Yes - age","No - not sure if well water or recon","Yes flow through","Yes - HPLC","No - not stated","Table 4 results presented","Yes","Yes 95% CI","7.4-7.8","5.9-8.8 mg/L","22-24oC","99.3% (4.4'-isopropylidene diphenol, Cas 80-05-7)"]
["Category","Freshwater/non-metal/non- plant","Paper and data unique identifier(eg. 1-1,10-150)","725-1"]
["Scores",10,10,5,0,5,5,0,5,5,4,0,0,0,4,4,0,0,3,3,63,0.61165048543689315]
["Answers","14 d","Survival","LC50","","Yes dechlorinated tap water + solvent carrier","2 replicates","","Age","DMSO solvent and dechlorinated tap water","Static","Not stated","No - not stated","","Yes","Yes ","","","25+/- 1oC",">95% (22-bis(4-hydroxyphenol)propane)"]
["Category","Freshwater/non-metal/non- plant","Paper and data unique identifier(eg. 1-1,10-150)","725-2"]
["Scores",10,10,5,0,5,5,0,5,5,4,0,0,4,4,4,0,0,3,3,67,0.65048543689320393]
["Answers","14 d","Hatchability","LOEC","","Yes dechlorinated tap water + solvent carrier","2 replicates","","Age","DMSO solvent and dechlorinated tap water","Static","Not stated","No - not stated","Figure 2B","Yes","Yes ","","","25+/- 1oC",">95% (22-bis(4-hydroxyphenol)propane)"]
["Category","Freshwater/non-metal/non- plant","Paper and data unique identifier(eg. 1-1,10-150)","726-1"]
["Scores",10,10,5,0,5,5,2,5,5,4,4,4,4,4,4,3,3,3,0,89,0.86407766990291257]
["Answers","90 d","Survival ","NOEC","No","Dechlorinated water","Yes - four reps","Xenopus protocols - FETAX","Yes - age","Dechlorinated tap water","Flow-through","Yes","Yes, 17b-estradiol (E2)","Yes Figure 2","Yes","Yes","7.19-7.79","7.0-9.0 mg/L","22+/-1oC","No"]
["Category","Freshwater/non-metal/non- plant","Paper and data unique identifier(eg. 1-1,10-150)","726-2"]
["Scores",10,10,5,0,5,5,2,5,5,4,4,0,4,4,4,3,0,3,0,82,0.79611650485436891]
["Answers","90 d","Survival","LOEC","No","Dechlorinated water","Yes - four reps","Xenopus protocols - FETAX","Yes - age","Dechlorinated tap water","Flow-through","Yes","Not stated","Yes Figure 2","Yes","Yes","7.19-7.79","7.0-9.0 mg/L","22+/-1oC","No"]
["Category","Freshwater/non-metal/non- plant","Paper and data unique identifier(eg. 1-1,10-150)","726-3"]
["Scores",10,10,5,0,5,5,2,5,5,4,4,4,4,4,4,3,3,3,0,89,0.86407766990291257]
["Answers","90 d","Development","NOEC","No","Dechlorinated water","Yes - four reps","Xenopus protocols - FETAX","Yes - age","Dechlorinated tap water","Flow-through","Yes","Not stated (Yes, 17b-estradiol (E2)","Yes Figure 2","Yes","Yes","7.19-7.79","7.0-9.0 mg/L","22+/-1oC","No"]
["Category","Freshwater/non-metal/non- plant","Paper and data unique identifier(eg. 1-1,10-150)","727-4"]
["Scores",10,10,5,0,5,5,2,5,5,4,4,0,4,4,4,1,1,3,0,75,0.72815533980582525]
["Answers","60 d","Growth - weight","NOEC","No","Yes - blend of naturally hard well water with deminaralized well water","Yes","OECD and GLP","Yes - age","Blend of naturally hard well water with demineralized well water","Flow-through","Yes HPLC","Not stated","Tables and figures","Yes","Yes","","","25+/- 1oC","No"]
["Category","Freshwater/non-metal/non- plant","Paper and data unique identifier(eg. 1-1,10-150)","728-1"]
["Scores",10,10,5,0,5,5,0,5,5,4,0,0,4,4,4,3,1,3,0,68,0.66019417475728159]
["Answers","90 d","Growth - weight","NOEC","No","Yes - water and solvent control","Yes","","Yes - age","The solvent control was dimethyl sulfoxide and this was used for the analysis","Static - renewal","","Not stated","Table","Yes","Yes","7.3-7.8","5.7-6.2 mg/L","18-22oC","No"]
["Category","Freshwater/non-metal/non- plant","Paper and data unique identifier(eg. 1-1,10-150)","729-2"]
["Scores",0,10,5,0,5,5,0,5,5,4,4,0,4,4,4,3,3,3,0,70,0.67961165048543692]
["Answers","> 10 d. 2 days after fourth instar larvae","Growth - weight","LOEC","No","Yes - solvent and dechlorinated water controls","Yes","","Yes - age","Solvent - ethanol and dechlorinated tap water","Static renewal","Yes - GC/MS","Not stated","Figure 1","Yes","Yes","6.9-7.6","72-85%","20+/-1oC",""]
["Category","Freshwater/non-metal/non- plant","Paper and data unique identifier(eg. 1-1,10-150)","725-3"]
["Scores",10,10,5,0,5,5,0,5,5,4,0,0,4,4,4,0,0,3,3,67,0.73626373626373631,null,"The highest possible grade for this datum is acceptable."]
["Answers","14 days","Hatchability","LOEC","","Yes dechlorinated tap water + solvent carrier","2 replicates","","Age","DMSO solvent and dechlorinated tap water","Static","Not stated","No - not stated","Figure 2B","","","","","25+/- 1oC",">95% (22-bis(4-hydroxyphenol)propane)"]
["Category","Freshwater/non-metal/non- plant","Paper and data unique identifier(eg. 1-1,10-150)","287-3"]
["Scores",10,5,5,5,5,5,2,5,5,0,2,0,4,4,4,0,0,1,3,65,0.7142857142857143,null,""]
["Answers","96 hours","Total cell volume","CE10","EC10","EPA procedures","EPA procedures so assume yes","EPA procedures so inferred","EPA procedures so assumed. Does state lab culture. ","Yes - algal assay medium","EPA procedures - algal tests static","Yes - reverse phase liquid chromatographic methodolgy","No - not stated","Table 3. ","","95% CI's provided","","","24 +/- 2oC","99.93% (polycarbonate grade bisphenol A)"]
["Category","Freshwater/non-metal/non- plant","Paper and data unique identifier(eg. 1-1,10-150)","287-4"]
["Scores",10,5,5,5,5,5,2,5,5,0,2,0,4,4,4,0,0,1,3,65,0.7142857142857143,null,""]
["Answers","96 hours","Total cell volume","EC10","EC10","EPA procedures","EPA procedures so assume yes","EPA procedures so inferred","EPA procedures so assumed. Does state lab culture. ","Yes - algal assay medium","EPA procedures - algal tests static","Yes - reverse phase liquid chromatographic methodolgy","No - not stated","Table 3. ","","95% CI's provided","","","24 +/- 2oC","99.93% (polycarbonate grade bisphenol A)"]
["Category","Freshwater/non-metal/non- plant","Paper and data unique identifier(eg. 1-1,10-150)","721-2"]
["Scores",10,10,0,5,5,5,5,5,5,4,2,0,0,4,4,3,3,3,3,76,0.8351648351648352,null,""]
["Answers","36 days","% survival","Read from Table 1","","Both a negative and postive control","Yes - described in detail on page 1550","US EPA procedures","Viabe eggs less than 24 hours old. ","Yes - dechlorinated tap water","Flow through chambers","Yes - HPLC","","NOEC was the highest treatment concentration. No effect observed on mortality in the F0.","","","7.25-8.06","7.4-8.2 mg/L","21.4-25.4oC",">99% (4.4'-isopropylidene diphenol, Cas 80-05-7)"]
["Category","Freshwater/non-metal/non- plant","Paper and data unique identifier(eg. 1-1,10-150)","721-3"]
["Scores",10,10,0,5,5,5,5,5,5,4,2,0,0,4,4,3,3,3,3,76,0.8351648351648352,null,""]
["Answers","36 days","Growth (length and wet weight)","Read from Table 1","","Both a negative and postive control","Yes - described in detail on page 1550","US EPA procedures","Viabe eggs less than 24 hours old. ","Yes - dechlorinated tap water","Flow through chambers","Yes - HPLC","","NOEC was the highest treatment concentration. No effect observed on mortality in the F0.","","","7.25-8.06","7.4-8.2 mg/L","21.4-25.4oC",">99% (4.4'-isopropylidene diphenol, Cas 80-05-7)"]
["Category","Freshwater/non-metal/non- plant","Paper and data unique identifier(eg. 1-1,10-150)","721-6"]
["Scores",10,10,0,5,5,5,5,5,5,4,2,0,0,4,4,3,3,3,3,76,0.8351648351648352,null,""]
["Answers","36 days","% of eggs which hatched","Read from Table 1","","Both a negative and postive control","Yes - described in detail on page 1550","US EPA procedures","Viabe eggs less than 24 hours old. ","Yes - dechlorinated tap water","Flow through chambers","Yes - HPLC","","NOEC was the highest treatment concentration. No effect observed on mortality in the F0.","","","7.25-8.06","7.4-8.2 mg/L","21.4-25.4oC",">99% (4.4'-isopropylidene diphenol, Cas 80-05-7)"]
["Category","Freshwater/non-metal/non- plant","Paper and data unique identifier(eg. 1-1,10-150)","721-4"]
["Scores",10,10,0,5,5,5,5,5,5,4,2,0,0,4,4,3,3,3,3,76,0.8351648351648352,null,""]
["Answers","164 days","Juvenile survival","Figure 4","","Both a negative and postive control","Yes - described in detail on page 1550","US EPA procedures","F1 generation","Yes - dechlorinated tap water","Flow through chambers","Yes - HPLC","","NOEC was the highest treatment concentration. No effect observed on mortality in the F0.","","","7.25-8.06","7.4-8.2 mg/L","21.4-25.4oC",">99% (4.4'-isopropylidene diphenol, Cas 80-05-7)"]
["Category","Freshwater/non-metal/non- plant","Paper and data unique identifier(eg. 1-1,10-150)","721-5"]
["Scores",10,10,0,5,5,5,5,5,5,4,2,0,0,4,4,3,3,3,3,76,0.8351648351648352,null,""]
["Answers","60 days","% of eggs which hatched","Figure 4","","Both a negative and postive control","Yes - described in detail on page 1550","US EPA procedures","F1 generation","Yes - dechlorinated tap water","Flow through chambers","Yes - HPLC","","NOEC was the highest treatment concentration. No effect observed on mortality in the F0.","","","7.25-8.06","7.4-8.2 mg/L","21.4-25.4oC",">99% (4.4'-isopropylidene diphenol, Cas 80-05-7)"]
["Category","Freshwater/non-metal/non- plant","Paper and data unique identifier(eg. 1-1,10-150)","721-7"]
["Scores",10,10,0,5,5,5,5,5,5,4,2,0,0,4,4,3,3,3,3,76,0.8351648351648352,null,""]
["Answers","60 days","Juvenile survival ","Section 3.2.2.2. No effect observed at any treatment concentration. ","","Both a negative and postive control","Yes - described in detail on page 1550","US EPA procedures","F1 generation","Yes - dechlorinated tap water","Flow through chambers","Yes - HPLC","","NOEC was the highest treatment concentration. No effect observed on mortality in the F0.","","","7.25-8.06","7.4-8.2 mg/L","21.4-25.4oC",">99% (4.4'-isopropylidene diphenol, Cas 80-05-7)"]
["Category","Freshwater/non-metal/non- plant","Paper and data unique identifier(eg. 1-1,10-150)","727-1"]
["Scores",10,5,5,5,5,5,2,5,5,4,2,0,0,4,0,0,3,3,0,63,0.69230769230769229,null,""]
["Answers","84 days","","","","","","OECD and GLP","","The dilution water was a laboratory freshwater prepared by\nblending naturally hard well water with well water that was demineralized\nby reverse osmosis.","Flow through","","","Graphs and tables were provided which showed data trends. No dose response was identified for juvenile mortality. ","","","",">60%","25+-1",""]
["Category","Freshwater/non-metal/non- plant","Paper and data unique identifier(eg. 1-1,10-150)","727-2"]
["Scores",10,5,5,5,5,5,2,5,5,4,2,0,0,4,0,0,3,3,0,63,0.69230769230769229,null,""]
["Answers","84 days","Egg production ","","","","","OECD and GLP","","The dilution water was a laboratory freshwater prepared by\nblending naturally hard well water with well water that was demineralized\nby reverse osmosis.","Flow through","","","Graphs and tables were provided which showed data trends. No dose response was identified.","","","",">60%","25+-1",""]
["Category","Freshwater/non-metal/non- plant","Paper and data unique identifier(eg. 1-1,10-150)","727-3"]
["Scores",10,5,5,5,5,5,2,5,5,4,2,0,0,4,0,0,3,3,0,63,0.69230769230769229,null,""]
["Answers","60 days","Egg production ","","","","","OECD and GLP","","The dilution water was a laboratory freshwater prepared by\nblending naturally hard well water with well water that was demineralized\nby reverse osmosis.","Flow through","","","Graphs and tables were provided which showed data trends. No dose response was identified for juvenile mortality. ","","","",">60%","25+-1",""]
["Category","Freshwater/non-metal/non- plant","Paper and data unique identifier(eg. 1-1,10-150)","738-2"]
["Scores",10,10,5,0,5,5,0,5,5,4,0,4,4,4,4,0,0,3,3,71,0.78021978021978022,null,"The highest possible grade for this datum is acceptable."]
["Answers","14 days","Reproduction - hatching weight","NOEC","","Aquaria water (tap water)","9 reps","Not stated or inferred","Embryos","Tap water","Static renewal","Not stated","Yes cadmium toxicity tests","Figure 4","","","","","26+-0.5oC","Fluka germany"]
["Category","Freshwater/non-metal/non- plant","Paper and data unique identifier(eg. 1-1,10-150)","297-5"]
["Scores",10,10,5,0,5,5,2,5,5,4,0,4,4,4,4,0,0,3,3,73,0.80219780219780223,null,"The highest possible grade for this datum is acceptable."]
["Answers","21 days","Survival","LC50","","Solvent control and culture water","10 reps","No mortality observed in the controls","Neonates","Fresh culture water as per ISO guidelines","Semi static","Not stated","Yes acute tests with potassium dichromate","Table 5","","","","","20+-1oC","Sigma aldrich"]
["Category","Freshwater/non-metal/non- plant","Paper and data unique identifier(eg. 1-1,10-150)","297-6"]
["Scores",10,10,5,0,5,5,2,5,5,4,0,4,4,4,4,0,0,3,3,73,0.80219780219780223,null,"The highest possible grade for this datum is acceptable."]
["Answers","21 days","Immobilization","EC50","","Solvent control and culture water","10 reps","No mortality observed in the controls","Neonates","Fresh culture water as per ISO guidelines","Semi static","Not stated","Yes acute tests with potassium dichromate","Table 5","","","","","20+-1oC","Sigma aldrich"]
["Category","Freshwater/non-metal/non- plant","Paper and data unique identifier(eg. 1-1,10-150)","735-2"]
["Scores",10,10,5,0,5,5,5,5,5,4,4,0,4,4,4,0,0,1,3,74,0.81318681318681318,null,""]
["Answers","21 days","Survival","LOEC","","Recon water and solvent water","Triplicate",">70% survival in controls","Eggs","Recon water ","Static renewal","HPLC","Not stated","Figure 1","","","","","20oC%","Aldrich"]

{"sheet":"FW nonmetal plant","index":7,"n_rows":79,"n_cols":53,"rows_kept":79,"cut":false,"hidden":false,"merged":[[60,2,62,2],[60,7,62,7],[63,2,66,2],[63,7,66,7],[52,2,54,2],[52,7,54,7],[56,2,59,2],[56,7,59,7],[43,2,45,2],[43,7,45,7],[46,2,48,2],[46,7,48,7],[49,2,51,2],[49,7,51,7],[34,2,36,2],[34,7,36,7],[37,2,39,2],[37,7,39,7],[40,2,42,2],[40,7,42,7],[25,2,27,2],[25,7,27,7],[28,2,30,2],[28,7,30,7],[31,2,33,2],[31,7,33,7],[17,2,19,2],[17,7,19,7],[20,2,21,2],[20,7,21,7],[22,2,24,2],[22,7,24,7],[3,4,7,4],[9,2,9,4],[11,2,13,2],[11,7,13,7],[14,2,16,2],[14,7,16,7]]}
[null,1,"Fill in the blank cells below, based on information provided in the paper being assessed. You can either pick an option from the dropdown list or add the appropriate detail using the 'Add to list' button. ",null,null,null,null,null,null,null,null,null,null,null,"* All the text in RED are used for drop down list ,make changes with caution."]
[null,null,"Category",{"$f":"IF(AF3=\"\",0,1)","v":1},"Freshwater/non-metal/plant",{"$f":"IF(E3=\"\",0,1)","v":1},"Citation No.",{"$f":"IF(ISERROR(FIND(\"-\",E3)),E3,LEFT(E3,FIND(\"-\",E3)-1))","v":"745"},null,"Taxonomic group",null,null,null,null,"Species",null,null,"Lifestage",null,null,"Exposure duration",null,null,"Measure of toxicity",null,null,"Toxicity endpoint",null,null,"Taxonomic group",null,null,"Phylum",null,null,"Class",null,null,"Media",null,null,"Temperature ",null,null,"Acute Or Chronic",null,null,"PH",null,null,"Salinity/Conductivity"]
[null,null,"Paper and data unique identifier(eg. 1-1,10-150)",{"$f":"IF(AI3=\"\",0,1)","v":1},"745-5",{"$f":"IF(E4=\"\",0,1)","v":1},"Species (Scientific name)",null,null,"Phylum",null,null,null,null,"Aedes albopictus",26,{"$f":"IF(P3=0,\"\",INDEX(O3:O100,P3))","v":"Monoraphidium braunii"},"1 month",6,{"$f":"IF(S3=0,\"\",INDEX(R3:R100,S3))","v":"N.A."},"11 hours",8,{"$f":"IF(V3=0,\"\",INDEX(U3:U100,V3))","v":"96 hrs"},"EC1",6,{"$f":"IF(Y3=0,\"\",INDEX(X3:X100,Y3))","v":"LOEC"},"cartenoid conc. ",15,{"$f":"IF(AB3=0,\"\",INDEX(AA3:AA100,AB3))","v":"Growth"},"Cyano",4,{"$f":"IF(AE3=0,\"\",INDEX(AD3:AD100,AE3))","v":"Microalga"},"Chlorophyta",1,{"$f":"IF(AH3=0,\"\",INDEX(AG3:AG100,AH3))","v":"Chlorophyta"},"Branchiopoda",2,{"$f":"IF(AK3=0,\"\",INDEX(AJ3:AJ102,AK3))","v":"Chlorophyceae"},"AAP",21,{"$f":"IF(AN3=0,\"\",INDEX(AM3:AM100,AN3))","v":"FW04 growth media"},20,19,{"$f":"IF(AQ3=0,\"\",INDEX(AP3:AP100,AQ3))","v":"22oC"},"Acute ",2,{"$f":"IF(AT3=0,\"\",INDEX(AS3:AS100,AT3))","v":"Chronic"},5.50,18,{"$f":"IF(AW3=0,\"\",INDEX(AV3:AV100,AW3))","v":8.3000000000000007},"30 ppt",null,"N.A."]
[null,null,"Citation",{"$f":"IF(AL3=\"\",0,1)","v":1},"Gattullo, C.E., H. Bahrs, C.E.W. Steinberg and E. Loffredo. 2012. Removal of bipshenol A by the freshwater green alga Monoraphidium braunii and the role of natural organic matter. Science of the Total Environment 416:501-506",{"$f":"IF(AX3=\"\",0,1)","v":1},"Lifestage",null,null,"Class",null,null,null,null,"Anabaena flos-aquae",null,null,"1 year old",null,null,"13 days ",null,null,"EC20",null,null,"Chlorophyll a conc. ",null,null,"Fish",null,null,"Cyanobacteria",null,null,"Chlorophyceae",null,null,"algaltoxkit",null,null,21,null,null,"Chronic",null,null,6.70,null,null,"150 uS/cm"]
[null,null,null,{"$f":"IF(AO3=\"\",0,1)","v":1},null,{"$f":"IF(H8=\"\",0,1)","v":1},"Exposure duration",null,null,"Media",null,null,null,null,"Australian Bass",null,null,"Exponential growth phase",null,null,"24 hr",null,null,"EC50",null,null,"Chlorophyll b conc. ",null,null,"Macrophyte",null,null,"N.A.",null,null,"Chlorophyceae",null,null,"Freshwater",null,null,22,null,null,"Chronic",null,null,6.90,null,null,"N.A."]
[null,null,null,{"$f":"IF(AR3=\"\",0,1)","v":1},null,{"$f":"IF(Q3=\"\",0,1)","v":1},"Measure of toxicity",null,null,"Temperature ",null,null,null,null,"Chlorella pyrenoidosa",null,null,"Exponential growth phase",null,null,"3 days",null,null,"EC80",null,null,"Growth inhibition",null,null,"Microalga",null,null,"Tracheophyta",null,null,"Liliopsida",null,null,"HB4",null,null,28,null,null,"N.A.",null,null,7.50]
[null,null,null,{"$f":"IF(AU3=\"\",0,1)","v":1},null,{"$f":"IF(T3=\"\",0,1)","v":1},"Toxicity endpoint",null,null,"Acute Or Chronic ",null,null,null,null,"Chlorella pyrenoidosa",null,null,"logarithmic growth phase",null,null,"6 days",null,null,"LC50",null,null,"Growth Inhibition: Algal Biomass (cell counts)",null,null,"N.A.",null,null,"Tracheophyta",null,null,"N.A.",null,null,"HGZ media",null,null,"15°C",null,null,null,null,null,7.70]
[null,null,null,null,null,{"$f":"IF(W3=\"\",0,1)","v":1},"Toxicity value","2000 ug/L",null,"PH",null,null,null,null,"Chlorella vulgaris",null,null,"N.A.",null,null,"7 days",null,null,"LOEC",null,null,"Growth inhibition: AUC",null,null,"plantae",null,null,null,null,null,"Trebouxiophyceae",null,null,"Marinewater",null,null,"18-22",null,null,null,null,null,7.80]
[null,2,"Select the appropriate answer option to each question. Comments can be added to the cells in column H.",null,null,{"$f":"IF(Z3=\"\",0,1)","v":1},null,null,null,"Salinity/Conductivity","N.A.",null,null,null,"Chlorella vulgaris",null,null,"not stated",null,null,"72 hour",null,null,"N.A.",null,null,"Growth inhibition: cell count",null,null,null,null,null,null,null,null,null,null,null,"Moderately hard standard water",null,null,"20 ± 1°C",null,null,null,null,null,"7.5 - 8.3"]
[null,"*","If the selected answer option does not work try clicking on any other cell first and then click back on the answer option again.",null,null,{"$f":"IF(AC3=\"\",0,1)","v":1},null,null,null,null,null,null,null,null,"Dunaliella tertiolecta",null,null,"not stated",null,null,"96 hrs",null,null,"NOEC",null,null,"Growth inhibition: growth rate",null,null,null,null,null,null,null,null,null,null,null,"N.A.",null,null,"21-24",null,null,null,null,null,"7.7-7.9"]
[null,"No.","Question","Marks Awarded","Answer Options","Option References","Scores","Answers",null,null,null,null,null,null,"Lemna minor",null,null,null,null,null,"N.A.",null,null,"Population: Growth Rate: Frond count",null,null,"Mortality",null,null,null,null,null,null,null,null,null,null,null,"not stated",null,null,"21-24 ± 2",null,null,null,null,null,"N.A."]
[null,null,"Was the duration of the exposure stated (e.g. 48 or 96 h)?",10,null,1,{"$f":"IF(F15=0,0,INDEX($D12:$D13,F12,1))","v":10},"4 days",null,null,null,null,null,null,"Mirocystis aeruginosa",null,null,null,null,null,"2 days",null,null,"EC10",null,null,"N.A.",null,null,null,null,null,null,null,null,null,null,null,"Steinberg medium",null,null,"22 ± 1°C",null,null,null,null,null,"N.A."]
[null,1,null,0,null,null,null,null,null,null,null,null,null,null,"Mycrocystis flos-aquae",null,null,null,null,null,"8 days",null,null,"IC50",null,null,"population growth",null,null,null,null,null,null,null,null,null,null,null,"Sterilised and filtered offshore marine water",null,null,"25 ± 2°C",null,null,null,null,null,"not stated"]
[null,null,null,null,null,null,null,null,null,null,null,null,null,null,"N.A.",null,null,null,null,null,"20 days",null,null,null,null,null,"Population: Abundance: Biomass (Chl-a)",null,null,null,null,null,null,null,null,null,null,null,"Sterilised culture medium",null,null,"25°C",null,null,null,null,null,"not stated"]
[null,null,"Was the biological endpoint (e.g., immobilization or population growth) stated and defined (10 marks)? Award 5 marks if the biological endpoint is only stated.",10,null,2,{"$f":"IF(F15=0,0,INDEX($D15:$D17,F15,1))","v":5},"Growth - chlorophyll a",null,null,null,null,null,null,"raphidocelis subcapitata",null,null,null,null,null,null,null,null,null,null,null,"Population: Growth Rate: Front count",null,null,null,null,null,null,null,null,null,null,null,"OECD medium",null,null,"N.A.",null,null,null,null,null,"PH11"]
[null,2,null,5,null,null,null,null,null,null,null,null,null,null,"Scenedesmus obliguus",null,null,null,null,null,null,null,null,null,null,null,"Reproduction",null,null,null,null,null,null,null,null,null,null,null,"Algal medium",null,null,"Not stated",null,null,null,null,null,"PH7.0"]
[null,null,null,0,null,null,null,null,null,null,null,null,null,null,"Scenedesmus obliquus",null,null,null,null,null,null,null,null,null,null,null,"Growth",null,null,null,null,null,null,null,null,null,null,null,"Steinberg medium",null,null,"24-26oC",null,null,null,null,null,"7.9-8.3"]
[null,null,"Was the biological effect stated (e.g. LC or NOEC)?",5,null,1,{"$f":"IF(F18=0,0,INDEX($D18:$D19,F18,1))","v":5},"LOEC",null,null,null,null,null,null,"Scenedesmus obliquus",null,null,null,null,null,null,null,null,null,null,null,null,null,null,null,null,null,null,null,null,null,null,null,"K-media",null,null,"21-25oC",null,null,null,null,null,5]
[null,3,null,0,null,null,null,null,null,null,null,null,null,null,"Scenedesmus quadricauda",null,null,null,null,null,null,null,null,null,null,null,null,null,null,null,null,null,null,null,null,null,null,null,"Fresh nutrient media",null,null,"23-27oC",null,null,null,null,null,8]
[null,null,null,null,null,null,null,null,null,null,null,null,null,null,"Scenedesmus quadricauda",null,null,null,null,null,null,null,null,null,null,null,null,null,null,null,null,null,null,null,null,null,null,null,"Inorganic medium",null,null,"24oC",null,null,null,null,null,8.3000000000000007]
[null,4,"Was the biological effect quantified (e.g. 50% effect, 25% effect)? \nNote: The effect for NOEC and LOEC data must be quantified.",5,null,2,{"$f":"IF(F21=0,0,INDEX($D21:$D22,F21,1))","v":0},null,null,null,null,null,null,null,"Scenedesmus vacuolatus",null,null,null,null,null,null,null,null,null,null,null,null,null,null,null,null,null,null,null,null,null,null,null,"Algal assay medium",null,null,"22oC"]
[null,null,null,0,null,null,null,null,null,null,null,null,null,null,"Selenastrum capricornutum",null,null,null,null,null,null,null,null,null,null,null,null,null,null,null,null,null,null,null,null,null,null,null,"Liquid medium",null,null,"22oC"]
[null,5,"Were appropriate controls (e.g. a no-toxicant control and/or solvent control) used?",5,null,1,{"$f":"IF(F23=0,0,INDEX($D23:$D24,F23,1))","v":5},"Growth medium",null,null,null,null,null,null,"Selenastrum capricornutum",null,null,null,null,null,null,null,null,null,null,null,null,null,null,null,null,null,null,null,null,null,null,null,"FW04 growth media",null,null,"23-25oC"]
[null,null,null,0,null,null,null,null,null,null,null,null,null,null,"Desmodesmus subspicatus"]
[null,null,null,null,null,null,null,null,null,null,null,null,null,null,"Rhapidocelis subcapitata"]
[null,6,"Was each control and contaminant concentration at least duplicated?",5,null,1,{"$f":"IF(F26=0,0,INDEX($D26:$D27,F26,1))","v":5},"Replicated four times",null,null,null,null,null,null,"Lemna paucicostata"]
[null,null,null,0,null,null,null,null,null,null,null,null,null,null,"Scenedesmus acutus"]
[null,null,null,null,null,null,null,null,null,null,null,null,null,null,"Monoraphidium braunii"]
[null,7,"Were test acceptability criteria stated (e.g. mortality in controls must not exceed a certain percentage) (5 marks)?\nOR Were test acceptability criteria inferred (e.g. test method used [USEPA, OECD, ASTM etc.]) (award 2 marks). \nNote: Data that fail the acceptability criteria are automatically deemed to be of unacceptable quality and must not be used. ",5,null,3,{"$f":"IF(F29=0,0,INDEX($D29:$D31,F29,1))","v":0},"Not stated"]
[null,null,null,2]
[null,null,null,0]
[null,8,"Were the characteristics of the test organism (e.g. length, mass, age) stated?",5,null,1,{"$f":"IF(F32=0,0,INDEX($D32:$D34,F32,1))","v":5},"Logarithmic growth phase"]
[null,null,null,0]
[]
[null,9,"Was the type of test media used stated?",5,null,1,{"$f":"IF(F35=0,0,INDEX($D35:$D37,F35,1))","v":5},"FW04 growth medium"]
[null,null,null,0]
[]
[null,null,"Was the type of exposure (e.g. static, flow through) stated? ",4,null,2,{"$f":"IF(F38=0,0,INDEX($D38:$D40,F38,1))","v":0},"Not stated"]
[null,10,null,0]
[]
[null,null,"Were the contaminant concentrations measured at the beginning and end of the exposure (4 marks)? Award 2 marks if they were measured only once during the test.\nNote: If the concentrations were not measured then automatically the data cannot be high quality. ",4,null,3,{"$f":"IF(F41=0,0,INDEX($D41:$D43,F41,1))","v":0},"Not stated"]
[null,11,null,2]
[null,null,null,0]
[null,null,"Were parallel reference toxicant toxicity tests conducted?",4,null,2,{"$f":"IF(F44=0,0,INDEX($D44:$D46,F44,1))","v":0},"Not stated"]
[null,12,null,0]
[]
[null,null,"Was there a concentration–response relationship either observable or stated?",4,null,1,{"$f":"IF(F47=0,0,INDEX($D47:$D49,F47,1))","v":4},"Figure 3"]
[null,13,null,0]
[]
[null,null,"Was an appropriate statistical method or model used to determine the toxicity?\nNote: They should be accepted by a recognised national or international regulatory body (e.g. USEPA, OECD, ASTM). ",4,null,1,{"$f":"IF(F50=0,0,INDEX($D50:$D52,F50,1))","v":4},"ANOVA"]
[null,14,null,0]
[]
[null,15,"For LC/EC/BEC data was an estimate of variability provided? \nOR \nFor NO EC/LOEC data was the significance level 0.05 or less?  \n\n",4,null,2,{"$f":"IF(F53=0,0,INDEX($D53:$D55,F53,1))","v":0},"95%, 99% and 99.9%"]
[null,null,null,0]
[]
[null,16,"Were the following parameters measured and stated? (3 marks if measured and stated, 1 mark if just measured)."]
[null,null,"pH",3,null,3,{"$f":"IF(F57=0,0,INDEX($D57:$D59,F57,1))","v":0},8.3000000000000007]
[null,16.10,null,1]
[null,null,null,0]
[]
[null,null,"Was the temperature measured and stated (3 marks)? Award 1 mark if the temperature was measured but not stated or if only the temperature settings of the room or chamber are stated.",3,null,2,{"$f":"IF(F61=0,0,INDEX($D61:$D63,F61,1))","v":1},"22oC"]
[null,17,null,1]
[null,null,null,0]
[null,null,"Were test solutions, blanks and/or controls tested for contamination OR were analytical reagent grade chemicals used or the highest possible purity chemicals used for the experiment? (3 marks).",3,null,1,{"$f":"IF(F64=0,0,INDEX($D64:$D65,F64,1))","v":3},"99% purity"]
[null,18,null,0]
[]
[null,null,null,null,null,null,null,null,{"$f":"COUNTIF(D2:D7,\"=0\")+COUNTIF(F2:F10,\"=0\")+COUNTIF(F12:F64,\"=0\")","v":0}]
[]
[]
[null,null,"Total score",null,null,null,{"$f":"IF(SUM(G12:G67)=0,\"\",SUM(G12:G67))","v":52}]
[null,null,"Total Max. possible score for the various types of data and contaminants ",null,{"$f":"D12+D15+D18+D21+D23+D26+D29+D32+D35+D38+D41+D44+D47+D50+D53+D57+D61+D64","v":88}]
[null,null,"Quality Score",null,{"$f":"\"= [Total score / Total possible score] * 100 = \"","v":"= [Total score / Total possible score] * 100 = "},null,{"$f":"IF(ISERROR(G70/E71),#N/A,G70/E71)","v":0.59090909090909094},{"$f":"IF(F41=3,\"The highest possible grade for this datum is acceptable.\",\"\")","v":"The highest possible grade for this datum is acceptable."}]
[]
[null,null,"H = high quality                           Quality score ≥ 80%  "]
[null,null,"A = acceptable quality         > 50% Quality score < 80%     "]
[null,null,"U = unacceptable quality              Quality score ≤ 50%"]
[]
[3,null,"Click the 'Save & Update' button to save and export the answers to the 'All results' worksheet. "]
[null,null,"Select the 'Reset Answers' button if you wish to clear all answers."]

{"sheet":"FW nonmetal plant_WS","index":8,"n_rows":42,"n_cols":22,"rows_kept":42,"cut":false,"hidden":false,"merged":[]}
[]
["Question No.",1,2,3,4,5,6,7,8,9,10,11,12,13,14,15,16.10,17,18,"Total Score","Quality Score","Comment "]
["Short Questions","Duration of the exposure ","Biological endpoint","Biological effect stated or not","Biological effect quantified or not","Appropriate controls","Control & contaminant concentration","Test acceptability criteria","Characteristics of the test organism"," Type of test media","Type of exposure","Contaminant concentrations","Parallel reference toxicant toxicity tests","Concentration–response relationship","Determine the toxicity","NOEC/LOEC or LC/EC/BEC","pH","Temperature","Grade or purity"]
["Category","Freshwater/non-metal/plant","Paper and data unique identifier(eg. 1-1,10-150)","287-2"]
["Scores",10,5,5,5,5,5,2,5,5,4,4,0,4,4,4,0,3,3,73,0.70873786407766992]
["Answers","96 h","Cell Count; Total cell volume","EC50","EC50","EPA procedures and Table 3 shows control results","EPA procedures so assume yes","EPA procedures so inferred","EPA procedures so assumed. Does state lab culture. ","Yes - algal assay medium","EPA procedures - algal tests static","Yes - reverse phase liquid chromatographic methodolgy","No - not stated","Table 3. ","Described","95% CI's provided",null,"24 +/- 2oC","99.93% (polycarbonate grade bisphenol)"]
["Category","Freshwater/non-metal/plant","Paper and data unique identifier(eg. 1-1,10-150)","287-1"]
["Scores",10,5,5,5,5,5,2,5,5,0,4,0,4,4,4,0,3,3,69,0.66990291262135926]
["Answers","96 h","Total Cell Volume","EC50","EC50","EPA procedures","EPA procedures so assume yes","EPA procedures so inferred","EPA procedures so assumed. Does state lab culture. ","Yes - algal assay medium","EPA procedures - algal tests static","Yes - reverse phase liquid chromatographic methodolgy","No - not stated","Table 3. ","","95% CI's provided","","24 +/- 2oC","99.93% (polycarbonate grade bisphenol A)"]
["Category","Freshwater","Paper and data unique identifier(eg. 1-1,10-150)","733-1"]
["Scores",10,10,5,5,5,5,0,5,5,4,4,0,4,4,0,1,0,0,67,0.65048543689320393]
["Answers","28 d","Mortality","LD50","LD50","Distilled water","Yes ten replicates","","Yes - size","Distilled water","Static renewal","HPLC","Not stated","Table 1","Yes","","Initial pH 6.3-6.5","",""]
["Category","Freshwater","Paper and data unique identifier(eg. 1-1,10-150)","722-6"]
["Scores",10,10,5,5,5,5,5,5,5,4,4,0,4,4,4,3,3,3,87,0.84466019417475724]
["Answers","7 d","Frond density and growth rate","EC50","Yes - defined","Yes - methanol solvent control and a AAO medium control","3 replicates","OECD and GLP","Yes - in house culture","algal assay procedure (AAP) medium","Static","Yes - HPLC","No - not stated","Table 5 results presented","Yes","Yes 95% CI","7.4-8.6","22-26oC","99.3% (4.4'-isopropylidene diphenol, Cas 80-05-7)"]
["Category","Freshwater","Paper and data unique identifier(eg. 1-1,10-150)","722-7"]
["Scores",10,10,5,5,5,5,5,5,5,4,4,0,4,4,4,3,3,3,87,0.84466019417475724]
["Answers","7 d","Frond density and growth rate","NOEC","Yes - defined","Yes - methanol solvent control and a AAO medium control","3 replicates","OECD and GLP","Yes - in house culture","algal assay procedure (AAP) medium","Static","Yes - HPLC","No - not stated","Table 5 results presented","Yes","Yes 95% CI","7.4-8.6","22-26oC","99.3% (4.4'-isopropylidene diphenol, Cas 80-05-7)"]
["Category","Freshwater","Paper and data unique identifier(eg. 1-1,10-150)","722-8"]
["Scores",10,10,5,5,5,5,5,5,5,4,4,0,4,4,4,3,3,3,87,0.84466019417475724]
["Answers","7 d","Frond biomass","EC50","Yes - defined","Yes - methanol solvent control and a AAO medium control","3 replicates","OECD and GLP","Yes - in house culture","algal assay procedure (AAP) medium","Static","Yes - HPLC","No - not stated","Table 5 results presented","Yes","Yes 95% CI","7.4-8.6","22-26oC","99.3% (4.4'-isopropylidene diphenol, Cas 80-05-7)"]
["Category","Freshwater","Paper and data unique identifier(eg. 1-1,10-150)","722-9"]
["Scores",10,10,5,5,5,5,5,5,5,4,4,0,4,4,4,3,3,3,87,0.84466019417475724]
["Answers","7 d","Frond biomass","NOEC","Yes - defined","Yes - methanol solvent control and a AAO medium control","3 replicates","OECD and GLP","Yes - in house culture","algal assay procedure (AAP) medium","Static","Yes - HPLC","No - not stated","Table 5 results presented","Yes","Yes 95% CI","7.4-8.6","22-26oC","99.3% (4.4'-isopropylidene diphenol, Cas 80-05-7)"]
["Category","Freshwater","Paper and data unique identifier(eg. 1-1,10-150)","729-1"]
["Scores",0,10,5,0,5,5,0,5,5,4,4,0,4,4,4,3,3,0,70,0.67961165048543692]
["Answers","> 10 d. 2 days after fourth instar larvae","Growth - weight","NOEC","No","Yes - solvent and dechlorinated water controls","Yes","","Yes - age","dechlorinated tap water","Static renewal","Yes - GC/MS","Not stated","Figure 1","Yes","Yes","6.9-7.3","20+/-1oC",""]
["Category","Freshwater/non-metal/plant","Paper and data unique identifier(eg. 1-1,10-150)","745-1"]
["Scores",10,5,5,0,5,5,0,5,5,0,0,0,4,4,0,0,1,3,52,0.59090909090909094,"The highest possible grade for this datum is acceptable."]
["Answers","4 days","Growth - cell size","NOEC","","Growth medium","Replicated four times","Not stated","Logarithmic growth phase","FW04 growth medium","Not stated","Not stated","Not stated","Figure 2","95%, 99% and 99.9%","95%, 99% and 99.9%",8.3000000000000007,"22oC","99% purity"]
["Category","Freshwater/non-metal/plant","Paper and data unique identifier(eg. 1-1,10-150)","745-2"]
["Scores",10,5,5,0,5,5,0,5,5,0,0,0,4,4,0,0,1,3,52,0.59090909090909094,"The highest possible grade for this datum is acceptable."]
["Answers","4 days","Growth - cell size","LOEC","","Growth medium","Replicated four times","Not stated","Logarithmic growth phase","FW04 growth medium","Not stated","Not stated","Not stated","Figure 2","95%, 99% and 99.9%","95%, 99% and 99.9%",8.3000000000000007,"22oC","99% purity"]
["Category","Freshwater/non-metal/plant","Paper and data unique identifier(eg. 1-1,10-150)","745-3"]
["Scores",10,5,5,0,5,5,0,5,5,0,0,0,4,4,0,0,1,3,52,0.59090909090909094,"The highest possible grade for this datum is acceptable."]
["Answers","4 days","Growth - cell number","NOEC","","Growth medium","Replicated four times","Not stated","Logarithmic growth phase","FW04 growth medium","Not stated","Not stated","Not stated","Figure 1","95%, 99% and 99.9%","95%, 99% and 99.9%",8.3000000000000007,"22oC","99% purity"]
["Category","Freshwater/non-metal/plant","Paper and data unique identifier(eg. 1-1,10-150)","745-4"]
["Scores",10,5,5,0,5,5,0,5,5,0,0,0,4,4,0,0,1,3,52,0.59090909090909094,"The highest possible grade for this datum is acceptable."]
["Answers","4 days","Growth - cell number","LOEC","","Growth medium","Replicated four times","Not stated","Logarithmic growth phase","FW04 growth medium","Not stated","Not stated","Not stated","Figure 1","95%, 99% and 99.9%","95%, 99% and 99.9%",8.3000000000000007,"22oC","99% purity"]
["Category","Freshwater/non-metal/plant","Paper and data unique identifier(eg. 1-1,10-150)","745-5"]
["Scores",10,5,5,0,5,5,0,5,5,0,0,0,4,4,0,0,1,3,52,0.59090909090909094,"The highest possible grade for this datum is acceptable."]
["Answers","4 days","Growth - chlorophyll a","LOEC","","Growth medium","Replicated four times","Not stated","Logarithmic growth phase","FW04 growth medium","Not stated","Not stated","Not stated","Figure 3","95%, 99% and 99.9%","95%, 99% and 99.9%",8.3000000000000007,"22oC","99% purity"]